{"text_format":"1","workbook":"xlsx","n_sheets":2,"sheets":["Jardin","MODE EMPLOI"],"not_rendered":{"charts":1,"images":2,"macros":1,"external_links":1,"defined_names":12,"comments":0,"pivot_tables":0},"unopened":[],"bounds":{"document_bytes":16777216,"sheet_cells":100000,"rows_first":2000,"rows_last":500,"rows_between":2000,"halvings":0,"cell_chars":16384,"cell_head_chars":4096},"cells_cut":0,"cells_raw":0,"read":"whole","date_system":"1900"}

{"sheet":"Jardin","index":0,"n_rows":746,"n_cols":78,"rows_kept":746,"cut":false,"hidden":false,"merged":[[80,11,80,17],[80,2,80,10],[77,27,78,27],[11,18,13,26],[15,16,15,17],[15,10,15,11],[15,27,16,27],[15,12,15,13],[3,1,7,4],[1,29,8,32],[1,1,2,1],[11,1,13,1],[15,2,15,3],[15,4,15,5],[15,6,15,7],[15,14,15,15],[15,22,15,23],[15,18,15,19],[15,20,15,21],[15,24,15,25],[15,8,15,9],[16,29,18,32],[11,27,13,27],[7,27,8,27],[3,13,3,20],[5,8,5,18],[7,12,7,18],[7,9,7,11],[1,27,6,27],[3,9,3,10],[3,11,3,12],[12,2,12,17],[13,2,13,17],[11,2,11,17],[7,5,7,7],[3,5,3,8],[5,5,5,7]]}
[null,null,null,null,null,null,null,null,null,null,null,null,null,null,null,null,null,null,null,null,null,null,null,null,null,null,null,null,null,null,null,null,null,"Remplit la case département, stp !","DPTCALVADOS","DPTEURE","DPTMANCHE","DPTORNE","DPTSEINEMARITIME",null,null,null,null,null,null,null,null,null,null,null,null,null,null,null,null,null,null,null,null,null,null,null,null,null,null,null,null,null,null,null,null,null,null,null,null,null,null,"Remplit la case département stp !"]
[null,"Cadre en-tête  -  version 20",null,null,null,null,null,null,null,null,null,null,null,null,null,null,null,null,null,null,null,null,null,null,null,null,null,"Masquer\nEn-tête",null,"Vous pouvez reduire le bandeau en-tête (flèche rouge), une fois que vous l'avez rempli, afin d'afficher plus de lignes de saisie. La flèche bleue permet de le faire réapparaître.",null,null,null,null,"ABLON - 14001","ACLOU - 27001","ACQUEVILLE - 50001","ALENCON - 61001","ALLOUVILLE-BELLEFOSSE - 76001"]
[null,null,null,null,null,null,null,null,null,null,null,null,null,null,null,null,null,null,null,null,null,null,null,null,null,null,null,null,null,null,null,null,null,null,"ACQUEVILLE - 14002","ACON - 27002","AGNEAUX - 50002","ALMENECHES - 61002","ALVIMARE - 76002"]
[null,"LPO Normandie\nFiche Jardin Papillons",null,null,null,"Observateur :  numéro ",null,null,null,null,null,"et nom   ",null,null,null,null,null,null,null,null,null,null,null,null,null,"Est-ce que votre jardin est : ",null,null,null,null,null,null,null,null,"AGY - 14003","ACQUIGNY - 27003","AGON-COUTAINVILLE - 50003","ANCEINS - 61003","AMBRUMESNIL - 76004"]
[null,null,null,null,null,null,null,null,null,null,null,null,null,null,null,null,null,null,null,null,null,null,null,null,null,null,null,null,null,null,null,null,null,null,"AIGNERVILLE - 14004","AIGLEVILLE - 27004","AIREL - 50004","ANTOIGNY - 61004","AMFREVILLE-LA-MI-VOIE - 76005"]
[null,null,null,null,null,"Jardin : adresse     ",null,null,null,null,null,null,null,null,null,null,null,null,null,null,null,null,"Refuge LPO,   oui ",null,"non ",null,null,null,null,null,null,null,null,null,"AIRAN - 14005","AILLY - 27005","AMFREVILLE - 50005","APPENAI-SOUS-BELLEME - 61005","AMFREVILLE-LES-CHAMPS - 76006"]
[null,null,null,null,null,null,null,null,null,null,null,null,null,null,null,null,null,null,null,null,null,null,null,null,null,null,null,null,null,null,null,null,null,null,"AMAYE-SUR-ORNE - 14006","AIZIER - 27006","AMIGNY - 50006","ARGENTAN - 61006","ANCEAUMEVILLE - 76007"]
[null,null,null,null,null,"Département  ",null,null,76,"Commune   ",null,null,null,null,null,null,null,null,null,null,null,"A la campagne :",null,null,"En ville : ",null,null,null,null,null,null,null,null,null,"AMAYE-SUR-SEULLES - 14007","AJOU - 27007","ANCTEVILLE - 50007","ATHIS-DE-L'ORNE - 61007","ANCOURT - 76008"]
[null,"Nom conseillé  : ",{"$f":"CONCATENATE(\"FJP(V20)_\",J4,\"_\",RIGHT(M8,5),\"_\",B17,\"_\",N4,\".xls\")","v":"FJP(V20)____.xls"},null,null,null,null,null,null,null,null,null,null,null,null,null,{"$f":"RIGHT(M8,5)","v":""},null,null,null,null,null,null,null,null,null,null,null,null,null,null,null,null,null,"AMBLIE - 14008","ALIZAY - 27008","ANCTOVILLE-SUR-BOSCQ - 50008","AUBE - 61008","ANCOURTEVILLE-SUR-HERICOURT - 76009"]
[null,null,null,null,null,null,null,null,null,null,null,null,null,null,null,null,null,null,null,null,null,null,null,null,null,null,null,null,null,null,null,null,null,null,"AMFREVILLE - 14009","AMBENAY - 27009","ANGEY - 50009","AUBRY-EN-EXMES - 61009","ANCRETIEVILLE-SAINT-VICTOR - 76010"]
[null,null,null,null,null,null,null,null,null,null,null,null,null,null,null,null,null,null,null,null,null,null,null,null,null,null,null,null,null,null,null,null,null,null,"ANCTOVILLE - 14011","AMECOURT - 27010","ANGOVILLE-AU-PLAIN - 50010","AUBRY-LE-PANTHOU - 61010","ANCRETTEVILLE-SUR-MER - 76011"]
[null,"Papillons de jour\nProtocole d'inventaire","Notez le nombre maximum de papillons adultes d'une espèce vus en même temps dans une journée.",null,null,null,null,null,null,null,null,null,null,null,null,null,null,null,"Le \"NON\" sous la quinzaine indique que vous n'avez pas recherché de papillons (vacances…) \net non que vous n'en avez pas vu !",null,null,null,null,null,null,null,null,null,null,null,null,null,null,null,"ANGERVILLE - 14012","AMFREVILLE-LA-CAMPAGNE - 27011","ANGOVILLE-SUR-AY - 50012","AUBUSSON - 61011","ANGERVILLE-BAILLEUL - 76012"]
[null,null,"Si vous avez chenilles ou chrysalides, utilisez nos fiches ponctuelles ou Faune-Normandie.",null,null,null,null,null,null,null,null,null,null,null,null,null,null,null,null,null,null,null,null,null,null,null,null,null,null,null,null,null,null,null,"ANGOVILLE - 14013","AMFREVILLE-LES-CHAMPS - 27012","ANNEVILLE-EN-SAIRE - 50013","AUGUAISE - 61012","ANGERVILLE-LA-MARTEL - 76013"]
[null,null,"Si une espèce n'est pas dans cette liste!  Remplissez svp une fiche d'homologation.",null,null,null,null,null,null,null,null,null,null,null,null,null,null,null,null,null,null,null,null,null,null,null,null,null,null,null,null,null,null,null,"ANGUERNY - 14014","AMFREVILLE-SOUS-LES-MONTS - 27013","ANNEVILLE-SUR-MER - 50014","AUNAY-LES-BOIS - 61013","ANGERVILLE-L'ORCHER - 76014"]
[null,null,null,null,null,null,null,null,null,null,null,null,null,null,null,null,null,null,null,null,null,null,null,null,null,null,null,null,null,null,null,null,null,null,"ANISY - 14015","AMFREVILLE-SUR-ITON - 27014","ANNOVILLE - 50015","AUNOU-LE-FAUCON - 61014","ANGIENS - 76015"]
[null,"Année :","Janvier",null,"Février",null,"Mars",null,"Avril",null,"Mai",null,"Juin",null,"Juillet",null,"Août",null,"Septembre",null,"Octobre",null,"Novembre",null,"Décembre",null,null,"nb périodes",null,null,null,null,null,null,"ANNEBAULT - 14016","ANDE - 27015","APPEVILLE - 50016","AUNOU-SUR-ORNE - 61015","ANGLESQUEVILLE-LA-BRAS-LONG - 76016"]
[null,null,"1-15","16-31","1-15","16-fin","1-15","16-31","1-15","16-30","1-15","16-31","1-15","16-30","1-15","16-31","1-15","16-31","1-15","16-30","1-15","16-31","1-15","16-30","1-15","16-31",null,null,null,null,null,null,null,null,"ARGANCHY - 14019","LES ANDELYS - 27016","ARGOUGES - 50018","AUTHEUIL - 61016","ANGLESQUEVILLE-L'ESNEVAL - 76017"]
[null,"Quinzaines prospectées   =>  ","Oui","Oui","Oui","Oui","Oui","Oui","Oui","Oui","Oui","Oui","Oui","Oui","Oui","Oui","Oui","Oui","Oui","Oui","Oui","Oui","Oui","Oui","Oui","Oui",null,{"$f":"COUNTIF(C18:Z18,\"=oui\")","v":24},null,null,null,null,null,null,"ARGENCES - 14020","ANGERVILLE-LA-CAMPAGNE - 27017","AUCEY-LA-PLAINE - 50019","LES AUTHIEUX-DU-PUITS - 61017","VAL-DE-SAANE - 76018"]
[null,null,null,null,null,null,null,null,null,null,null,null,null,null,null,null,null,null,null,null,null,null,null,null,null,null,null,null,null,null,null,null,null,null,"ARROMANCHES-LES-BAINS - 14021","APPEVILLE-ANNEBAULT - 27018","AUDERVILLE - 50020","AVERNES-SAINT-GOURGON - 61018","ANNEVILLE-SUR-SCIE - 76019"]
[1,"Amaryllis",null,null,null,null,null,null,null,null,null,null,null,null,null,null,null,null,null,null,null,null,null,null,null,null,null,{"$f":"IF((COUNTA(C20:Z20))=0,\"-\",COUNTA(C20:Z20)*100/$AB$18)","v":"-"},null,null,null,null,null,null,"ASNELLES - 14022","ARMENTIERES-SUR-AVRE - 27019","AUDOUVILLE-LA-HUBERT - 50021","AVERNES-SOUS-EXMES - 61019","ANNEVILLE-AMBOURVILLE - 76020"]
[0,"Argus bleu-nacré",null,null,null,null,null,null,null,null,null,null,null,null,null,null,null,null,null,null,null,null,null,null,null,null,null,"-",null,null,null,null,null,null,"ASNIERES-EN-BESSIN - 14023","ARNIERES-SUR-ITON - 27020","AUMEVILLE-LESTRE - 50022","AVOINE - 61020","ANNOUVILLE-VILMESNIL - 76021"]
[1,"Argus frêle",null,null,null,null,null,null,null,null,null,null,null,null,null,null,null,null,null,null,null,null,null,null,null,null,null,"-",null,null,null,null,null,null,"AUBERVILLE - 14024","ASNIERES - 27021","AUVERS - 50023","AVRILLY - 61021","ANQUETIERVILLE - 76022"]
[0,"Argus vert",null,null,null,null,null,null,null,null,null,null,null,null,null,null,null,null,null,null,null,null,null,null,null,null,null,"-",null,null,null,null,null,null,"AUBIGNY - 14025","AUBEVOYE - 27022","AUXAIS - 50024","BAILLEUL - 61023","ANVEVILLE - 76023"]
[1,"Aurore",null,null,null,null,null,null,null,null,null,null,null,null,null,null,null,null,null,null,null,null,null,null,null,null,null,"-",null,null,null,null,null,null,"AUDRIEU - 14026","AULNAY-SUR-ITON - 27023","AVRANCHES - 50025","BANVOU - 61024","ARDOUVAL - 76024"]
[0,"Azuré bleu-céleste",null,null,null,null,null,null,null,null,null,null,null,null,null,null,null,null,null,null,null,null,null,null,null,null,null,"-",null,null,null,null,null,null,"AUNAY-SUR-ODON - 14027","LE RONCENAY-AUTHENAY - 27024","AZEVILLE - 50026","LA BAROCHE-SOUS-LUCE - 61025","ARGUEIL - 76025"]
[1,"Azuré commun",null,null,null,null,null,null,null,null,null,null,null,null,null,null,null,null,null,null,null,null,null,null,null,null,null,"-",null,null,null,null,null,null,"AUQUAINVILLE - 14028","AUTHEUIL-AUTHOUILLET - 27025","BACILLY - 50027","BARVILLE - 61026","ARQUES-LA-BATAILLE - 76026"]
[0,"Azuré des Nerpruns",null,null,null,null,null,null,null,null,null,null,null,null,null,null,null,null,null,null,null,null,null,null,null,null,null,"-",null,null,null,null,null,null,"LES AUTELS-SAINT-BAZILE - 14029","AUTHEVERNES - 27026","LA BALEINE - 50028","BATILLY - 61027","ASSIGNY - 76027"]
[1,"Belle-Dame",null,null,null,null,null,null,null,null,null,null,null,null,null,null,null,null,null,null,null,null,null,null,null,null,null,"-",null,null,null,null,null,null,"AUTHIE - 14030","LES AUTHIEUX - 27027","BARENTON - 50029","BAZOCHES-AU-HOULME - 61028","AUBEGUIMONT - 76028"]
[0,"Brun des Pélargonium",null,null,null,null,null,null,null,null,null,null,null,null,null,null,null,null,null,null,null,null,null,null,null,null,null,"-",null,null,null,null,null,null,"LES AUTHIEUX-PAPION - 14031","AUTHOU - 27028","BARFLEUR - 50030","BAZOCHES-SUR-HOENE - 61029","AUBERMESNIL-AUX-ERABLES - 76029"]
[1,"Carte géographique",null,null,null,null,null,null,null,null,null,null,null,null,null,null,null,null,null,null,null,null,null,null,null,null,null,"-",null,null,null,null,null,null,"LES AUTHIEUX-SUR-CALONNE - 14032","AVIRON - 27031","BARNEVILLE-CARTERET - 50031","LA BAZOQUE - 61030","AUBERMESNIL-BEAUMAIS - 76030"]
[0,"Céphale",null,null,null,null,null,null,null,null,null,null,null,null,null,null,null,null,null,null,null,null,null,null,null,null,null,"-",null,null,null,null,null,null,"AUVILLARS - 14033","AVRILLY - 27032","LA BARRE-DE-SEMILLY - 50032","BEAUCHENE - 61031","AUBERVILLE-LA-CAMPAGNE - 76031"]
[1,"Citron",null,null,null,null,null,null,null,null,null,null,null,null,null,null,null,null,null,null,null,null,null,null,null,null,null,"-",null,null,null,null,null,null,"AVENAY - 14034","BACQUEPUIS - 27033","BAUBIGNY - 50033","BEAUFAI - 61032","AUBERVILLE-LA-MANUEL - 76032"]
[0,"Collier-de-corail",null,null,null,null,null,null,null,null,null,null,null,null,null,null,null,null,null,null,null,null,null,null,null,null,null,"-",null,null,null,null,null,null,"BALLEROY - 14035","BACQUEVILLE - 27034","BAUDRE - 50034","BEAULANDAIS - 61033","AUBERVILLE-LA-RENAULT - 76033"]
[1,"Cuivré commun",null,null,null,null,null,null,null,null,null,null,null,null,null,null,null,null,null,null,null,null,null,null,null,null,null,"-",null,null,null,null,null,null,"BANNEVILLE-LA-CAMPAGNE - 14036","BAILLEUL-LA-VALLEE - 27035","BAUDREVILLE - 50035","BEAULIEU - 61034","AUFFAY - 76034"]
[0,"Cuivré fuligineux",null,null,null,null,null,null,null,null,null,null,null,null,null,null,null,null,null,null,null,null,null,null,null,null,null,"-",null,null,null,null,null,null,"BANNEVILLE-SUR-AJON - 14037","BALINES - 27036","BAUPTE - 50036","BEAUVAIN - 61035","AUMALE - 76035"]
[1,"Damier de la Succise",null,null,null,null,null,null,null,null,null,null,null,null,null,null,null,null,null,null,null,null,null,null,null,null,null,"-",null,null,null,null,null,null,"BANVILLE - 14038","BARC - 27037","LA BAZOGE - 50037","BELFONDS - 61036","AUPPEGARD - 76036"]
[0,"Demi-Argus",null,null,null,null,null,null,null,null,null,null,null,null,null,null,null,null,null,null,null,null,null,null,null,null,null,"-",null,null,null,null,null,null,"BARBERY - 14039","LES BARILS - 27038","BEAUCHAMPS - 50038","BELLAVILLIERS - 61037","AUQUEMESNIL - 76037"]
[1,"Demi-Deuil",null,null,null,null,null,null,null,null,null,null,null,null,null,null,null,null,null,null,null,null,null,null,null,null,null,"-",null,null,null,null,null,null,"BARBEVILLE - 14040","BARNEVILLE-SUR-SEINE - 27039","BEAUCOUDRAY - 50039","BELLEME - 61038","AUTHIEUX-RATIEVILLE - 76038"]
[0,"Fadet commun",null,null,null,null,null,null,null,null,null,null,null,null,null,null,null,null,null,null,null,null,null,null,null,null,null,"-",null,null,null,null,null,null,"BARNEVILLE-LA-BERTRAN - 14041","BARQUET - 27040","BEAUFICEL - 50040","LA BELLIERE - 61039","LES AUTHIEUX-SUR-LE-PORT-SAINT-OUEN - 76039"]
[1,"Flambé",null,null,null,null,null,null,null,null,null,null,null,null,null,null,null,null,null,null,null,null,null,null,null,null,null,"-",null,null,null,null,null,null,"BARON-SUR-ODON - 14042","LA BARRE-EN-OUCHE - 27041","BEAUMONT-HAGUE - 50041","BELLOU-EN-HOULME - 61040","AUTIGNY - 76040"]
[0,"Fluoré",null,null,null,null,null,null,null,null,null,null,null,null,null,null,null,null,null,null,null,null,null,null,null,null,null,"-",null,null,null,null,null,null,"BAROU-EN-AUGE - 14043","BARVILLE - 27042","BEAUVOIR - 50042","BELLOU-LE-TRICHARD - 61041","AUTRETOT - 76041"]
[1,"Grand Mars changeant",null,null,null,null,null,null,null,null,null,null,null,null,null,null,null,null,null,null,null,null,null,null,null,null,null,"-",null,null,null,null,null,null,"BASLY - 14044","LES BAUX-DE-BRETEUIL - 27043","BELLEFONTAINE - 50043","BELLOU-SUR-HUISNE - 61042","AUVILLIERS - 76042"]
[0,"Grande Tortue",null,null,null,null,null,null,null,null,null,null,null,null,null,null,null,null,null,null,null,null,null,null,null,null,null,"-",null,null,null,null,null,null,"BASSENEVILLE - 14045","LES BAUX-SAINTE-CROIX - 27044","BELVAL - 50044","BERD'HUIS - 61043","AUZEBOSC - 76043"]
[1,"Hespérie de la Houque",null,null,null,null,null,null,null,null,null,null,null,null,null,null,null,null,null,null,null,null,null,null,null,null,null,"-",null,null,null,null,null,null,"BAVENT - 14046","BAZINCOURT-SUR-EPTE - 27045","BENOITVILLE - 50045","BERJOU - 61044","AUZOUVILLE-AUBERBOSC - 76044"]
[0,"Hespérie de l'Alcée",null,null,null,null,null,null,null,null,null,null,null,null,null,null,null,null,null,null,null,null,null,null,null,null,null,"-",null,null,null,null,null,null,"BAYEUX - 14047","BAZOQUES - 27046","BERIGNY - 50046","BIVILLIERS - 61045","AUZOUVILLE-L'ESNEVAL - 76045"]
[1,"Hespérie des Sanguisorbes",null,null,null,null,null,null,null,null,null,null,null,null,null,null,null,null,null,null,null,null,null,null,null,null,null,"-",null,null,null,null,null,null,"BAZENVILLE - 14049","BEAUBRAY - 27047","BESLON - 50048","BIZOU - 61046","AUZOUVILLE-SUR-RY - 76046"]
[0,"Hespérie du Dactyle",null,null,null,null,null,null,null,null,null,null,null,null,null,null,null,null,null,null,null,null,null,null,null,null,null,"-",null,null,null,null,null,null,"LA BAZOQUE - 14050","BEAUFICEL-EN-LYONS - 27048","BESNEVILLE - 50049","BOCQUENCE - 61047","AUZOUVILLE-SUR-SAANE - 76047"]
[1,"Lucine",null,null,null,null,null,null,null,null,null,null,null,null,null,null,null,null,null,null,null,null,null,null,null,null,null,"-",null,null,null,null,null,null,"BEAULIEU - 14052","BEAUMESNIL - 27049","BEUVRIGNY - 50050","BOECE - 61048","AVESNES-EN-BRAY - 76048"]
[0,"Machaon",null,null,null,null,null,null,null,null,null,null,null,null,null,null,null,null,null,null,null,null,null,null,null,null,null,"-",null,null,null,null,null,null,"BEAUMAIS - 14053","BEAUMONTEL - 27050","BEUZEVILLE-AU-PLAIN - 50051","BOISSEI-LA-LANDE - 61049","AVESNES-EN-VAL - 76049"]
[1,"Mégère",null,null,null,null,null,null,null,null,null,null,null,null,null,null,null,null,null,null,null,null,null,null,null,null,null,"-",null,null,null,null,null,null,"BEAUMESNIL - 14054","BEAUMONT-LE-ROGER - 27051","BEUZEVILLE-LA-BASTILLE - 50052","BOISSY-MAUGIS - 61050","AVREMESNIL - 76050"]
[0,"Mélitée du Plantain",null,null,null,null,null,null,null,null,null,null,null,null,null,null,null,null,null,null,null,null,null,null,null,null,null,"-",null,null,null,null,null,null,"BEAUMONT-EN-AUGE - 14055","LE BEC-HELLOUIN - 27052","BIEVILLE - 50054","BOITRON - 61051","BACQUEVILLE-EN-CAUX - 76051"]
[1,"Miroir",null,null,null,null,null,null,null,null,null,null,null,null,null,null,null,null,null,null,null,null,null,null,null,null,null,{"$f":"IF((COUNTA(C52:Z52))=0,\"-\",COUNTA(C52:Z52)*100/$AB$18)","v":"-"},null,null,null,null,null,null,"BAUQUAY - 14056","LE BEC-THOMAS - 27053","BINIVILLE - 50055","BONNEFOI - 61052","BAILLEUL-NEUVILLE - 76052"]
[0,"Myrtil",null,null,null,null,null,null,null,null,null,null,null,null,null,null,null,null,null,null,null,null,null,null,null,null,null,"-",null,null,null,null,null,null,"BELLENGREVILLE - 14057","BEMECOURT - 27054","BION - 50056","BONSMOULINS - 61053","BAILLOLET - 76053"]
[1,"Paon-du-jour",null,null,null,null,null,null,null,null,null,null,null,null,null,null,null,null,null,null,null,null,null,null,null,null,null,"-",null,null,null,null,null,null,"BELLOU - 14058","BERENGEVILLE-LA-CAMPAGNE - 27055","BIVILLE - 50057","LE BOSC-RENOULT - 61054","BAILLY-EN-RIVIERE - 76054"]
[0,"Petit Mars changeant",null,null,null,null,null,null,null,null,null,null,null,null,null,null,null,null,null,null,null,null,null,null,null,null,null,"-",null,null,null,null,null,null,"BENERVILLE-SUR-MER - 14059","BERNAY - 27056","BLAINVILLE-SUR-MER - 50058","BOUCE - 61055","BAONS-LE-COMTE - 76055"]
[1,"Petit Nacré",null,null,null,null,null,null,null,null,null,null,null,null,null,null,null,null,null,null,null,null,null,null,null,null,null,"-",null,null,null,null,null,null,"BENOUVILLE - 14060","BERNIENVILLE - 27057","BLOSVILLE - 50059","LE BOUILLON - 61056","BARDOUVILLE - 76056"]
[0,"Petit Sylvain",null,null,null,null,null,null,null,null,null,null,null,null,null,null,null,null,null,null,null,null,null,null,null,null,null,"-",null,null,null,null,null,null,"LE BENY-BOCAGE - 14061","BERNIERES-SUR-SEINE - 27058","LA BLOUTIERE - 50060","LE BOURG-SAINT-LEONARD - 61057","BARENTIN - 76057"]
[1,"Petite Tortue",null,null,null,null,null,null,null,null,null,null,null,null,null,null,null,null,null,null,null,null,null,null,null,null,null,"-",null,null,null,null,null,null,"BENY-SUR-MER - 14062","BERNOUVILLE - 27059","BOISROGER - 50061","BREEL - 61058","BAROMESNIL - 76058"]
[0,"Petite Violette",null,null,null,null,null,null,null,null,null,null,null,null,null,null,null,null,null,null,null,null,null,null,null,null,null,"-",null,null,null,null,null,null,"BERNESQ - 14063","BERTHENONVILLE - 27060","BOISYVON - 50062","BRESOLETTES - 61059","BAZINVAL - 76059"]
[1,"Piéride de la Moutarde",null,null,null,null,null,null,null,null,null,null,null,null,null,null,null,null,null,null,null,null,null,null,null,null,null,"-",null,null,null,null,null,null,"BERNIERES-D'AILLY - 14064","BERTHOUVILLE - 27061","BOLLEVILLE - 50063","BRETHEL - 61060","BEAUBEC-LA-ROSIERE - 76060"]
[0,"Piéride de la Rave",null,null,null,null,null,null,null,null,null,null,null,null,null,null,null,null,null,null,null,null,null,null,null,null,null,"-",null,null,null,null,null,null,"BERNIERES-LE-PATRY - 14065","BERVILLE-EN-ROUMOIS - 27062","LA BONNEVILLE - 50064","BRETONCELLES - 61061","BEAUMONT-LE-HARENG - 76062"]
[1,"Piéride du Chou",null,null,null,null,null,null,null,null,null,null,null,null,null,null,null,null,null,null,null,null,null,null,null,null,null,"-",null,null,null,null,null,null,"BERNIERES-SUR-MER - 14066","BERVILLE-LA-CAMPAGNE - 27063","JULLOUVILLE - 50066","BRIEUX - 61062","BEAUVAL-EN-CAUX - 76063"]
[0,"Piéride du Navet",null,null,null,null,null,null,null,null,null,null,null,null,null,null,null,null,null,null,null,null,null,null,null,null,null,"-",null,null,null,null,null,null,"BIEVILLE-BEUVILLE - 14068","BERVILLE-SUR-MER - 27064","BOURGUENOLLES - 50069","BRIOUZE - 61063","BEAUREPAIRE - 76064"]
[1,"Point-de-Hongrie",null,null,null,null,null,null,null,null,null,null,null,null,null,null,null,null,null,null,null,null,null,null,null,null,null,"-",null,null,null,null,null,null,"BEUVILLERS - 14069","BEUZEVILLE - 27065","BOUTTEVILLE - 50070","BRULLEMAIL - 61064","BEAUSSAULT - 76065"]
[0,"Robert-le-Diable",null,null,null,null,null,null,null,null,null,null,null,null,null,null,null,null,null,null,null,null,null,null,null,null,null,"-",null,null,null,null,null,null,"BEUVRON-EN-AUGE - 14070","BEZU-LA-FORET - 27066","BRAFFAIS - 50071","BUBERTRE - 61065","BEAUTOT - 76066"]
[1,"Souci",null,null,null,null,null,null,null,null,null,null,null,null,null,null,null,null,null,null,null,null,null,null,null,null,null,"-",null,null,null,null,null,null,"LA BIGNE - 14073","BEZU-SAINT-ELOI - 27067","BRAINVILLE - 50072","BURE - 61066","BEAUVOIR-EN-LYONS - 76067"]
[0,"Sylvaine",null,null,null,null,null,null,null,null,null,null,null,null,null,null,null,null,null,null,null,null,null,null,null,null,null,"-",null,null,null,null,null,null,"BILLY - 14074","BOIS-ANZERAY - 27068","BRANVILLE-HAGUE - 50073","BURES - 61067","BEC-DE-MORTAGNE - 76068"]
[1,"Tabac d'Espagne",null,null,null,null,null,null,null,null,null,null,null,null,null,null,null,null,null,null,null,null,null,null,null,null,null,"-",null,null,null,null,null,null,"BISSIERES - 14075","BOIS-ARNAULT - 27069","BRECEY - 50074","BURSARD - 61068","BELBEUF - 76069"]
[0,"Thécla du Bouleau",null,null,null,null,null,null,null,null,null,null,null,null,null,null,null,null,null,null,null,null,null,null,null,null,null,"-",null,null,null,null,null,null,"BLAINVILLE-SUR-ORNE - 14076","BOISEMONT - 27070","BRECTOUVILLE - 50075","CAHAN - 61069","BELLENCOMBRE - 76070"]
[1,"Thécla du Chêne",null,null,null,null,null,null,null,null,null,null,null,null,null,null,null,null,null,null,null,null,null,null,null,null,null,"-",null,null,null,null,null,null,"BLANGY-LE-CHATEAU - 14077","LE BOIS-HELLAIN - 27071","BREHAL - 50076","CALIGNY - 61070","BELLENGREVILLE - 76071"]
[0,"Tircis",null,null,null,null,null,null,null,null,null,null,null,null,null,null,null,null,null,null,null,null,null,null,null,null,null,"-",null,null,null,null,null,null,"BLAY - 14078","BOIS-JEROME-SAINT-OUEN - 27072","BRETTEVILLE - 50077","CAMEMBERT - 61071","BELLEVILLE-EN-CAUX - 76072"]
[1,"Tristan",null,null,null,null,null,null,null,null,null,null,null,null,null,null,null,null,null,null,null,null,null,null,null,null,null,"-",null,null,null,null,null,null,"BLONVILLE-SUR-MER - 14079","BOIS-LE-ROI - 27073","BRETTEVILLE-SUR-AY - 50078","CANAPVILLE - 61072","BELLEVILLE-SUR-MER - 76073"]
[0,"Vulcain",null,null,null,null,null,null,null,null,null,null,null,null,null,null,null,null,null,null,null,null,null,null,null,null,null,"-",null,null,null,null,null,null,"LE BO - 14080","BOISNEY - 27074","BREUVILLE - 50079","LA CARNEILLE - 61073","LA BELLIERE - 76074"]
[1,"Zygène de Carniole",null,null,null,null,null,null,null,null,null,null,null,null,null,null,null,null,null,null,null,null,null,null,null,null,null,"-",null,null,null,null,null,null,"BOISSEY - 14081","BOIS-NORMAND-PRES-LYRE - 27075","BREVANDS - 50080","CARROUGES - 61074","BELMESNIL - 76075"]
[0,"Zygène de la Filipendule",null,null,null,null,null,null,null,null,null,null,null,null,null,null,null,null,null,null,null,null,null,null,null,null,null,"-",null,null,null,null,null,null,"LA BOISSIERE - 14082","BOISSET-LES-PREVANCHES - 27076","BREVILLE-SUR-MER - 50081","CEAUCE - 61075","BENARVILLE - 76076"]
[1,"Zygène des prés",null,null,null,null,null,null,null,null,null,null,null,null,null,null,null,null,null,null,null,null,null,null,null,null,null,"-",null,null,null,null,null,null,"BONNEBOSQ - 14083","BOISSEY-LE-CHATEL - 27077","BRICQUEBEC - 50082","LE CERCUEIL - 61076","BENESVILLE - 76077"]
[0,null,null,null,null,null,null,null,null,null,null,null,null,null,null,null,null,null,null,null,null,null,null,null,null,null,null,null,null,null,null,null,null,null,"BONNEMAISON - 14084","LA BOISSIERE - 27078","BRICQUEBOSQ - 50083","CERISE - 61077","BENNETOT - 76078"]
[1,"Nombre mensuel d'espèces =",{"$f":"IF(C18=\"Non\",\"Non\",COUNTA(C20:C76))","v":0},0,0,0,0,0,0,0,0,0,0,0,0,0,0,0,0,0,0,0,0,0,0,0,null,{"$f":"(COUNTA(AB20:AB76)-(COUNTIF(AB20:AB76,\"-\")))","v":0},null,null,null,null,null,null,"BONNEVILLE-LA-LOUVET - 14085","BOISSY-LAMBERVILLE - 27079","BRICQUEVILLE-LA-BLOUETTE - 50084","CERISY-BELLE-ETOILE - 61078","BENOUVILLE - 76079"]
[null,"Nombe mensuel d'individus = ",{"$f":"IF(C18=\"Non\",\"Non\",SUM(C20:C76))","v":0},0,0,0,0,0,0,0,0,0,0,0,0,0,0,0,0,0,0,0,0,0,0,0,null,null,null,null,null,null,null,null,"BONNEVILLE-SUR-TOUQUES - 14086","BONCOURT - 27081","BRICQUEVILLE-SUR-MER - 50085","CETON - 61079","BERMONVILLE - 76080"]
[null,null,null,null,null,null,null,null,null,null,null,null,null,null,null,null,null,null,null,null,null,null,null,null,null,null,null,null,null,null,null,null,null,null,"BONNOEIL - 14087","LA BONNEVILLE-SUR-ITON - 27082","BRILLEVAST - 50086","CHAHAINS - 61080","BERNEVAL-LE-GRAND - 76081"]
[null,null,"Fiche à retourner par mail à l'adresse suivante :",null,null,null,null,null,null,null,null,"fichesentomo-lponormandie@orange.fr",null,null,null,null,null,null,null,null,null,null,null,null,null,null,null,null,null,null,null,null,null,null,"BONS-TASSILLY - 14088","BONNEVILLE-APTOT - 27083","BRIX - 50087","CHAILLOUE - 61081","BERNIERES - 76082"]
[null,null,null,null,null,null,null,null,null,null,null,null,null,null,null,null,null,null,null,null,null,null,null,null,null,null,null,null,null,null,null,null,null,null,"BOUGY - 14089","BOSC-BENARD-COMMIN - 27084","BROUAINS - 50088","LE CHALANGE - 61082","BERTHEAUVILLE - 76083"]
[null,null,null,null,null,null,null,null,null,null,null,null,null,null,null,null,null,null,null,null,null,null,null,null,null,null,null,null,null,null,null,null,null,null,"BOULON - 14090","BOSC-BENARD-CRESCY - 27085","BRUCHEVILLE - 50089","CHAMBOIS - 61083","BERTREVILLE - 76084"]
[null,null,null,null,null,null,null,null,null,null,null,null,null,null,null,null,null,null,null,null,null,null,null,null,null,null,null,null,null,null,null,null,null,null,"BOURGEAUVILLE - 14091","BOSC-RENOULT-EN-OUCHE - 27088","BUAIS - 50090","CHAMPCERIE - 61084","BERTREVILLE-SAINT-OUEN - 76085"]
[null,null,null,null,null,null,null,null,null,null,null,null,null,null,null,null,null,null,null,null,null,null,null,null,null,null,null,null,null,null,null,null,null,null,"BOURGUEBUS - 14092","BOSC-RENOULT-EN-ROUMOIS - 27089","CAMBERNON - 50092","LE CHAMP-DE-LA-PIERRE - 61085","BERTRIMONT - 76086"]
[null,null,null,null,null,null,null,null,null,null,null,null,null,null,null,null,null,null,null,null,null,null,null,null,null,null,null,null,null,null,null,null,null,null,"BRANVILLE - 14093","LE BOSC-ROGER-EN-ROUMOIS - 27090","CAMETOURS - 50093","LES CHAMPEAUX - 61086","BERVILLE - 76087"]
[null,null,null,null,null,null,null,null,null,null,null,null,null,null,null,null,null,null,null,null,null,null,null,null,null,null,null,null,null,null,null,null,null,null,"BREMOY - 14096","BOSGOUET - 27091","CAMPROND - 50094","CHAMPEAUX-SUR-SARTHE - 61087","BERVILLE-SUR-SEINE - 76088"]
[null,null,null,null,null,null,null,null,null,null,null,null,null,null,null,null,null,null,null,null,null,null,null,null,null,null,null,null,null,null,null,null,null,null,"BRETTEVILLE-LE-RABET - 14097","BOSGUERARD-DE-MARCOUVILLE - 27092","CANISY - 50095","CHAMP-HAUT - 61088","BETTEVILLE - 76089"]
[null,null,null,null,null,null,null,null,null,null,null,null,null,null,null,null,null,null,null,null,null,null,null,null,null,null,null,null,null,null,null,null,null,null,"BRETTEVILLE-L'ORGUEILLEUSE - 14098","BOSNORMAND - 27093","CANTELOUP - 50096","CHAMPOSOULT - 61089","BEUZEVILLE-LA-GRENIER - 76090"]
[null,null,null,null,null,null,null,null,null,null,null,null,null,null,null,null,null,null,null,null,null,null,null,null,null,null,null,null,null,null,null,null,null,null,"BRETTEVILLE-SUR-DIVES - 14099","BOSQUENTIN - 27094","CANVILLE-LA-ROCQUE - 50097","CHAMPS - 61090","BEUZEVILLE-LA-GUERARD - 76091"]
[null,null,null,null,null,null,null,null,null,null,null,null,null,null,null,null,null,null,null,null,null,null,null,null,null,null,null,null,null,null,null,null,null,null,"BRETTEVILLE-SUR-LAIZE - 14100","BOSROBERT - 27095","CARANTILLY - 50098","CHAMPSECRET - 61091","BEUZEVILLETTE - 76092"]
[null,null,null,null,null,null,null,null,null,null,null,null,null,null,null,null,null,null,null,null,null,null,null,null,null,null,null,null,null,null,null,null,null,null,"BRETTEVILLE-SUR-ODON - 14101","LES BOTTEREAUX - 27096","CARENTAN - 50099","CHANDAI - 61092","BEZANCOURT - 76093"]
[null,null,null,null,null,null,null,null,null,null,null,null,null,null,null,null,null,null,null,null,null,null,null,null,null,null,null,null,null,null,null,null,null,null,"LE BREUIL-EN-AUGE - 14102","BOUAFLES - 27097","CARNET - 50100","CHANU - 61093","BIERVILLE - 76094"]
[null,null,null,null,null,null,null,null,null,null,null,null,null,null,null,null,null,null,null,null,null,null,null,null,null,null,null,null,null,null,null,null,null,null,"LE BREUIL-EN-BESSIN - 14103","BOUCHEVILLIERS - 27098","CARNEVILLE - 50101","LA CHAPELLE-AU-MOINE - 61094","BIHOREL - 76095"]
[null,null,null,null,null,null,null,null,null,null,null,null,null,null,null,null,null,null,null,null,null,null,null,null,null,null,null,null,null,null,null,null,null,null,"LE BREVEDENT - 14104","LE BOULAY-MORIN - 27099","CAROLLES - 50102","LA CHAPELLE-BICHE - 61095","BIVILLE-LA-BAIGNARDE - 76096"]
[null,null,null,null,null,null,null,null,null,null,null,null,null,null,null,null,null,null,null,null,null,null,null,null,null,null,null,null,null,null,null,null,null,null,"LA BREVIERE - 14105","BOULLEVILLE - 27100","CARQUEBUT - 50103","LA CHAPELLE-D'ANDAINE - 61096","BIVILLE-LA-RIVIERE - 76097"]
[null,null,null,null,null,null,null,null,null,null,null,null,null,null,null,null,null,null,null,null,null,null,null,null,null,null,null,null,null,null,null,null,null,null,"BREVILLE-LES-MONTS - 14106","BOUQUELON - 27101","CATTEVILLE - 50105","LA CHAPELLE-MONTLIGEON - 61097","BIVILLE-SUR-MER - 76098"]
[null,null,null,null,null,null,null,null,null,null,null,null,null,null,null,null,null,null,null,null,null,null,null,null,null,null,null,null,null,null,null,null,null,null,"BRICQUEVILLE - 14107","BOUQUETOT - 27102","CAVIGNY - 50106","LA CHAPELLE-PRES-SEES - 61098","BLACQUEVILLE - 76099"]
[null,null,null,null,null,null,null,null,null,null,null,null,null,null,null,null,null,null,null,null,null,null,null,null,null,null,null,null,null,null,null,null,null,null,"BROUAY - 14109","BOURG-ACHARD - 27103","CATZ - 50107","LA CHAPELLE-SOUEF - 61099","BLAINVILLE-CREVON - 76100"]
[null,null,null,null,null,null,null,null,null,null,null,null,null,null,null,null,null,null,null,null,null,null,null,null,null,null,null,null,null,null,null,null,null,null,"BRUCOURT - 14110","BOURG-BEAUDOUIN - 27104","CEAUX - 50108","LA CHAPELLE-VIEL - 61100","BLANGY-SUR-BRESLE - 76101"]
[null,null,null,null,null,null,null,null,null,null,null,null,null,null,null,null,null,null,null,null,null,null,null,null,null,null,null,null,null,null,null,null,null,null,"BUCEELS - 14111","BOURGTHEROULDE-INFREVILLE - 27105","CERENCES - 50109","LE CHATEAU-D'ALMENECHES - 61101","BONSECOURS - 76103"]
[null,null,null,null,null,null,null,null,null,null,null,null,null,null,null,null,null,null,null,null,null,null,null,null,null,null,null,null,null,null,null,null,null,null,"BURCY - 14113","BOURNAINVILLE-FAVEROLLES - 27106","CERISY-LA-FORET - 50110","LE CHATELLIER - 61102","BLOSSEVILLE - 76104"]
[null,null,null,null,null,null,null,null,null,null,null,null,null,null,null,null,null,null,null,null,null,null,null,null,null,null,null,null,null,null,null,null,null,null,"BURES-LES-MONTS - 14115","BOURNEVILLE - 27107","CERISY-LA-SALLE - 50111","CHAUMONT - 61103","LE BOCASSE - 76105"]
[null,null,null,null,null,null,null,null,null,null,null,null,null,null,null,null,null,null,null,null,null,null,null,null,null,null,null,null,null,null,null,null,null,null,"LE BU-SUR-ROUVRES - 14116","BOURTH - 27108","LA CHAISE-BAUDOUIN - 50112","LA CHAUX - 61104","BOIS-D'ENNEBOURG - 76106"]
[null,null,null,null,null,null,null,null,null,null,null,null,null,null,null,null,null,null,null,null,null,null,null,null,null,null,null,null,null,null,null,null,null,null,"CABOURG - 14117","BRAY - 27109","LES CHAMBRES - 50114","CHEMILLI - 61105","BOIS-GUILBERT - 76107"]
[null,null,null,null,null,null,null,null,null,null,null,null,null,null,null,null,null,null,null,null,null,null,null,null,null,null,null,null,null,null,null,null,null,null,"CAEN - 14118","BRESTOT - 27110","CHAMPCERVON - 50115","CHENEDOUIT - 61106","BOIS-GUILLAUME - 76108"]
[null,null,null,null,null,null,null,null,null,null,null,null,null,null,null,null,null,null,null,null,null,null,null,null,null,null,null,null,null,null,null,null,null,null,"CAGNY - 14119","BRETAGNOLLES - 27111","CHAMPCEY - 50116","CIRAL - 61107","BOIS-HEROULT - 76109"]
[null,null,null,null,null,null,null,null,null,null,null,null,null,null,null,null,null,null,null,null,null,null,null,null,null,null,null,null,null,null,null,null,null,null,"CAHAGNES - 14120","BRETEUIL - 27112","CHAMPEAUX - 50117","CISAI-SAINT-AUBIN - 61108","BOIS-HIMONT - 76110"]
[null,null,null,null,null,null,null,null,null,null,null,null,null,null,null,null,null,null,null,null,null,null,null,null,null,null,null,null,null,null,null,null,null,null,"CAHAGNOLLES - 14121","BRETIGNY - 27113","CHAMPREPUS - 50118","CLAIREFOUGERE - 61109","BOIS-L'EVEQUE - 76111"]
[null,null,null,null,null,null,null,null,null,null,null,null,null,null,null,null,null,null,null,null,null,null,null,null,null,null,null,null,null,null,null,null,null,null,"LA CAINE - 14122","BREUILPONT - 27114","LES CHAMPS-DE-LOSQUE - 50119","LA COCHERE - 61110","LE BOIS-ROBERT - 76112"]
[null,null,null,null,null,null,null,null,null,null,null,null,null,null,null,null,null,null,null,null,null,null,null,null,null,null,null,null,null,null,null,null,null,null,"CAIRON - 14123","BREUX-SUR-AVRE - 27115","CHANTELOUP - 50120","COLOMBIERS - 61111","BOISSAY - 76113"]
[null,null,null,null,null,null,null,null,null,null,null,null,null,null,null,null,null,null,null,null,null,null,null,null,null,null,null,null,null,null,null,null,null,null,"LA CAMBE - 14124","BRIONNE - 27116","LA CHAPELLE-CECELIN - 50121","COLONARD-CORUBERT - 61112","BOLBEC - 76114"]
[null,null,null,null,null,null,null,null,null,null,null,null,null,null,null,null,null,null,null,null,null,null,null,null,null,null,null,null,null,null,null,null,null,null,"CAMBES-EN-PLAINE - 14125","BROGLIE - 27117","LA CHAPELLE-EN-JUGER - 50123","COMBLOT - 61113","BOLLEVILLE - 76115"]
[null,null,null,null,null,null,null,null,null,null,null,null,null,null,null,null,null,null,null,null,null,null,null,null,null,null,null,null,null,null,null,null,null,null,"CAMBREMER - 14126","BROSVILLE - 27118","LA CHAPELLE-UREE - 50124","COMMEAUX - 61114","BOOS - 76116"]
[null,null,null,null,null,null,null,null,null,null,null,null,null,null,null,null,null,null,null,null,null,null,null,null,null,null,null,null,null,null,null,null,null,null,"CAMPAGNOLLES - 14127","BUEIL - 27119","CHASSEGUEY - 50125","CONDEAU - 61115","BORDEAUX-SAINT-CLAIR - 76117"]
[null,null,null,null,null,null,null,null,null,null,null,null,null,null,null,null,null,null,null,null,null,null,null,null,null,null,null,null,null,null,null,null,null,null,"CAMPANDRE-VALCONGRAIN - 14128","BUREY - 27120","CHAVOY - 50126","CONDE-SUR-HUISNE - 61116","BORNAMBUSC - 76118"]
[null,null,null,null,null,null,null,null,null,null,null,null,null,null,null,null,null,null,null,null,null,null,null,null,null,null,null,null,null,null,null,null,null,null,"CAMPEAUX - 14129","BUS-SAINT-REMY - 27121","CHEF-DU-PONT - 50127","CONDE-SUR-SARTHE - 61117","BOSC-BERENGER - 76119"]
[null,null,null,null,null,null,null,null,null,null,null,null,null,null,null,null,null,null,null,null,null,null,null,null,null,null,null,null,null,null,null,null,null,null,"CAMPIGNY - 14130","CAHAIGNES - 27122","LE CHEFRESNE - 50128","CORBON - 61118","BOSC-BORDEL - 76120"]
[null,null,null,null,null,null,null,null,null,null,null,null,null,null,null,null,null,null,null,null,null,null,null,null,null,null,null,null,null,null,null,null,null,null,"CANAPVILLE - 14131","CAILLOUET-ORGEVILLE - 27123","CHERBOURG-OCTEVILLE - 50129","COUDEHARD - 61120","BOSC-EDELINE - 76121"]
[null,null,null,null,null,null,null,null,null,null,null,null,null,null,null,null,null,null,null,null,null,null,null,null,null,null,null,null,null,null,null,null,null,null,"CANCHY - 14132","CAILLY-SUR-EURE - 27124","CHERENCE-LE-HERON - 50130","COULIMER - 61121","CALLENGEVILLE - 76122"]
[null,null,null,null,null,null,null,null,null,null,null,null,null,null,null,null,null,null,null,null,null,null,null,null,null,null,null,null,null,null,null,null,null,null,"CANTELOUP - 14134","CALLEVILLE - 27125","CHERENCE-LE-ROUSSEL - 50131","COULMER - 61122","BOSC-GUERARD-SAINT-ADRIEN - 76123"]
[null,null,null,null,null,null,null,null,null,null,null,null,null,null,null,null,null,null,null,null,null,null,null,null,null,null,null,null,null,null,null,null,null,null,"CARCAGNY - 14135","CAMPIGNY - 27126","LES CHERIS - 50132","COULONCES - 61123","BOSC-HYONS - 76124"]
[null,null,null,null,null,null,null,null,null,null,null,null,null,null,null,null,null,null,null,null,null,null,null,null,null,null,null,null,null,null,null,null,null,null,"CARDONVILLE - 14136","CANAPPEVILLE - 27127","CHEVREVILLE - 50133","LA COULONCHE - 61124","BOSC-LE-HARD - 76125"]
[null,null,null,null,null,null,null,null,null,null,null,null,null,null,null,null,null,null,null,null,null,null,null,null,null,null,null,null,null,null,null,null,null,null,"CARPIQUET - 14137","CANTIERS - 27128","CHEVRY - 50134","COULONGES-LES-SABLONS - 61125","BOSC-MESNIL - 76126"]
[null,null,null,null,null,null,null,null,null,null,null,null,null,null,null,null,null,null,null,null,null,null,null,null,null,null,null,null,null,null,null,null,null,null,"CARTIGNY-L'EPINAY - 14138","CAORCHES-SAINT-NICOLAS - 27129","CLITOURPS - 50135","COULONGES-SUR-SARTHE - 61126","BOSC-ROGER-SUR-BUCHY - 76127"]
[null,null,null,null,null,null,null,null,null,null,null,null,null,null,null,null,null,null,null,null,null,null,null,null,null,null,null,null,null,null,null,null,null,null,"CARVILLE - 14139","CAPELLE-LES-GRANDS - 27130","COIGNY - 50136","LA COURBE - 61127","BOSVILLE - 76128"]
[null,null,null,null,null,null,null,null,null,null,null,null,null,null,null,null,null,null,null,null,null,null,null,null,null,null,null,null,null,null,null,null,null,null,"CASTILLON - 14140","CARSIX - 27131","LA COLOMBE - 50137","COURCERAULT - 61128","BOUDEVILLE - 76129"]
[null,null,null,null,null,null,null,null,null,null,null,null,null,null,null,null,null,null,null,null,null,null,null,null,null,null,null,null,null,null,null,null,null,null,"CASTILLON-EN-AUGE - 14141","CAUGE - 27132","COLOMBY - 50138","COURGEON - 61129","BOUELLES - 76130"]
[null,null,null,null,null,null,null,null,null,null,null,null,null,null,null,null,null,null,null,null,null,null,null,null,null,null,null,null,null,null,null,null,null,null,"CASTILLY - 14142","CAUMONT - 27133","CONDE-SUR-VIRE - 50139","COURGEOUT - 61130","LA BOUILLE - 76131"]
[null,null,null,null,null,null,null,null,null,null,null,null,null,null,null,null,null,null,null,null,null,null,null,null,null,null,null,null,null,null,null,null,null,null,"CAUMONT-L'EVENTE - 14143","CAUVERVILLE-EN-ROUMOIS - 27134","CONTRIERES - 50140","COURMENIL - 61131","BOURDAINVILLE - 76132"]
[null,null,null,null,null,null,null,null,null,null,null,null,null,null,null,null,null,null,null,null,null,null,null,null,null,null,null,null,null,null,null,null,null,null,"CAUMONT-SUR-ORNE - 14144","CESSEVILLE - 27135","COSQUEVILLE - 50142","COURTOMER - 61133","LE BOURG-DUN - 76133"]
[null,null,null,null,null,null,null,null,null,null,null,null,null,null,null,null,null,null,null,null,null,null,null,null,null,null,null,null,null,null,null,null,null,null,"CAUVICOURT - 14145","CHAIGNES - 27136","COUDEVILLE-SUR-MER - 50143","COUTERNE - 61135","BOURVILLE - 76134"]
[null,null,null,null,null,null,null,null,null,null,null,null,null,null,null,null,null,null,null,null,null,null,null,null,null,null,null,null,null,null,null,null,null,null,"CAUVILLE - 14146","CHAISE-DIEU-DU-THEIL - 27137","COULOUVRAY-BOISBENATRE - 50144","COUVAINS - 61136","BOUVILLE - 76135"]
[null,null,null,null,null,null,null,null,null,null,null,null,null,null,null,null,null,null,null,null,null,null,null,null,null,null,null,null,null,null,null,null,null,null,"CERNAY - 14147","CHAMBLAC - 27138","COURCY - 50145","CRAMENIL - 61137","BRACHY - 76136"]
[null,null,null,null,null,null,null,null,null,null,null,null,null,null,null,null,null,null,null,null,null,null,null,null,null,null,null,null,null,null,null,null,null,null,"CERQUEUX - 14148","CHAMBORD - 27139","COURTILS - 50146","CROISILLES - 61138","BRACQUEMONT - 76137"]
[null,null,null,null,null,null,null,null,null,null,null,null,null,null,null,null,null,null,null,null,null,null,null,null,null,null,null,null,null,null,null,null,null,null,"CESNY-AUX-VIGNES - 14149","CHAMBRAY - 27140","COUTANCES - 50147","CROUTTES - 61139","BRACQUETUIT - 76138"]
[null,null,null,null,null,null,null,null,null,null,null,null,null,null,null,null,null,null,null,null,null,null,null,null,null,null,null,null,null,null,null,null,null,null,"CESNY-BOIS-HALBOUT - 14150","CHAMP-DOLENT - 27141","COUVAINS - 50148","CRULAI - 61140","BRADIANCOURT - 76139"]
[null,null,null,null,null,null,null,null,null,null,null,null,null,null,null,null,null,null,null,null,null,null,null,null,null,null,null,null,null,null,null,null,null,null,"CHAMP-DU-BOULT - 14151","CHAMPENARD - 27142","COUVILLE - 50149","CUISSAI - 61141","BRAMETOT - 76140"]
[null,null,null,null,null,null,null,null,null,null,null,null,null,null,null,null,null,null,null,null,null,null,null,null,null,null,null,null,null,null,null,null,null,null,"LA CHAPELLE-ENGERBOLD - 14152","CHAMPIGNOLLES - 27143","CRASVILLE - 50150","DAME-MARIE - 61142","BREAUTE - 76141"]
[null,null,null,null,null,null,null,null,null,null,null,null,null,null,null,null,null,null,null,null,null,null,null,null,null,null,null,null,null,null,null,null,null,null,"LA CHAPELLE-HAUTE-GRUE - 14153","CHAMPIGNY-LA-FUTELAYE - 27144","CREANCES - 50151","DAMIGNY - 61143","BREMONTIER-MERVAL - 76142"]
[null,null,null,null,null,null,null,null,null,null,null,null,null,null,null,null,null,null,null,null,null,null,null,null,null,null,null,null,null,null,null,null,null,null,"LA CHAPELLE-YVON - 14154","CHANTELOUP - 27145","LES CRESNAYS - 50152","DANCE - 61144","BRETTEVILLE-DU-GRAND-CAUX - 76143"]
[null,null,null,null,null,null,null,null,null,null,null,null,null,null,null,null,null,null,null,null,null,null,null,null,null,null,null,null,null,null,null,null,null,null,"CHEFFREVILLE-TONNENCOURT - 14155","LA CHAPELLE-BAYVEL - 27146","CRETTEVILLE - 50153","DOMFRONT - 61145","BRETTEVILLE-SAINT-LAURENT - 76144"]
[null,null,null,null,null,null,null,null,null,null,null,null,null,null,null,null,null,null,null,null,null,null,null,null,null,null,null,null,null,null,null,null,null,null,"CHENEDOLLE - 14156","LA CHAPELLE-DU-BOIS-DES-FAULX - 27147","LA CROIX-AVRANCHIN - 50154","DOMPIERRE - 61146","BRUNVILLE - 76145"]
[null,null,null,null,null,null,null,null,null,null,null,null,null,null,null,null,null,null,null,null,null,null,null,null,null,null,null,null,null,null,null,null,null,null,"CHEUX - 14157","LA CHAPELLE-GAUTHIER - 27148","CROLLON - 50155","DORCEAU - 61147","BUCHY - 76146"]
[null,null,null,null,null,null,null,null,null,null,null,null,null,null,null,null,null,null,null,null,null,null,null,null,null,null,null,null,null,null,null,null,null,null,"CHICHEBOVILLE - 14158","LA CHAPELLE-HARENG - 27149","CROSVILLE-SUR-DOUVE - 50156","DURCET - 61148","BULLY - 76147"]
[null,null,null,null,null,null,null,null,null,null,null,null,null,null,null,null,null,null,null,null,null,null,null,null,null,null,null,null,null,null,null,null,null,null,"CHOUAIN - 14159","LA CHAPELLE-REANVILLE - 27150","CUVES - 50158","ECHALOU - 61149","BURES-EN-BRAY - 76148"]
[null,null,null,null,null,null,null,null,null,null,null,null,null,null,null,null,null,null,null,null,null,null,null,null,null,null,null,null,null,null,null,null,null,null,"CINTHEAUX - 14160","CHARLEVAL - 27151","DANGY - 50159","ECHAUFFOUR - 61150","BUTOT - 76149"]
[null,null,null,null,null,null,null,null,null,null,null,null,null,null,null,null,null,null,null,null,null,null,null,null,null,null,null,null,null,null,null,null,null,null,"CLARBEC - 14161","CHATEAU-SUR-EPTE - 27152","DENNEVILLE - 50160","ECORCEI - 61151","CAILLEVILLE - 76151"]
[null,null,null,null,null,null,null,null,null,null,null,null,null,null,null,null,null,null,null,null,null,null,null,null,null,null,null,null,null,null,null,null,null,null,"CLECY - 14162","CHAUVINCOURT-PROVEMONT - 27153","LE DEZERT - 50161","ECORCHES - 61152","CAILLY - 76152"]
[null,null,null,null,null,null,null,null,null,null,null,null,null,null,null,null,null,null,null,null,null,null,null,null,null,null,null,null,null,null,null,null,null,null,"CLEVILLE - 14163","CHAVIGNY-BAILLEUL - 27154","DIGOSVILLE - 50162","ECOUCHE - 61153","CALLEVILLE-LES-DEUX-EGLISES - 76153"]
[null,null,null,null,null,null,null,null,null,null,null,null,null,null,null,null,null,null,null,null,null,null,null,null,null,null,null,null,null,null,null,null,null,null,"CLINCHAMPS-SUR-ORNE - 14164","CHENNEBRUN - 27155","DIGULLEVILLE - 50163","EPERRAIS - 61154","CAMPNEUSEVILLE - 76154"]
[null,null,null,null,null,null,null,null,null,null,null,null,null,null,null,null,null,null,null,null,null,null,null,null,null,null,null,null,null,null,null,null,null,null,"COLLEVILLE-SUR-MER - 14165","CHERONVILLIERS - 27156","DOMJEAN - 50164","L'EPINAY-LE-COMTE - 61155","CANEHAN - 76155"]
[null,null,null,null,null,null,null,null,null,null,null,null,null,null,null,null,null,null,null,null,null,null,null,null,null,null,null,null,null,null,null,null,null,null,"COLLEVILLE-MONTGOMERY - 14166","LE CHESNE - 27157","DONVILLE-LES-BAINS - 50165","ESSAY - 61156","CANOUVILLE - 76156"]
[null,null,null,null,null,null,null,null,null,null,null,null,null,null,null,null,null,null,null,null,null,null,null,null,null,null,null,null,null,null,null,null,null,null,"COLOMBELLES - 14167","CIERREY - 27158","DOVILLE - 50166","EXMES - 61157","CANTELEU - 76157"]
[null,null,null,null,null,null,null,null,null,null,null,null,null,null,null,null,null,null,null,null,null,null,null,null,null,null,null,null,null,null,null,null,null,null,"COLOMBIERES - 14168","CINTRAY - 27159","DRAGEY-RONTHON - 50167","FAVEROLLES - 61158","CANVILLE-LES-DEUX-EGLISES - 76158"]
[null,null,null,null,null,null,null,null,null,null,null,null,null,null,null,null,null,null,null,null,null,null,null,null,null,null,null,null,null,null,null,null,null,null,"COLOMBIERS-SUR-SEULLES - 14169","CIVIERES - 27160","DUCEY - 50168","FAY - 61159","CANY-BARVILLE - 76159"]
[null,null,null,null,null,null,null,null,null,null,null,null,null,null,null,null,null,null,null,null,null,null,null,null,null,null,null,null,null,null,null,null,null,null,"COLOMBY-SUR-THAON - 14170","CLAVILLE - 27161","ECAUSSEVILLE - 50169","FEINGS - 61160","CARVILLE-LA-FOLLETIERE - 76160"]
[null,null,null,null,null,null,null,null,null,null,null,null,null,null,null,null,null,null,null,null,null,null,null,null,null,null,null,null,null,null,null,null,null,null,"COMBRAY - 14171","COLLANDRES-QUINCARNON - 27162","ECOQUENEAUVILLE - 50170","FEL - 61161","CARVILLE-POT-DE-FER - 76161"]
[null,null,null,null,null,null,null,null,null,null,null,null,null,null,null,null,null,null,null,null,null,null,null,null,null,null,null,null,null,null,null,null,null,null,"COMMES - 14172","COLLETOT - 27163","ECULLEVILLE - 50171","LA FERRIERE-AU-DOYEN - 61162","LE CATELIER - 76162"]
[null,null,null,null,null,null,null,null,null,null,null,null,null,null,null,null,null,null,null,null,null,null,null,null,null,null,null,null,null,null,null,null,null,null,"CONDE-SUR-IFS - 14173","COMBON - 27164","EMONDEVILLE - 50172","LA FERRIERE-AUX-ETANGS - 61163","CATENAY - 76163"]
[null,null,null,null,null,null,null,null,null,null,null,null,null,null,null,null,null,null,null,null,null,null,null,null,null,null,null,null,null,null,null,null,null,null,"CONDE-SUR-NOIREAU - 14174","CONCHES-EN-OUCHE - 27165","EQUEURDREVILLE-HAINNEVILLE - 50173","LA FERRIERE-BECHET - 61164","CAUDEBEC-EN-CAUX - 76164"]
[null,null,null,null,null,null,null,null,null,null,null,null,null,null,null,null,null,null,null,null,null,null,null,null,null,null,null,null,null,null,null,null,null,null,"CONDE-SUR-SEULLES - 14175","CONDE-SUR-ITON - 27166","EQUILLY - 50174","LA FERRIERE-BOCHARD - 61165","CAUDEBEC-LES-ELBEUF - 76165"]
[null,null,null,null,null,null,null,null,null,null,null,null,null,null,null,null,null,null,null,null,null,null,null,null,null,null,null,null,null,null,null,null,null,null,"CONTEVILLE - 14176","CONDE-SUR-RISLE - 27167","EROUDEVILLE - 50175","FERRIERES-LA-VERRERIE - 61166","LE CAULE-SAINTE-BEUVE - 76166"]
[null,null,null,null,null,null,null,null,null,null,null,null,null,null,null,null,null,null,null,null,null,null,null,null,null,null,null,null,null,null,null,null,null,null,"COQUAINVILLIERS - 14177","CONNELLES - 27168","L'ETANG-BERTRAND - 50176","LA FERTE-FRENEL - 61167","CAUVILLE-SUR-MER - 76167"]
[null,null,null,null,null,null,null,null,null,null,null,null,null,null,null,null,null,null,null,null,null,null,null,null,null,null,null,null,null,null,null,null,null,null,"CORBON - 14178","CONTEVILLE - 27169","ETIENVILLE - 50177","LA FERTE-MACE - 61168","LES CENT-ACRES - 76168"]
[null,null,null,null,null,null,null,null,null,null,null,null,null,null,null,null,null,null,null,null,null,null,null,null,null,null,null,null,null,null,null,null,null,null,"CORDEBUGLE - 14179","CORMEILLES - 27170","FERMANVILLE - 50178","FLERS - 61169","LA CERLANGUE - 76169"]
[null,null,null,null,null,null,null,null,null,null,null,null,null,null,null,null,null,null,null,null,null,null,null,null,null,null,null,null,null,null,null,null,null,null,"CORDEY - 14180","LE CORMIER - 27171","FERRIERES - 50179","FLEURE - 61170","LA CHAPELLE-DU-BOURGAY - 76170"]
[null,null,null,null,null,null,null,null,null,null,null,null,null,null,null,null,null,null,null,null,null,null,null,null,null,null,null,null,null,null,null,null,null,null,"CORMELLES-LE-ROYAL - 14181","CORNEUIL - 27172","FERVACHES - 50180","FONTAINE-LES-BASSETS - 61171","LA CHAPELLE-SAINT-OUEN - 76171"]
[null,null,null,null,null,null,null,null,null,null,null,null,null,null,null,null,null,null,null,null,null,null,null,null,null,null,null,null,null,null,null,null,null,null,"CORMOLAIN - 14182","CORNEVILLE-LA-FOUQUETIERE - 27173","FEUGERES - 50181","FONTENAI-LES-LOUVETS - 61172","LA CHAPELLE-SUR-DUN - 76172"]
[null,null,null,null,null,null,null,null,null,null,null,null,null,null,null,null,null,null,null,null,null,null,null,null,null,null,null,null,null,null,null,null,null,null,"COSSESSEVILLE - 14183","CORNEVILLE-SUR-RISLE - 27174","LA FEUILLIE - 50182","FONTENAI-SUR-ORNE - 61173","LA CHAUSSEE - 76173"]
[null,null,null,null,null,null,null,null,null,null,null,null,null,null,null,null,null,null,null,null,null,null,null,null,null,null,null,null,null,null,null,null,null,null,"COTTUN - 14184","CORNY - 27175","FIERVILLE-LES-MINES - 50183","LA FORET-AUVRAY - 61174","CIDEVILLE - 76174"]
[null,null,null,null,null,null,null,null,null,null,null,null,null,null,null,null,null,null,null,null,null,null,null,null,null,null,null,null,null,null,null,null,null,null,"COUDRAY-RABUT - 14185","COUDRAY - 27176","FLAMANVILLE - 50184","FORGES - 61175","CLAIS - 76175"]
[null,null,null,null,null,null,null,null,null,null,null,null,null,null,null,null,null,null,null,null,null,null,null,null,null,null,null,null,null,null,null,null,null,null,"COULOMBS - 14186","COUDRES - 27177","FLEURY - 50185","FRANCHEVILLE - 61176","CLASVILLE - 76176"]
[null,null,null,null,null,null,null,null,null,null,null,null,null,null,null,null,null,null,null,null,null,null,null,null,null,null,null,null,null,null,null,null,null,null,"COULONCES - 14187","COURBEPINE - 27179","FLOTTEMANVILLE - 50186","FRENES - 61177","CLAVILLE-MOTTEVILLE - 76177"]
[null,null,null,null,null,null,null,null,null,null,null,null,null,null,null,null,null,null,null,null,null,null,null,null,null,null,null,null,null,null,null,null,null,null,"COULVAIN - 14188","COURCELLES-SUR-SEINE - 27180","FLOTTEMANVILLE-HAGUE - 50187","LA FRESNAIE-FAYEL - 61178","CLEON - 76178"]
[null,null,null,null,null,null,null,null,null,null,null,null,null,null,null,null,null,null,null,null,null,null,null,null,null,null,null,null,null,null,null,null,null,null,"COUPESARTE - 14189","COURDEMANCHE - 27181","FOLLIGNY - 50188","LA FRESNAYE-AU-SAUVAGE - 61179","CLERES - 76179"]
[null,null,null,null,null,null,null,null,null,null,null,null,null,null,null,null,null,null,null,null,null,null,null,null,null,null,null,null,null,null,null,null,null,null,"COURCY - 14190","COURTEILLES - 27182","FONTENAY - 50189","FRESNAY-LE-SAMSON - 61180","CLEUVILLE - 76180"]
[null,null,null,null,null,null,null,null,null,null,null,null,null,null,null,null,null,null,null,null,null,null,null,null,null,null,null,null,null,null,null,null,null,null,"COURSEULLES-SUR-MER - 14191","LA COUTURE-BOUSSEY - 27183","FONTENAY-SUR-MER - 50190","GACE - 61181","CLEVILLE - 76181"]
[null,null,null,null,null,null,null,null,null,null,null,null,null,null,null,null,null,null,null,null,null,null,null,null,null,null,null,null,null,null,null,null,null,null,"COURSON - 14192","CRASVILLE - 27184","FOUCARVILLE - 50191","GANDELAIN - 61182","CLIPONVILLE - 76182"]
[null,null,null,null,null,null,null,null,null,null,null,null,null,null,null,null,null,null,null,null,null,null,null,null,null,null,null,null,null,null,null,null,null,null,"COURTONNE-LA-MEURDRAC - 14193","CRESTOT - 27185","FOURNEAUX - 50192","GAPREE - 61183","COLLEVILLE - 76183"]
[null,null,null,null,null,null,null,null,null,null,null,null,null,null,null,null,null,null,null,null,null,null,null,null,null,null,null,null,null,null,null,null,null,null,"COURTONNE-LES-DEUX-EGLISES - 14194","CRIQUEBEUF-LA-CAMPAGNE - 27187","LE FRESNE-PORET - 50193","GAUVILLE - 61184","COLMESNIL-MANNEVILLE - 76184"]
[null,null,null,null,null,null,null,null,null,null,null,null,null,null,null,null,null,null,null,null,null,null,null,null,null,null,null,null,null,null,null,null,null,null,"COURVAUDON - 14195","CRIQUEBEUF-SUR-SEINE - 27188","FRESVILLE - 50194","GEMAGES - 61185","COMPAINVILLE - 76185"]
[null,null,null,null,null,null,null,null,null,null,null,null,null,null,null,null,null,null,null,null,null,null,null,null,null,null,null,null,null,null,null,null,null,null,"CREPON - 14196","LA CROISILLE - 27189","GATHEMO - 50195","GENESLAY - 61186","CONTEVILLE - 76186"]
[null,null,null,null,null,null,null,null,null,null,null,null,null,null,null,null,null,null,null,null,null,null,null,null,null,null,null,null,null,null,null,null,null,null,"CRESSERONS - 14197","CROISY-SUR-EURE - 27190","GATTEVILLE-LE-PHARE - 50196","LES GENETTES - 61187","CONTREMOULINS - 76187"]
[null,null,null,null,null,null,null,null,null,null,null,null,null,null,null,null,null,null,null,null,null,null,null,null,null,null,null,null,null,null,null,null,null,null,"CRESSEVEUILLE - 14198","LA CROIX-SAINT-LEUFROY - 27191","GAVRAY - 50197","LA GENEVRAIE - 61188","COTTEVRARD - 76188"]
[null,null,null,null,null,null,null,null,null,null,null,null,null,null,null,null,null,null,null,null,null,null,null,null,null,null,null,null,null,null,null,null,null,null,"CREULLY - 14200","CROSVILLE-LA-VIEILLE - 27192","GEFFOSSES - 50198","GIEL-COURTEILLES - 61189","CRASVILLE-LA-MALLET - 76189"]
[null,null,null,null,null,null,null,null,null,null,null,null,null,null,null,null,null,null,null,null,null,null,null,null,null,null,null,null,null,null,null,null,null,null,"CREVECOEUR-EN-AUGE - 14201","CROTH - 27193","GENETS - 50199","GINAI - 61190","CRASVILLE-LA-ROCQUEFORT - 76190"]
[null,null,null,null,null,null,null,null,null,null,null,null,null,null,null,null,null,null,null,null,null,null,null,null,null,null,null,null,null,null,null,null,null,null,"CRICQUEBOEUF - 14202","CUVERVILLE - 27194","GER - 50200","GLOS-LA-FERRIERE - 61191","CRESSY - 76191"]
[null,null,null,null,null,null,null,null,null,null,null,null,null,null,null,null,null,null,null,null,null,null,null,null,null,null,null,null,null,null,null,null,null,null,"CRICQUEVILLE-EN-AUGE - 14203","DAME-MARIE - 27195","GIEVILLE - 50202","GODISSON - 61192","CRIEL-SUR-MER - 76192"]
[null,null,null,null,null,null,null,null,null,null,null,null,null,null,null,null,null,null,null,null,null,null,null,null,null,null,null,null,null,null,null,null,null,null,"CRICQUEVILLE-EN-BESSIN - 14204","LES DAMPS - 27196","LA GLACERIE - 50203","LA GONFRIERE - 61193","LA CRIQUE - 76193"]
[null,null,null,null,null,null,null,null,null,null,null,null,null,null,null,null,null,null,null,null,null,null,null,null,null,null,null,null,null,null,null,null,null,null,"CRISTOT - 14205","DAMPSMESNIL - 27197","GLATIGNY - 50204","GOULET - 61194","CRIQUEBEUF-EN-CAUX - 76194"]
[null,null,null,null,null,null,null,null,null,null,null,null,null,null,null,null,null,null,null,null,null,null,null,null,null,null,null,null,null,null,null,null,null,null,"CROCY - 14206","DAMVILLE - 27198","LA GODEFROY - 50205","LE GRAIS - 61195","CRIQUETOT-LE-MAUCONDUIT - 76195"]
[null,null,null,null,null,null,null,null,null,null,null,null,null,null,null,null,null,null,null,null,null,null,null,null,null,null,null,null,null,null,null,null,null,null,"CROISILLES - 14207","DANGU - 27199","LA GOHANNIERE - 50206","LE GUE-DE-LA-CHAINE - 61196","CRIQUETOT-L'ESNEVAL - 76196"]
[null,null,null,null,null,null,null,null,null,null,null,null,null,null,null,null,null,null,null,null,null,null,null,null,null,null,null,null,null,null,null,null,null,null,"CROISSANVILLE - 14208","DARDEZ - 27200","GOLLEVILLE - 50207","GUEPREI - 61197","CRIQUETOT-SUR-LONGUEVILLE - 76197"]
[null,null,null,null,null,null,null,null,null,null,null,null,null,null,null,null,null,null,null,null,null,null,null,null,null,null,null,null,null,null,null,null,null,null,"CROUAY - 14209","DAUBEUF-LA-CAMPAGNE - 27201","GONFREVILLE - 50208","GUERQUESALLES - 61198","CRIQUETOT-SUR-OUVILLE - 76198"]
[null,null,null,null,null,null,null,null,null,null,null,null,null,null,null,null,null,null,null,null,null,null,null,null,null,null,null,null,null,null,null,null,null,null,"LA CROUPTE - 14210","DAUBEUF-PRES-VATTEVILLE - 27202","GONNEVILLE - 50209","HABLOVILLE - 61199","CRIQUIERS - 76199"]
[null,null,null,null,null,null,null,null,null,null,null,null,null,null,null,null,null,null,null,null,null,null,null,null,null,null,null,null,null,null,null,null,null,null,"CULEY-LE-PATRY - 14211","DOUAINS - 27203","GORGES - 50210","HALEINE - 61200","CRITOT - 76200"]
[null,null,null,null,null,null,null,null,null,null,null,null,null,null,null,null,null,null,null,null,null,null,null,null,null,null,null,null,null,null,null,null,null,null,"CULLY - 14212","DOUDEAUVILLE-EN-VEXIN - 27204","GOUBERVILLE - 50211","LA HAUTE-CHAPELLE - 61201","CROISY-SUR-ANDELLE - 76201"]
[null,null,null,null,null,null,null,null,null,null,null,null,null,null,null,null,null,null,null,null,null,null,null,null,null,null,null,null,null,null,null,null,null,null,"CURCY-SUR-ORNE - 14213","DOUVILLE-SUR-ANDELLE - 27205","GOURBESVILLE - 50212","HAUTERIVE - 61202","CROIXDALLE - 76202"]
[null,null,null,null,null,null,null,null,null,null,null,null,null,null,null,null,null,null,null,null,null,null,null,null,null,null,null,null,null,null,null,null,null,null,"CUSSY - 14214","DROISY - 27206","GOURFALEUR - 50213","HELOUP - 61203","CROIX-MARE - 76203"]
[null,null,null,null,null,null,null,null,null,null,null,null,null,null,null,null,null,null,null,null,null,null,null,null,null,null,null,null,null,null,null,null,null,null,"CUVERVILLE - 14215","DRUCOURT - 27207","GOUVETS - 50214","L'HERMITIERE - 61204","CROPUS - 76204"]
[null,null,null,null,null,null,null,null,null,null,null,null,null,null,null,null,null,null,null,null,null,null,null,null,null,null,null,null,null,null,null,null,null,null,"DAMBLAINVILLE - 14216","DURANVILLE - 27208","GOUVILLE-SUR-MER - 50215","HEUGON - 61205","CROSVILLE-SUR-SCIE - 76205"]
[null,null,null,null,null,null,null,null,null,null,null,null,null,null,null,null,null,null,null,null,null,null,null,null,null,null,null,null,null,null,null,null,null,null,"DAMPIERRE - 14217","ECAQUELON - 27209","GRAIGNES-MESNIL-ANGOT - 50216","L'HOME-CHAMONDOT - 61206","CUVERVILLE - 76206"]
[null,null,null,null,null,null,null,null,null,null,null,null,null,null,null,null,null,null,null,null,null,null,null,null,null,null,null,null,null,null,null,null,null,null,"DANESTAL - 14218","ECARDENVILLE-LA-CAMPAGNE - 27210","LE GRAND-CELLAND - 50217","IGE - 61207","CUVERVILLE-SUR-YERES - 76207"]
[null,null,null,null,null,null,null,null,null,null,null,null,null,null,null,null,null,null,null,null,null,null,null,null,null,null,null,null,null,null,null,null,null,null,"DANVOU-LA-FERRIERE - 14219","ECARDENVILLE-SUR-EURE - 27211","GRANVILLE - 50218","IRAI - 61208","CUY-SAINT-FIACRE - 76208"]
[null,null,null,null,null,null,null,null,null,null,null,null,null,null,null,null,null,null,null,null,null,null,null,null,null,null,null,null,null,null,null,null,null,null,"DEAUVILLE - 14220","ECAUVILLE - 27212","GRATOT - 50219","JOUE-DU-BOIS - 61209","DAMPIERRE-EN-BRAY - 76209"]
[null,null,null,null,null,null,null,null,null,null,null,null,null,null,null,null,null,null,null,null,null,null,null,null,null,null,null,null,null,null,null,null,null,null,"DEMOUVILLE - 14221","ECOS - 27213","GREVILLE-HAGUE - 50220","JOUE-DU-PLAIN - 61210","DAMPIERRE-SAINT-NICOLAS - 76210"]
[null,null,null,null,null,null,null,null,null,null,null,null,null,null,null,null,null,null,null,null,null,null,null,null,null,null,null,null,null,null,null,null,null,null,"LE DESERT - 14222","ECOUIS - 27214","GRIMESNIL - 50221","JUVIGNY-SOUS-ANDAINE - 61211","DANCOURT - 76211"]
[null,null,null,null,null,null,null,null,null,null,null,null,null,null,null,null,null,null,null,null,null,null,null,null,null,null,null,null,null,null,null,null,null,null,"LE DETROIT - 14223","ECQUETOT - 27215","GROSVILLE - 50222","JUVIGNY-SUR-ORNE - 61212","DARNETAL - 76212"]
[null,null,null,null,null,null,null,null,null,null,null,null,null,null,null,null,null,null,null,null,null,null,null,null,null,null,null,null,null,null,null,null,null,null,"DEUX-JUMEAUX - 14224","EMALLEVILLE - 27216","GUEHEBERT - 50223","LALACELLE - 61213","DAUBEUF-SERVILLE - 76213"]
[null,null,null,null,null,null,null,null,null,null,null,null,null,null,null,null,null,null,null,null,null,null,null,null,null,null,null,null,null,null,null,null,null,null,"DIVES-SUR-MER - 14225","EMANVILLE - 27217","GUILBERVILLE - 50224","L'AIGLE - 61214","DENESTANVILLE - 76214"]
[null,null,null,null,null,null,null,null,null,null,null,null,null,null,null,null,null,null,null,null,null,null,null,null,null,null,null,null,null,null,null,null,null,null,"DONNAY - 14226","EPAIGNES - 27218","LE GUISLAIN - 50225","LALEU - 61215","DERCHIGNY - 76215"]
[null,null,null,null,null,null,null,null,null,null,null,null,null,null,null,null,null,null,null,null,null,null,null,null,null,null,null,null,null,null,null,null,null,null,"DOUVILLE-EN-AUGE - 14227","EPEGARD - 27219","LE HAM - 50227","LA LANDE-DE-GOULT - 61216","DEVILLE-LES-ROUEN - 76216"]
[null,null,null,null,null,null,null,null,null,null,null,null,null,null,null,null,null,null,null,null,null,null,null,null,null,null,null,null,null,null,null,null,null,null,"DOUVRES-LA-DELIVRANDE - 14228","EPIEDS - 27220","HAMBYE - 50228","LA LANDE-DE-LOUGE - 61217","DIEPPE - 76217"]
[null,null,null,null,null,null,null,null,null,null,null,null,null,null,null,null,null,null,null,null,null,null,null,null,null,null,null,null,null,null,null,null,null,null,"DOZULE - 14229","EPINAY - 27221","HAMELIN - 50229","LA LANDE-PATRY - 61218","DOUDEAUVILLE - 76218"]
[null,null,null,null,null,null,null,null,null,null,null,null,null,null,null,null,null,null,null,null,null,null,null,null,null,null,null,null,null,null,null,null,null,null,"DRUBEC - 14230","EPREVILLE-EN-LIEUVIN - 27222","HARDINVAST - 50230","LA LANDE-SAINT-SIMEON - 61219","DOUDEVILLE - 76219"]
[null,null,null,null,null,null,null,null,null,null,null,null,null,null,null,null,null,null,null,null,null,null,null,null,null,null,null,null,null,null,null,null,null,null,"BEAUFOUR-DRUVAL - 14231","EPREVILLE-EN-ROUMOIS - 27223","HAUTEVILLE-SUR-MER - 50231","LA LANDE-SUR-EURE - 61220","DOUVREND - 76220"]
[null,null,null,null,null,null,null,null,null,null,null,null,null,null,null,null,null,null,null,null,null,null,null,null,null,null,null,null,null,null,null,null,null,null,"DUCY-SAINTE-MARGUERITE - 14232","EPREVILLE-PRES-LE-NEUBOURG - 27224","HAUTEVILLE-LA-GUICHARD - 50232","LANDIGOU - 61221","DROSAY - 76221"]
[null,null,null,null,null,null,null,null,null,null,null,null,null,null,null,null,null,null,null,null,null,null,null,null,null,null,null,null,null,null,null,null,null,null,"ECRAMMEVILLE - 14235","LES ESSARTS - 27225","HAUTTEVILLE-BOCAGE - 50233","LANDISACQ - 61222","DUCLAIR - 76222"]
[null,null,null,null,null,null,null,null,null,null,null,null,null,null,null,null,null,null,null,null,null,null,null,null,null,null,null,null,null,null,null,null,null,null,"ELLON - 14236","ETREPAGNY - 27226","LA HAYE-BELLEFOND - 50234","LARCHAMP - 61223","ECALLES-ALIX - 76223"]
[null,null,null,null,null,null,null,null,null,null,null,null,null,null,null,null,null,null,null,null,null,null,null,null,null,null,null,null,null,null,null,null,null,null,"EMIEVILLE - 14237","ETREVILLE - 27227","LA HAYE-D'ECTOT - 50235","LARRE - 61224","ECRAINVILLE - 76224"]
[null,null,null,null,null,null,null,null,null,null,null,null,null,null,null,null,null,null,null,null,null,null,null,null,null,null,null,null,null,null,null,null,null,null,"ENGLESQUEVILLE-EN-AUGE - 14238","ETURQUERAYE - 27228","LA HAYE-DU-PUITS - 50236","LIGNERES - 61225","ECRETTEVILLE-LES-BAONS - 76225"]
[null,null,null,null,null,null,null,null,null,null,null,null,null,null,null,null,null,null,null,null,null,null,null,null,null,null,null,null,null,null,null,null,null,null,"ENGLESQUEVILLE-LA-PERCEE - 14239","EVREUX - 27229","LA HAYE-PESNEL - 50237","LIGNEROLLES - 61226","ECRETTEVILLE-SUR-MER - 76226"]
[null,null,null,null,null,null,null,null,null,null,null,null,null,null,null,null,null,null,null,null,null,null,null,null,null,null,null,null,null,null,null,null,null,null,"EPANEY - 14240","EZY-SUR-EURE - 27230","HEAUVILLE - 50238","LIGNOU - 61227","ECTOT-L'AUBER - 76227"]
[null,null,null,null,null,null,null,null,null,null,null,null,null,null,null,null,null,null,null,null,null,null,null,null,null,null,null,null,null,null,null,null,null,null,"EPINAY-SUR-ODON - 14241","FAINS - 27231","HEBECREVON - 50239","LIVAIE - 61228","ECTOT-LES-BAONS - 76228"]
[null,null,null,null,null,null,null,null,null,null,null,null,null,null,null,null,null,null,null,null,null,null,null,null,null,null,null,null,null,null,null,null,null,null,"EPRON - 14242","FARCEAUX - 27232","HELLEVILLE - 50240","LOISAIL - 61229","ELBEUF-EN-BRAY - 76229"]
[null,null,null,null,null,null,null,null,null,null,null,null,null,null,null,null,null,null,null,null,null,null,null,null,null,null,null,null,null,null,null,null,null,null,"EQUEMAUVILLE - 14243","FATOUVILLE-GRESTAIN - 27233","HEMEVEZ - 50241","LONGNY-AU-PERCHE - 61230","ELBEUF-SUR-ANDELLE - 76230"]
[null,null,null,null,null,null,null,null,null,null,null,null,null,null,null,null,null,null,null,null,null,null,null,null,null,null,null,null,null,null,null,null,null,null,"ERAINES - 14244","FAUVILLE - 27234","HERQUEVILLE - 50242","LONGUENOE - 61231","ELBEUF - 76231"]
[null,null,null,null,null,null,null,null,null,null,null,null,null,null,null,null,null,null,null,null,null,null,null,null,null,null,null,null,null,null,null,null,null,null,"ERNES - 14245","FAVEROLLES-LA-CAMPAGNE - 27235","HEUGUEVILLE-SUR-SIENNE - 50243","LONLAY-L'ABBAYE - 61232","ELETOT - 76232"]
[null,null,null,null,null,null,null,null,null,null,null,null,null,null,null,null,null,null,null,null,null,null,null,null,null,null,null,null,null,null,null,null,null,null,"ESCOVILLE - 14246","LE FAVRIL - 27237","HERENGUERVILLE - 50244","LONLAY-LE-TESSON - 61233","ELLECOURT - 76233"]
[null,null,null,null,null,null,null,null,null,null,null,null,null,null,null,null,null,null,null,null,null,null,null,null,null,null,null,null,null,null,null,null,null,null,"ESPINS - 14248","FERRIERES-HAUT-CLOCHER - 27238","HEUSSE - 50245","LONRAI - 61234","EMANVILLE - 76234"]
[null,null,null,null,null,null,null,null,null,null,null,null,null,null,null,null,null,null,null,null,null,null,null,null,null,null,null,null,null,null,null,null,null,null,"ESQUAY-NOTRE-DAME - 14249","FERRIERES-SAINT-HILAIRE - 27239","HIESVILLE - 50246","LORE - 61235","ENVERMEU - 76235"]
[null,null,null,null,null,null,null,null,null,null,null,null,null,null,null,null,null,null,null,null,null,null,null,null,null,null,null,null,null,null,null,null,null,null,"ESQUAY-SUR-SEULLES - 14250","LA FERRIERE-SUR-RISLE - 27240","HOCQUIGNY - 50247","LOUCE - 61236","ENVRONVILLE - 76236"]
[null,null,null,null,null,null,null,null,null,null,null,null,null,null,null,null,null,null,null,null,null,null,null,null,null,null,null,null,null,null,null,null,null,null,"ESSON - 14251","FEUGUEROLLES - 27241","LE HOMMET-D'ARTHENAY - 50248","LOUGE-SUR-MAIRE - 61237","EPINAY-SUR-DUCLAIR - 76237"]
[null,null,null,null,null,null,null,null,null,null,null,null,null,null,null,null,null,null,null,null,null,null,null,null,null,null,null,null,null,null,null,null,null,null,"ESTREES-LA-CAMPAGNE - 14252","LE FIDELAIRE - 27242","HOUESVILLE - 50249","LOUVIERES-EN-AUGE - 61238","EPOUVILLE - 76238"]
[null,null,null,null,null,null,null,null,null,null,null,null,null,null,null,null,null,null,null,null,null,null,null,null,null,null,null,null,null,null,null,null,null,null,"ESTRY - 14253","FIQUEFLEUR-EQUAINVILLE - 27243","HOUTTEVILLE - 50250","LUCE - 61239","EPRETOT - 76239"]
[null,null,null,null,null,null,null,null,null,null,null,null,null,null,null,null,null,null,null,null,null,null,null,null,null,null,null,null,null,null,null,null,null,null,"ETERVILLE - 14254","FLANCOURT-CATELON - 27244","HUBERVILLE - 50251","MACE - 61240","EPREVILLE - 76240"]
[null,null,null,null,null,null,null,null,null,null,null,null,null,null,null,null,null,null,null,null,null,null,null,null,null,null,null,null,null,null,null,null,null,null,"ETOUVY - 14255","FLEURY-LA-FORET - 27245","HUDIMESNIL - 50252","LA MADELEINE-BOUVET - 61241","ERMENOUVILLE - 76241"]
[null,null,null,null,null,null,null,null,null,null,null,null,null,null,null,null,null,null,null,null,null,null,null,null,null,null,null,null,null,null,null,null,null,null,"ETREHAM - 14256","FLEURY-SUR-ANDELLE - 27246","HUISNES-SUR-MER - 50253","LE MAGE - 61242","ERNEMONT-LA-VILLETTE - 76242"]
[null,null,null,null,null,null,null,null,null,null,null,null,null,null,null,null,null,null,null,null,null,null,null,null,null,null,null,null,null,null,null,null,null,null,"EVRECY - 14257","FLIPOU - 27247","HUSSON - 50254","MAGNY-LE-DESERT - 61243","ERNEMONT-SUR-BUCHY - 76243"]
[null,null,null,null,null,null,null,null,null,null,null,null,null,null,null,null,null,null,null,null,null,null,null,null,null,null,null,null,null,null,null,null,null,null,"FALAISE - 14258","FOLLEVILLE - 27248","HYENVILLE - 50255","MAHERU - 61244","ESCLAVELLES - 76244"]
[null,null,null,null,null,null,null,null,null,null,null,null,null,null,null,null,null,null,null,null,null,null,null,null,null,null,null,null,null,null,null,null,null,null,"FAMILLY - 14259","FONTAINE-BELLENGER - 27249","ISIGNY-LE-BUAT - 50256","MAISON-MAUGIS - 61245","ESLETTES - 76245"]
[null,null,null,null,null,null,null,null,null,null,null,null,null,null,null,null,null,null,null,null,null,null,null,null,null,null,null,null,null,null,null,null,null,null,"FAUGUERNON - 14260","FONTAINE-HEUDEBOURG - 27250","JOBOURG - 50257","MALE - 61246","ESTEVILLE - 76247"]
[null,null,null,null,null,null,null,null,null,null,null,null,null,null,null,null,null,null,null,null,null,null,null,null,null,null,null,null,null,null,null,null,null,null,"LE FAULQ - 14261","FONTAINE-L'ABBE - 27251","JOGANVILLE - 50258","MALETABLE - 61247","ESTOUTEVILLE-ECALLES - 76248"]
[null,null,null,null,null,null,null,null,null,null,null,null,null,null,null,null,null,null,null,null,null,null,null,null,null,null,null,null,null,null,null,null,null,null,"LA FERRIERE-HARANG - 14264","FONTAINE-LA-LOUVET - 27252","JUILLEY - 50259","MANTILLY - 61248","ETAIMPUIS - 76249"]
[null,null,null,null,null,null,null,null,null,null,null,null,null,null,null,null,null,null,null,null,null,null,null,null,null,null,null,null,null,null,null,null,null,null,"FERVAQUES - 14265","FONTAINE-LA-SORET - 27253","JUVIGNY-LE-TERTRE - 50260","MARCEI - 61249","ETAINHUS - 76250"]
[null,null,null,null,null,null,null,null,null,null,null,null,null,null,null,null,null,null,null,null,null,null,null,null,null,null,null,null,null,null,null,null,null,null,"FEUGUEROLLES-BULLY - 14266","FONTAINE-SOUS-JOUY - 27254","LAMBERVILLE - 50261","MARCHAINVILLE - 61250","ETALLEVILLE - 76251"]
[null,null,null,null,null,null,null,null,null,null,null,null,null,null,null,null,null,null,null,null,null,null,null,null,null,null,null,null,null,null,null,null,null,null,"FIERVILLE-BRAY - 14268","FONTENAY - 27255","LA LANDE-D'AIROU - 50262","MARCHEMAISONS - 61251","ETALONDES - 76252"]
[null,null,null,null,null,null,null,null,null,null,null,null,null,null,null,null,null,null,null,null,null,null,null,null,null,null,null,null,null,null,null,null,null,null,"FIERVILLE-LES-PARCS - 14269","LA FORET-DU-PARC - 27256","LAPENTY - 50263","MARDILLY - 61252","ETOUTTEVILLE - 76253"]
[null,null,null,null,null,null,null,null,null,null,null,null,null,null,null,null,null,null,null,null,null,null,null,null,null,null,null,null,null,null,null,null,null,null,"FIRFOL - 14270","FORET-LA-FOLIE - 27257","LAULNE - 50265","MARMOUILLE - 61253","ETRETAT - 76254"]
[null,null,null,null,null,null,null,null,null,null,null,null,null,null,null,null,null,null,null,null,null,null,null,null,null,null,null,null,null,null,null,null,null,null,"FLEURY-SUR-ORNE - 14271","FORT-MOVILLE - 27258","LENGRONNE - 50266","MAUVES-SUR-HUISNE - 61255","EU - 76255"]
[null,null,null,null,null,null,null,null,null,null,null,null,null,null,null,null,null,null,null,null,null,null,null,null,null,null,null,null,null,null,null,null,null,null,"LA FOLIE - 14272","FOUCRAINVILLE - 27259","LESSAY - 50267","MEDAVY - 61256","FALLENCOURT - 76257"]
[null,null,null,null,null,null,null,null,null,null,null,null,null,null,null,null,null,null,null,null,null,null,null,null,null,null,null,null,null,null,null,null,null,null,"LA FOLLETIERE-ABENON - 14273","FOULBEC - 27260","LESTRE - 50268","MEHOUDIN - 61257","FAUVILLE-EN-CAUX - 76258"]
[null,null,null,null,null,null,null,null,null,null,null,null,null,null,null,null,null,null,null,null,null,null,null,null,null,null,null,null,null,null,null,null,null,null,"FONTAINE-ETOUPEFOUR - 14274","FOUQUEVILLE - 27261","LIESVILLE-SUR-DOUVE - 50269","LE MELE-SUR-SARTHE - 61258","FECAMP - 76259"]
[null,null,null,null,null,null,null,null,null,null,null,null,null,null,null,null,null,null,null,null,null,null,null,null,null,null,null,null,null,null,null,null,null,null,"FONTAINE-HENRY - 14275","FOURGES - 27262","LIEUSAINT - 50270","LE MENIL-BERARD - 61259","FERRIERES-EN-BRAY - 76260"]
[null,null,null,null,null,null,null,null,null,null,null,null,null,null,null,null,null,null,null,null,null,null,null,null,null,null,null,null,null,null,null,null,null,null,"FONTAINE-LE-PIN - 14276","FOURMETOT - 27263","LINGEARD - 50271","LE MENIL-DE-BRIOUZE - 61260","LA FERTE-SAINT-SAMSON - 76261"]
[null,null,null,null,null,null,null,null,null,null,null,null,null,null,null,null,null,null,null,null,null,null,null,null,null,null,null,null,null,null,null,null,null,null,"FONTENAY-LE-MARMION - 14277","FOURS-EN-VEXIN - 27264","LINGREVILLE - 50272","LE MENIL-BROUT - 61261","FESQUES - 76262"]
[null,null,null,null,null,null,null,null,null,null,null,null,null,null,null,null,null,null,null,null,null,null,null,null,null,null,null,null,null,null,null,null,null,null,"FONTENAY-LE-PESNEL - 14278","FRANCHEVILLE - 27265","LITHAIRE - 50273","LE MENIL-CIBOULT - 61262","LA FEUILLIE - 76263"]
[null,null,null,null,null,null,null,null,null,null,null,null,null,null,null,null,null,null,null,null,null,null,null,null,null,null,null,null,null,null,null,null,null,null,"FONTENERMONT - 14279","FRANQUEVILLE - 27266","LES LOGES-MARCHIS - 50274","MENIL-ERREUX - 61263","FLAMANVILLE - 76264"]
[null,null,null,null,null,null,null,null,null,null,null,null,null,null,null,null,null,null,null,null,null,null,null,null,null,null,null,null,null,null,null,null,null,null,"FORMENTIN - 14280","FRENEUSE-SUR-RISLE - 27267","LES LOGES-SUR-BRECEY - 50275","MENIL-FROGER - 61264","FLAMETS-FRETILS - 76265"]
[null,null,null,null,null,null,null,null,null,null,null,null,null,null,null,null,null,null,null,null,null,null,null,null,null,null,null,null,null,null,null,null,null,null,"FORMIGNY - 14281","LE FRESNE - 27268","LOLIF - 50276","MENIL-GONDOUIN - 61265","FLOCQUES - 76266"]
[null,null,null,null,null,null,null,null,null,null,null,null,null,null,null,null,null,null,null,null,null,null,null,null,null,null,null,null,null,null,null,null,null,null,"FOULOGNES - 14282","FRESNE-CAUVERVILLE - 27269","LONGUEVILLE - 50277","LE MENIL-GUYON - 61266","LA FOLLETIERE - 76267"]
[null,null,null,null,null,null,null,null,null,null,null,null,null,null,null,null,null,null,null,null,null,null,null,null,null,null,null,null,null,null,null,null,null,null,"FOURCHES - 14283","FRESNE-L'ARCHEVEQUE - 27270","LE LOREUR - 50278","MENIL-HERMEI - 61267","FONGUEUSEMARE - 76268"]
[null,null,null,null,null,null,null,null,null,null,null,null,null,null,null,null,null,null,null,null,null,null,null,null,null,null,null,null,null,null,null,null,null,null,"FOURNEAUX-LE-VAL - 14284","FRESNEY - 27271","LE LOREY - 50279","MENIL-HUBERT-EN-EXMES - 61268","FONTAINE-EN-BRAY - 76269"]
[null,null,null,null,null,null,null,null,null,null,null,null,null,null,null,null,null,null,null,null,null,null,null,null,null,null,null,null,null,null,null,null,null,null,"LE FOURNET - 14285","GADENCOURT - 27273","LOZON - 50280","MENIL-HUBERT-SUR-ORNE - 61269","FONTAINE-LA-MALLET - 76270"]
[null,null,null,null,null,null,null,null,null,null,null,null,null,null,null,null,null,null,null,null,null,null,null,null,null,null,null,null,null,null,null,null,null,null,"FOURNEVILLE - 14286","GAILLARDBOIS-CRESSENVILLE - 27274","LA LUCERNE-D'OUTREMER - 50281","MENIL-JEAN - 61270","FONTAINE-LE-BOURG - 76271"]
[null,null,null,null,null,null,null,null,null,null,null,null,null,null,null,null,null,null,null,null,null,null,null,null,null,null,null,null,null,null,null,null,null,null,"FRENOUVILLE - 14287","GAILLON - 27275","LE LUOT - 50282","LE MENIL-SCELLEUR - 61271","FONTAINE-LE-DUN - 76272"]
[null,null,null,null,null,null,null,null,null,null,null,null,null,null,null,null,null,null,null,null,null,null,null,null,null,null,null,null,null,null,null,null,null,null,"LE FRESNE-CAMILLY - 14288","GAMACHES-EN-VEXIN - 27276","LA LUZERNE - 50283","LE MENIL-VICOMTE - 61272","FONTAINE-SOUS-PREAUX - 76273"]
[null,null,null,null,null,null,null,null,null,null,null,null,null,null,null,null,null,null,null,null,null,null,null,null,null,null,null,null,null,null,null,null,null,null,"FRESNE-LA-MERE - 14289","GARENCIERES - 27277","MACEY - 50284","MENIL-VIN - 61273","LA FONTELAYE - 76274"]
[null,null,null,null,null,null,null,null,null,null,null,null,null,null,null,null,null,null,null,null,null,null,null,null,null,null,null,null,null,null,null,null,null,null,"FRESNEY-LE-PUCEUX - 14290","GARENNES-SUR-EURE - 27278","MAGNEVILLE - 50285","LES MENUS - 61274","FONTENAY - 76275"]
[null,null,null,null,null,null,null,null,null,null,null,null,null,null,null,null,null,null,null,null,null,null,null,null,null,null,null,null,null,null,null,null,null,null,"FRESNEY-LE-VIEUX - 14291","GASNY - 27279","LA MANCELLIERE-SUR-VIRE - 50287","LE MERLERAULT - 61275","FORGES-LES-EAUX - 76276"]
[null,null,null,null,null,null,null,null,null,null,null,null,null,null,null,null,null,null,null,null,null,null,null,null,null,null,null,null,null,null,null,null,null,null,"FRIARDEL - 14292","GAUCIEL - 27280","MARCEY-LES-GREVES - 50288","MERRI - 61276","LE FOSSE - 76277"]
[null,null,null,null,null,null,null,null,null,null,null,null,null,null,null,null,null,null,null,null,null,null,null,null,null,null,null,null,null,null,null,null,null,null,"FUMICHON - 14293","GAUDREVILLE-LA-RIVIERE - 27281","MARCHESIEUX - 50289","LA MESNIERE - 61277","FOUCARMONT - 76278"]
[null,null,null,null,null,null,null,null,null,null,null,null,null,null,null,null,null,null,null,null,null,null,null,null,null,null,null,null,null,null,null,null,null,null,"GARCELLES-SECQUEVILLE - 14294","GAUVILLE-LA-CAMPAGNE - 27282","MARCILLY - 50290","MESSEI - 61278","FOUCART - 76279"]
[null,null,null,null,null,null,null,null,null,null,null,null,null,null,null,null,null,null,null,null,null,null,null,null,null,null,null,null,null,null,null,null,null,null,"LE GAST - 14296","GISAY-LA-COUDRE - 27283","MARGUERAY - 50291","MIEUXCE - 61279","FREAUVILLE - 76280"]
[null,null,null,null,null,null,null,null,null,null,null,null,null,null,null,null,null,null,null,null,null,null,null,null,null,null,null,null,null,null,null,null,null,null,"GAVRUS - 14297","GISORS - 27284","MARIGNY - 50292","MONCEAUX-AU-PERCHE - 61280","LA FRENAYE - 76281"]
[null,null,null,null,null,null,null,null,null,null,null,null,null,null,null,null,null,null,null,null,null,null,null,null,null,null,null,null,null,null,null,null,null,null,"GEFOSSE-FONTENAY - 14298","GIVERNY - 27285","MARTIGNY - 50293","MONCY - 61281","FRENEUSE - 76282"]
[null,null,null,null,null,null,null,null,null,null,null,null,null,null,null,null,null,null,null,null,null,null,null,null,null,null,null,null,null,null,null,null,null,null,"GENNEVILLE - 14299","GIVERVILLE - 27286","MARTINVAST - 50294","MONNAI - 61282","FRESLES - 76283"]
[null,null,null,null,null,null,null,null,null,null,null,null,null,null,null,null,null,null,null,null,null,null,null,null,null,null,null,null,null,null,null,null,null,null,"GERROTS - 14300","GLISOLLES - 27287","MAUPERTUIS - 50295","MONTABARD - 61283","FRESNAY-LE-LONG - 76284"]
[null,null,null,null,null,null,null,null,null,null,null,null,null,null,null,null,null,null,null,null,null,null,null,null,null,null,null,null,null,null,null,null,null,null,"GIBERVILLE - 14301","GLOS-SUR-RISLE - 27288","MAUPERTUS-SUR-MER - 50296","MONTCHEVREL - 61284","FRESNE-LE-PLAN - 76285"]
[null,null,null,null,null,null,null,null,null,null,null,null,null,null,null,null,null,null,null,null,null,null,null,null,null,null,null,null,null,null,null,null,null,null,"GLANVILLE - 14302","LA GOULAFRIERE - 27289","LA MEAUFFE - 50297","MONTGAROULT - 61285","FRESNOY-FOLNY - 76286"]
[null,null,null,null,null,null,null,null,null,null,null,null,null,null,null,null,null,null,null,null,null,null,null,null,null,null,null,null,null,null,null,null,null,null,"GLOS - 14303","GOUPILLIERES - 27290","MEAUTIS - 50298","MONTGAUDRY - 61286","FRESQUIENNES - 76287"]
[null,null,null,null,null,null,null,null,null,null,null,null,null,null,null,null,null,null,null,null,null,null,null,null,null,null,null,null,null,null,null,null,null,null,"GONNEVILLE-SUR-HONFLEUR - 14304","GOURNAY-LE-GUERIN - 27291","LE MESNIL - 50299","MONTILLY-SUR-NOIREAU - 61287","FREULLEVILLE - 76288"]
[null,null,null,null,null,null,null,null,null,null,null,null,null,null,null,null,null,null,null,null,null,null,null,null,null,null,null,null,null,null,null,null,null,null,"GONNEVILLE-SUR-MER - 14305","GOUTTIERES - 27292","LE MESNIL-ADELEE - 50300","MONTMERREI - 61288","FREVILLE - 76289"]
[null,null,null,null,null,null,null,null,null,null,null,null,null,null,null,null,null,null,null,null,null,null,null,null,null,null,null,null,null,null,null,null,null,null,"GONNEVILLE-EN-AUGE - 14306","GOUVILLE - 27293","LE MESNIL-AMAND - 50301","MONT-ORMEL - 61289","FRICHEMESNIL - 76290"]
[null,null,null,null,null,null,null,null,null,null,null,null,null,null,null,null,null,null,null,null,null,null,null,null,null,null,null,null,null,null,null,null,null,null,"GOUPILLIERES - 14307","GRAINVILLE - 27294","LE MESNIL-AMEY - 50302","MONTREUIL-AU-HOULME - 61290","FROBERVILLE - 76291"]
[null,null,null,null,null,null,null,null,null,null,null,null,null,null,null,null,null,null,null,null,null,null,null,null,null,null,null,null,null,null,null,null,null,null,"GOUSTRANVILLE - 14308","GRAND-CAMP - 27295","LE MESNIL-AUBERT - 50304","MONTREUIL-LA-CAMBE - 61291","FRY - 76292"]
[null,null,null,null,null,null,null,null,null,null,null,null,null,null,null,null,null,null,null,null,null,null,null,null,null,null,null,null,null,null,null,null,null,null,"GOUVIX - 14309","GRANDCHAIN - 27296","LE MESNIL-AU-VAL - 50305","MONTSECRET - 61292","FULTOT - 76293"]
[null,null,null,null,null,null,null,null,null,null,null,null,null,null,null,null,null,null,null,null,null,null,null,null,null,null,null,null,null,null,null,null,null,null,"GRAINVILLE-LANGANNERIE - 14310","GRANDVILLIERS - 27297","LE MESNILBUS - 50308","MORTAGNE-AU-PERCHE - 61293","LA GAILLARDE - 76294"]
[null,null,null,null,null,null,null,null,null,null,null,null,null,null,null,null,null,null,null,null,null,null,null,null,null,null,null,null,null,null,null,null,null,null,"GRAINVILLE-SUR-ODON - 14311","GRAVERON-SEMERVILLE - 27298","LE MESNIL-EURY - 50310","MORTREE - 61294","GAILLEFONTAINE - 76295"]
[null,null,null,null,null,null,null,null,null,null,null,null,null,null,null,null,null,null,null,null,null,null,null,null,null,null,null,null,null,null,null,null,null,null,"GRANDCAMP-MAISY - 14312","GRAVIGNY - 27299","LE MESNIL-GARNIER - 50311","LA MOTTE-FOUQUET - 61295","GAINNEVILLE - 76296"]
[null,null,null,null,null,null,null,null,null,null,null,null,null,null,null,null,null,null,null,null,null,null,null,null,null,null,null,null,null,null,null,null,null,null,"GRANDCHAMP-LE-CHATEAU - 14313","GROSLEY-SUR-RISLE - 27300","LE MESNIL-GILBERT - 50312","MOULICENT - 61296","GANCOURT-SAINT-ETIENNE - 76297"]
[null,null,null,null,null,null,null,null,null,null,null,null,null,null,null,null,null,null,null,null,null,null,null,null,null,null,null,null,null,null,null,null,null,null,"GRANGUES - 14316","GROSSOEUVRE - 27301","LE MESNIL-HERMAN - 50313","MOULINS-LA-MARCHE - 61297","GANZEVILLE - 76298"]
[null,null,null,null,null,null,null,null,null,null,null,null,null,null,null,null,null,null,null,null,null,null,null,null,null,null,null,null,null,null,null,null,null,null,"LA GRAVERIE - 14317","LE GROS-THEIL - 27302","LE MESNILLARD - 50315","MOULINS-SUR-ORNE - 61298","GERPONVILLE - 76299"]
[null,null,null,null,null,null,null,null,null,null,null,null,null,null,null,null,null,null,null,null,null,null,null,null,null,null,null,null,null,null,null,null,null,null,"GRAYE-SUR-MER - 14318","GUERNANVILLE - 27303","LE MESNIL-OPAC - 50316","MOUSSONVILLIERS - 61299","GERVILLE - 76300"]
[null,null,null,null,null,null,null,null,null,null,null,null,null,null,null,null,null,null,null,null,null,null,null,null,null,null,null,null,null,null,null,null,null,null,"GRENTHEVILLE - 14319","GUERNY - 27304","LE MESNIL-OZENNE - 50317","MOUTIERS-AU-PERCHE - 61300","GLICOURT - 76301"]
[null,null,null,null,null,null,null,null,null,null,null,null,null,null,null,null,null,null,null,null,null,null,null,null,null,null,null,null,null,null,null,null,null,null,"GRIMBOSQ - 14320","LA GUEROULDE - 27305","LE MESNIL-RAINFRAY - 50318","NEAUPHE-SOUS-ESSAI - 61301","GODERVILLE - 76302"]
[null,null,null,null,null,null,null,null,null,null,null,null,null,null,null,null,null,null,null,null,null,null,null,null,null,null,null,null,null,null,null,null,null,null,"GUERON - 14322","GUICHAINVILLE - 27306","LE MESNIL-RAOULT - 50319","NEAUPHE-SUR-DIVE - 61302","GOMMERVILLE - 76303"]
[null,null,null,null,null,null,null,null,null,null,null,null,null,null,null,null,null,null,null,null,null,null,null,null,null,null,null,null,null,null,null,null,null,null,"HAMARS - 14324","GUISENIERS - 27307","LE MESNIL-ROGUES - 50320","NECY - 61303","GONFREVILLE-CAILLOT - 76304"]
[null,null,null,null,null,null,null,null,null,null,null,null,null,null,null,null,null,null,null,null,null,null,null,null,null,null,null,null,null,null,null,null,null,null,"HERMANVILLE-SUR-MER - 14325","GUITRY - 27308","LE MESNIL-ROUXELIN - 50321","NEUILLY-LE-BISSON - 61304","GONFREVILLE-L'ORCHER - 76305"]
[null,null,null,null,null,null,null,null,null,null,null,null,null,null,null,null,null,null,null,null,null,null,null,null,null,null,null,null,null,null,null,null,null,null,"HERMIVAL-LES-VAUX - 14326","L'HABIT - 27309","LE MESNIL-TOVE - 50323","NEUILLY-SUR-EURE - 61305","GONNETOT - 76306"]
[null,null,null,null,null,null,null,null,null,null,null,null,null,null,null,null,null,null,null,null,null,null,null,null,null,null,null,null,null,null,null,null,null,null,"HEROUVILLE-SAINT-CLAIR - 14327","HACQUEVILLE - 27310","LE MESNIL-VENERON - 50324","NEUVILLE-PRES-SEES - 61306","GONNEVILLE-LA-MALLET - 76307"]
[null,null,null,null,null,null,null,null,null,null,null,null,null,null,null,null,null,null,null,null,null,null,null,null,null,null,null,null,null,null,null,null,null,null,"HEROUVILLETTE - 14328","HARCOURT - 27311","LE MESNIL-VIGOT - 50325","NEUVILLE-SUR-TOUQUES - 61307","GONNEVILLE-SUR-SCIE - 76308"]
[null,null,null,null,null,null,null,null,null,null,null,null,null,null,null,null,null,null,null,null,null,null,null,null,null,null,null,null,null,null,null,null,null,null,"HEULAND - 14329","HARDENCOURT-COCHEREL - 27312","LE MESNIL-VILLEMAN - 50326","NEUVY-AU-HOULME - 61308","GONZEVILLE - 76309"]
[null,null,null,null,null,null,null,null,null,null,null,null,null,null,null,null,null,null,null,null,null,null,null,null,null,null,null,null,null,null,null,null,null,null,"HEURTEVENT - 14330","LA HARENGERE - 27313","LA MEURDRAQUIERE - 50327","NOCE - 61309","GOUCHAUPRE - 76310"]
[null,null,null,null,null,null,null,null,null,null,null,null,null,null,null,null,null,null,null,null,null,null,null,null,null,null,null,null,null,null,null,null,null,null,"HIEVILLE - 14331","HARQUENCY - 27315","MILLIERES - 50328","NONANT-LE-PIN - 61310","GOUPILLIERES - 76311"]
[null,null,null,null,null,null,null,null,null,null,null,null,null,null,null,null,null,null,null,null,null,null,null,null,null,null,null,null,null,null,null,null,null,null,"LA HOGUETTE - 14332","HAUVILLE - 27316","MILLY - 50329","NORMANDEL - 61311","GOURNAY-EN-BRAY - 76312"]
[null,null,null,null,null,null,null,null,null,null,null,null,null,null,null,null,null,null,null,null,null,null,null,null,null,null,null,null,null,null,null,null,null,null,"HONFLEUR - 14333","LA HAYE-AUBREE - 27317","MOBECQ - 50330","NOTRE-DAME-DU-ROCHER - 61313","GOUY - 76313"]
[null,null,null,null,null,null,null,null,null,null,null,null,null,null,null,null,null,null,null,null,null,null,null,null,null,null,null,null,null,null,null,null,null,null,"L'HOTELLERIE - 14334","LA HAYE-DE-CALLEVILLE - 27318","LES MOITIERS-D'ALLONNE - 50332","OCCAGNES - 61314","GRAIMBOUVILLE - 76314"]
[null,null,null,null,null,null,null,null,null,null,null,null,null,null,null,null,null,null,null,null,null,null,null,null,null,null,null,null,null,null,null,null,null,null,"HOTOT-EN-AUGE - 14335","LA HAYE-DE-ROUTOT - 27319","LES MOITIERS-EN-BAUPTOIS - 50333","OMMEEL - 61315","GRAINVILLE-LA-TEINTURIERE - 76315"]
[null,null,null,null,null,null,null,null,null,null,null,null,null,null,null,null,null,null,null,null,null,null,null,null,null,null,null,null,null,null,null,null,null,null,"HOTTOT-LES-BAGUES - 14336","LA HAYE-DU-THEIL - 27320","MONTABOT - 50334","OMMOY - 61316","GRAINVILLE-SUR-RY - 76316"]
[null,null,null,null,null,null,null,null,null,null,null,null,null,null,null,null,null,null,null,null,null,null,null,null,null,null,null,null,null,null,null,null,null,null,"LA HOUBLONNIERE - 14337","LA HAYE-LE-COMTE - 27321","MONTAIGU-LA-BRISETTE - 50335","ORGERES - 61317","GRAINVILLE-YMAUVILLE - 76317"]
[null,null,null,null,null,null,null,null,null,null,null,null,null,null,null,null,null,null,null,null,null,null,null,null,null,null,null,null,null,null,null,null,null,null,"HOULGATE - 14338","LA HAYE-MALHERBE - 27322","MONTAIGU-LES-BOIS - 50336","ORIGNY-LE-BUTIN - 61318","GRAND-CAMP - 76318"]
[null,null,null,null,null,null,null,null,null,null,null,null,null,null,null,null,null,null,null,null,null,null,null,null,null,null,null,null,null,null,null,null,null,null,"HUBERT-FOLIE - 14339","LA HAYE-SAINT-SYLVESTRE - 27323","MONTANEL - 50337","ORIGNY-LE-ROUX - 61319","GRAND-COURONNE - 76319"]
[null,null,null,null,null,null,null,null,null,null,null,null,null,null,null,null,null,null,null,null,null,null,null,null,null,null,null,null,null,null,null,null,null,null,"IFS - 14341","HEBECOURT - 27324","MONTBRAY - 50338","ORVILLE - 61320","GRANDCOURT - 76320"]
[null,null,null,null,null,null,null,null,null,null,null,null,null,null,null,null,null,null,null,null,null,null,null,null,null,null,null,null,null,null,null,null,null,null,"ISIGNY-SUR-MER - 14342","HECMANVILLE - 27325","MONTCHATON - 50339","PACE - 61321","LES GRANDES-VENTES - 76321"]
[null,null,null,null,null,null,null,null,null,null,null,null,null,null,null,null,null,null,null,null,null,null,null,null,null,null,null,null,null,null,null,null,null,null,"LES ISLES-BARDEL - 14343","HECOURT - 27326","MONTCUIT - 50340","PARFONDEVAL - 61322","LE GRAND-QUEVILLY - 76322"]
[null,null,null,null,null,null,null,null,null,null,null,null,null,null,null,null,null,null,null,null,null,null,null,null,null,null,null,null,null,null,null,null,null,null,"JANVILLE - 14344","HECTOMARE - 27327","MONTEBOURG - 50341","LE PAS-SAINT-L'HOMER - 61323","GRAVAL - 76323"]
[null,null,null,null,null,null,null,null,null,null,null,null,null,null,null,null,null,null,null,null,null,null,null,null,null,null,null,null,null,null,null,null,null,null,"JORT - 14345","HENNEZIS - 27329","MONTFARVILLE - 50342","PASSAIS - 61324","GREGES - 76324"]
[null,null,null,null,null,null,null,null,null,null,null,null,null,null,null,null,null,null,null,null,null,null,null,null,null,null,null,null,null,null,null,null,null,null,"JUAYE-MONDAYE - 14346","HERQUEVILLE - 27330","MONTGARDON - 50343","LA PERRIERE - 61325","GREMONVILLE - 76325"]
[null,null,null,null,null,null,null,null,null,null,null,null,null,null,null,null,null,null,null,null,null,null,null,null,null,null,null,null,null,null,null,null,null,null,"JURQUES - 14347","HEUBECOURT-HARICOURT - 27331","MONTHUCHON - 50345","PERROU - 61326","GRENY - 76326"]
[null,null,null,null,null,null,null,null,null,null,null,null,null,null,null,null,null,null,null,null,null,null,null,null,null,null,null,null,null,null,null,null,null,null,"JUVIGNY-SUR-SEULLES - 14348","HEUDEBOUVILLE - 27332","MONTJOIE-SAINT-MARTIN - 50347","PERVENCHERES - 61327","GREUVILLE - 76327"]
[null,null,null,null,null,null,null,null,null,null,null,null,null,null,null,null,null,null,null,null,null,null,null,null,null,null,null,null,null,null,null,null,null,null,"LAIZE-LA-VILLE - 14349","HEUDICOURT - 27333","MONTMARTIN-EN-GRAIGNES - 50348","LE PIN-AU-HARAS - 61328","GRIGNEUSEVILLE - 76328"]
[null,null,null,null,null,null,null,null,null,null,null,null,null,null,null,null,null,null,null,null,null,null,null,null,null,null,null,null,null,null,null,null,null,null,"LA LANDE-SUR-DROME - 14350","HEUDREVILLE-EN-LIEUVIN - 27334","MONTMARTIN-SUR-MER - 50349","LE PIN-LA-GARENNE - 61329","GRUCHET-LE-VALASSE - 76329"]
[null,null,null,null,null,null,null,null,null,null,null,null,null,null,null,null,null,null,null,null,null,null,null,null,null,null,null,null,null,null,null,null,null,null,"LANDELLES-ET-COUPIGNY - 14352","HEUDREVILLE-SUR-EURE - 27335","MONTPINCHON - 50350","PLANCHES - 61330","GRUCHET-SAINT-SIMEON - 76330"]
[null,null,null,null,null,null,null,null,null,null,null,null,null,null,null,null,null,null,null,null,null,null,null,null,null,null,null,null,null,null,null,null,null,null,"LANDES-SUR-AJON - 14353","LA HEUNIERE - 27336","MONTRABOT - 50351","LE PLANTIS - 61331","GRUGNY - 76331"]
[null,null,null,null,null,null,null,null,null,null,null,null,null,null,null,null,null,null,null,null,null,null,null,null,null,null,null,null,null,null,null,null,null,null,"LANGRUNE-SUR-MER - 14354","HEUQUEVILLE - 27337","MONTREUIL-SUR-LOZON - 50352","POINTEL - 61332","GRUMESNIL - 76332"]
[null,null,null,null,null,null,null,null,null,null,null,null,null,null,null,null,null,null,null,null,null,null,null,null,null,null,null,null,null,null,null,null,null,null,"LANTHEUIL - 14355","LES HOGUES - 27338","LE MONT-SAINT-MICHEL - 50353","PONTCHARDON - 61333","GUERVILLE - 76333"]
[null,null,null,null,null,null,null,null,null,null,null,null,null,null,null,null,null,null,null,null,null,null,null,null,null,null,null,null,null,null,null,null,null,null,"LASSON - 14356","HONDOUVILLE - 27339","MONTSURVENT - 50354","LA POTERIE-AU-PERCHE - 61335","GUEURES - 76334"]
[null,null,null,null,null,null,null,null,null,null,null,null,null,null,null,null,null,null,null,null,null,null,null,null,null,null,null,null,null,null,null,null,null,null,"LASSY - 14357","HONGUEMARE-GUENOUVILLE - 27340","MONTVIRON - 50355","POUVRAI - 61336","GUEUTTEVILLE - 76335"]
[null,null,null,null,null,null,null,null,null,null,null,null,null,null,null,null,null,null,null,null,null,null,null,null,null,null,null,null,null,null,null,null,null,null,"LEAUPARTIE - 14358","L'HOSMES - 27341","MOON-SUR-ELLE - 50356","PREAUX-DU-PERCHE - 61337","GUEUTTEVILLE-LES-GRES - 76336"]
[null,null,null,null,null,null,null,null,null,null,null,null,null,null,null,null,null,null,null,null,null,null,null,null,null,null,null,null,null,null,null,null,null,null,"LECAUDE - 14359","HOUETTEVILLE - 27342","MORIGNY - 50357","PREPOTIN - 61338","GUILMECOURT - 76337"]
[null,null,null,null,null,null,null,null,null,null,null,null,null,null,null,null,null,null,null,null,null,null,null,null,null,null,null,null,null,null,null,null,null,null,"LEFFARD - 14360","HOULBEC-COCHEREL - 27343","MORSALINES - 50358","PUTANGES-PONT-ECREPIN - 61339","LA HALLOTIERE - 76338"]
[null,null,null,null,null,null,null,null,null,null,null,null,null,null,null,null,null,null,null,null,null,null,null,null,null,null,null,null,null,null,null,null,null,null,"LENAULT - 14361","HOULBEC-PRES-LE-GROS-THEIL - 27344","MORTAIN - 50359","RABODANGES - 61340","LE HANOUARD - 76339"]
[null,null,null,null,null,null,null,null,null,null,null,null,null,null,null,null,null,null,null,null,null,null,null,null,null,null,null,null,null,null,null,null,null,null,"LESSARD-ET-LE-CHENE - 14362","LA HOUSSAYE - 27345","MORVILLE - 50360","RADON - 61341","HARCANVILLE - 76340"]
[null,null,null,null,null,null,null,null,null,null,null,null,null,null,null,null,null,null,null,null,null,null,null,null,null,null,null,null,null,null,null,null,null,null,"LINGEVRES - 14364","HOUVILLE-EN-VEXIN - 27346","LA MOUCHE - 50361","RAI - 61342","HARFLEUR - 76341"]
[null,null,null,null,null,null,null,null,null,null,null,null,null,null,null,null,null,null,null,null,null,null,null,null,null,null,null,null,null,null,null,null,null,null,"LION-SUR-MER - 14365","HUEST - 27347","MOULINES - 50362","RANDONNAI - 61343","HATTENVILLE - 76342"]
[null,null,null,null,null,null,null,null,null,null,null,null,null,null,null,null,null,null,null,null,null,null,null,null,null,null,null,null,null,null,null,null,null,null,"LISIEUX - 14366","IGOVILLE - 27348","MOYON - 50363","RANES - 61344","HAUCOURT - 76343"]
[null,null,null,null,null,null,null,null,null,null,null,null,null,null,null,null,null,null,null,null,null,null,null,null,null,null,null,null,null,null,null,null,null,null,"LISON - 14367","ILLEVILLE-SUR-MONTFORT - 27349","MUNEVILLE-LE-BINGARD - 50364","REMALARD - 61345","HAUDRICOURT - 76344"]
[null,null,null,null,null,null,null,null,null,null,null,null,null,null,null,null,null,null,null,null,null,null,null,null,null,null,null,null,null,null,null,null,null,null,"LISORES - 14368","ILLIERS-L'EVEQUE - 27350","MUNEVILLE-SUR-MER - 50365","LE RENOUARD - 61346","HAUSSEZ - 76345"]
[null,null,null,null,null,null,null,null,null,null,null,null,null,null,null,null,null,null,null,null,null,null,null,null,null,null,null,null,null,null,null,null,null,null,"LITTEAU - 14369","INCARVILLE - 27351","NAY - 50368","RESENLIEU - 61347","HAUTOT-L'AUVRAY - 76346"]
[null,null,null,null,null,null,null,null,null,null,null,null,null,null,null,null,null,null,null,null,null,null,null,null,null,null,null,null,null,null,null,null,null,null,"LE MOLAY-LITTRY - 14370","IRREVILLE - 27353","NEGREVILLE - 50369","REVEILLON - 61348","HAUTOT-LE-VATOIS - 76347"]
[null,null,null,null,null,null,null,null,null,null,null,null,null,null,null,null,null,null,null,null,null,null,null,null,null,null,null,null,null,null,null,null,null,null,"LIVAROT - 14371","IVILLE - 27354","NEHOU - 50370","RI - 61349","HAUTOT-SAINT-SULPICE - 76348"]
[null,null,null,null,null,null,null,null,null,null,null,null,null,null,null,null,null,null,null,null,null,null,null,null,null,null,null,null,null,null,null,null,null,null,"LIVRY - 14372","IVRY-LA-BATAILLE - 27355","LE NEUFBOURG - 50371","LA ROCHE-MABILE - 61350","HAUTOT-SUR-MER - 76349"]
[null,null,null,null,null,null,null,null,null,null,null,null,null,null,null,null,null,null,null,null,null,null,null,null,null,null,null,null,null,null,null,null,null,null,"LE LOCHEUR - 14373","JONQUERETS-DE-LIVET - 27356","NEUFMESNIL - 50372","ROIVILLE - 61351","HAUTOT-SUR-SEINE - 76350"]
[null,null,null,null,null,null,null,null,null,null,null,null,null,null,null,null,null,null,null,null,null,null,null,null,null,null,null,null,null,null,null,null,null,null,"LES LOGES - 14374","JOUY-SUR-EURE - 27358","NEUVILLE-AU-PLAIN - 50373","RONAI - 61352","LE HAVRE - 76351"]
[null,null,null,null,null,null,null,null,null,null,null,null,null,null,null,null,null,null,null,null,null,null,null,null,null,null,null,null,null,null,null,null,null,null,"LES LOGES-SAULCES - 14375","JUIGNETTES - 27359","NEUVILLE-EN-BEAUMONT - 50374","RONFEUGERAI - 61353","LA HAYE - 76352"]
[null,null,null,null,null,null,null,null,null,null,null,null,null,null,null,null,null,null,null,null,null,null,null,null,null,null,null,null,null,null,null,null,null,null,"LONGRAYE - 14376","JUMELLES - 27360","NEVILLE-SUR-MER - 50375","LES ROTOURS - 61354","HEBERVILLE - 76353"]
[null,null,null,null,null,null,null,null,null,null,null,null,null,null,null,null,null,null,null,null,null,null,null,null,null,null,null,null,null,null,null,null,null,null,"LONGUES-SUR-MER - 14377","LA LANDE-SAINT-LEGER - 27361","NICORPS - 50376","ROUELLE - 61355","HENOUVILLE - 76354"]
[null,null,null,null,null,null,null,null,null,null,null,null,null,null,null,null,null,null,null,null,null,null,null,null,null,null,null,null,null,null,null,null,null,null,"LONGUEVILLE - 14378","LANDEPEREUSE - 27362","NOTRE-DAME-DE-CENILLY - 50378","LA ROUGE - 61356","HERICOURT-EN-CAUX - 76355"]
[null,null,null,null,null,null,null,null,null,null,null,null,null,null,null,null,null,null,null,null,null,null,null,null,null,null,null,null,null,null,null,null,null,null,"LONGVILLERS - 14379","LE LANDIN - 27363","NOTRE-DAME-DE-LIVOYE - 50379","ROUPERROUX - 61357","HERMANVILLE - 76356"]
[null,null,null,null,null,null,null,null,null,null,null,null,null,null,null,null,null,null,null,null,null,null,null,null,null,null,null,null,null,null,null,null,null,null,"LOUCELLES - 14380","LAUNAY - 27364","NOTRE-DAME-D'ELLE - 50380","SAI - 61358","HERMEVILLE - 76357"]
[null,null,null,null,null,null,null,null,null,null,null,null,null,null,null,null,null,null,null,null,null,null,null,null,null,null,null,null,null,null,null,null,null,null,"LOUVAGNY - 14381","LERY - 27365","NOTRE-DAME-DU-TOUCHET - 50381","SAINT-AGNAN-SUR-ERRE - 61359","LE HERON - 76358"]
[null,null,null,null,null,null,null,null,null,null,null,null,null,null,null,null,null,null,null,null,null,null,null,null,null,null,null,null,null,null,null,null,null,null,"LOUVIERES - 14382","LETTEGUIVES - 27366","NOUAINVILLE - 50382","SAINT-AGNAN-SUR-SARTHE - 61360","HERONCHELLES - 76359"]
[null,null,null,null,null,null,null,null,null,null,null,null,null,null,null,null,null,null,null,null,null,null,null,null,null,null,null,null,null,null,null,null,null,null,"LOUVIGNY - 14383","LIEUREY - 27367","OCTEVILLE-L'AVENEL - 50384","SAINT-ANDRE-DE-BRIOUZE - 61361","HEUGLEVILLE-SUR-SCIE - 76360"]
[null,null,null,null,null,null,null,null,null,null,null,null,null,null,null,null,null,null,null,null,null,null,null,null,null,null,null,null,null,null,null,null,null,null,"LUC-SUR-MER - 14384","LIGNEROLLES - 27368","OMONVILLE-LA-PETITE - 50385","SAINT-ANDRE-DE-MESSEI - 61362","HEUQUEVILLE - 76361"]
[null,null,null,null,null,null,null,null,null,null,null,null,null,null,null,null,null,null,null,null,null,null,null,null,null,null,null,null,null,null,null,null,null,null,"MAGNY-EN-BESSIN - 14385","LILLY - 27369","OMONVILLE-LA-ROGUE - 50386","SAINT-AQUILIN-DE-CORBION - 61363","HEURTEAUVILLE - 76362"]
[null,null,null,null,null,null,null,null,null,null,null,null,null,null,null,null,null,null,null,null,null,null,null,null,null,null,null,null,null,null,null,null,null,null,"MAGNY-LA-CAMPAGNE - 14386","LISORS - 27370","ORGLANDES - 50387","SAINT-AUBERT-SUR-ORNE - 61364","HODENG-AU-BOSC - 76363"]
[null,null,null,null,null,null,null,null,null,null,null,null,null,null,null,null,null,null,null,null,null,null,null,null,null,null,null,null,null,null,null,null,null,null,"MAGNY-LE-FREULE - 14387","LIVET-SUR-AUTHOU - 27371","ORVAL - 50388","SAINT-AUBIN-D'APPENAI - 61365","HODENG-HODENGER - 76364"]
[null,null,null,null,null,null,null,null,null,null,null,null,null,null,null,null,null,null,null,null,null,null,null,null,null,null,null,null,null,null,null,null,null,null,"MAISONCELLES-LA-JOURDAN - 14388","LONGCHAMPS - 27372","OUVILLE - 50389","SAINT-AUBIN-DE-BONNEVAL - 61366","HOUDETOT - 76365"]
[null,null,null,null,null,null,null,null,null,null,null,null,null,null,null,null,null,null,null,null,null,null,null,null,null,null,null,null,null,null,null,null,null,null,"MAISONCELLES-PELVEY - 14389","LORLEAU - 27373","OZEVILLE - 50390","SAINT-AUBIN-DE-COURTERAIE - 61367","LE HOULME - 76366"]
[null,null,null,null,null,null,null,null,null,null,null,null,null,null,null,null,null,null,null,null,null,null,null,null,null,null,null,null,null,null,null,null,null,null,"MAISONCELLES-SUR-AJON - 14390","LOUVERSEY - 27374","PARIGNY - 50391","SAINT-AUBIN-DES-GROIS - 61368","HOUPPEVILLE - 76367"]
[null,null,null,null,null,null,null,null,null,null,null,null,null,null,null,null,null,null,null,null,null,null,null,null,null,null,null,null,null,null,null,null,null,null,"MAISONS - 14391","LOUVIERS - 27375","PERCY - 50393","SAINT-BOMER-LES-FORGES - 61369","HOUQUETOT - 76368"]
[null,null,null,null,null,null,null,null,null,null,null,null,null,null,null,null,null,null,null,null,null,null,null,null,null,null,null,null,null,null,null,null,null,null,"MAIZET - 14393","LOUYE - 27376","PERIERS - 50394","SAINT-BRICE - 61370","LA HOUSSAYE-BERANGER - 76369"]
[null,null,null,null,null,null,null,null,null,null,null,null,null,null,null,null,null,null,null,null,null,null,null,null,null,null,null,null,null,null,null,null,null,null,"MAIZIERES - 14394","LYONS-LA-FORET - 27377","LA PERNELLE - 50395","SAINT-BRICE-SOUS-RANES - 61371","HUGLEVILLE-EN-CAUX - 76370"]
[null,null,null,null,null,null,null,null,null,null,null,null,null,null,null,null,null,null,null,null,null,null,null,null,null,null,null,null,null,null,null,null,null,null,"MALLOUE - 14395","LA MADELEINE-DE-NONANCOURT - 27378","LES PERQUES - 50396","SAINT-CENERI-LE-GEREI - 61372","LES IFS - 76371"]
[null,null,null,null,null,null,null,null,null,null,null,null,null,null,null,null,null,null,null,null,null,null,null,null,null,null,null,null,null,null,null,null,null,null,"MALTOT - 14396","MAINNEVILLE - 27379","PERRIERS-EN-BEAUFICEL - 50397","SAINTE-CERONNE-LES-MORTAGNE - 61373","ILLOIS - 76372"]
[null,null,null,null,null,null,null,null,null,null,null,null,null,null,null,null,null,null,null,null,null,null,null,null,null,null,null,null,null,null,null,null,null,null,"MANDEVILLE-EN-BESSIN - 14397","MALLEVILLE-SUR-LE-BEC - 27380","LE PERRON - 50398","SAINT-CHRISTOPHE-DE-CHAULIEU - 61374","IMBLEVILLE - 76373"]
[null,null,null,null,null,null,null,null,null,null,null,null,null,null,null,null,null,null,null,null,null,null,null,null,null,null,null,null,null,null,null,null,null,null,"MANERBE - 14398","MALOUY - 27381","LE PETIT-CELLAND - 50399","SAINT-CHRISTOPHE-LE-JAJOLET - 61375","INCHEVILLE - 76374"]
[null,null,null,null,null,null,null,null,null,null,null,null,null,null,null,null,null,null,null,null,null,null,null,null,null,null,null,null,null,null,null,null,null,null,"MANNEVILLE-LA-PIPARD - 14399","MANDEVILLE - 27382","PICAUVILLE - 50400","SAINT-CLAIR-DE-HALOUZE - 61376","INGOUVILLE - 76375"]
[null,null,null,null,null,null,null,null,null,null,null,null,null,null,null,null,null,null,null,null,null,null,null,null,null,null,null,null,null,null,null,null,null,null,"LE MANOIR - 14400","MANDRES - 27383","PIERREVILLE - 50401","SAINT-CORNIER-DES-LANDES - 61377","INTRAVILLE - 76376"]
[null,null,null,null,null,null,null,null,null,null,null,null,null,null,null,null,null,null,null,null,null,null,null,null,null,null,null,null,null,null,null,null,null,null,"MANVIEUX - 14401","MANNEVILLE-LA-RAOULT - 27384","LES PIEUX - 50402","SAINTE-CROIX-SUR-ORNE - 61378","ISNEAUVILLE - 76377"]
[null,null,null,null,null,null,null,null,null,null,null,null,null,null,null,null,null,null,null,null,null,null,null,null,null,null,null,null,null,null,null,null,null,null,"LE MARAIS-LA-CHAPELLE - 14402","MANNEVILLE-SUR-RISLE - 27385","PIROU - 50403","SAINT-CYR-LA-ROSIERE - 61379","JUMIEGES - 76378"]
[null,null,null,null,null,null,null,null,null,null,null,null,null,null,null,null,null,null,null,null,null,null,null,null,null,null,null,null,null,null,null,null,null,null,"MAROLLES - 14403","LE MANOIR - 27386","PLACY-MONTAIGU - 50404","SAINT-DENIS-DE-VILLENETTE - 61380","LAMBERVILLE - 76379"]
[null,null,null,null,null,null,null,null,null,null,null,null,null,null,null,null,null,null,null,null,null,null,null,null,null,null,null,null,null,null,null,null,null,null,"MARTAINVILLE - 14404","MANTHELON - 27387","LE PLESSIS-LASTELLE - 50405","SAINT-DENIS-SUR-HUISNE - 61381","LAMMERVILLE - 76380"]
[null,null,null,null,null,null,null,null,null,null,null,null,null,null,null,null,null,null,null,null,null,null,null,null,null,null,null,null,null,null,null,null,null,null,"MARTIGNY-SUR-L'ANTE - 14405","MARAIS-VERNIER - 27388","PLOMB - 50406","SAINT-DENIS-SUR-SARTHON - 61382","LANDES-VIEILLES-ET-NEUVES - 76381"]
[null,null,null,null,null,null,null,null,null,null,null,null,null,null,null,null,null,null,null,null,null,null,null,null,null,null,null,null,null,null,null,null,null,null,"MARTRAGNY - 14406","MARBEUF - 27389","POILLEY - 50407","SAINT-DIDIER-SOUS-ECOUVES - 61383","LANQUETOT - 76382"]
[null,null,null,null,null,null,null,null,null,null,null,null,null,null,null,null,null,null,null,null,null,null,null,null,null,null,null,null,null,null,null,null,null,null,"MATHIEU - 14407","MARCILLY-LA-CAMPAGNE - 27390","PONTAUBAULT - 50408","SAINT-ELLIER-LES-BOIS - 61384","LESTANVILLE - 76383"]
[null,null,null,null,null,null,null,null,null,null,null,null,null,null,null,null,null,null,null,null,null,null,null,null,null,null,null,null,null,null,null,null,null,null,"MAY-SUR-ORNE - 14408","MARCILLY-SUR-EURE - 27391","PONT-HEBERT - 50409","SAINT-EVROULT-DE-MONTFORT - 61385","LILLEBONNE - 76384"]
[null,null,null,null,null,null,null,null,null,null,null,null,null,null,null,null,null,null,null,null,null,null,null,null,null,null,null,null,null,null,null,null,null,null,"MERVILLE-FRANCEVILLE-PLAGE - 14409","MARTAGNY - 27392","PONTORSON - 50410","SAINT-EVROULT-NOTRE-DAME-DU-BOIS - 61386","LIMESY - 76385"]
[null,null,null,null,null,null,null,null,null,null,null,null,null,null,null,null,null,null,null,null,null,null,null,null,null,null,null,null,null,null,null,null,null,null,"MERY-CORBON - 14410","MARTAINVILLE - 27393","PONTS - 50411","SAINT-FRAIMBAULT - 61387","LIMPIVILLE - 76386"]
[null,null,null,null,null,null,null,null,null,null,null,null,null,null,null,null,null,null,null,null,null,null,null,null,null,null,null,null,null,null,null,null,null,null,"MESLAY - 14411","MARTOT - 27394","PORTBAIL - 50412","SAINT-FULGENT-DES-ORMES - 61388","LINDEBEUF - 76387"]
[null,null,null,null,null,null,null,null,null,null,null,null,null,null,null,null,null,null,null,null,null,null,null,null,null,null,null,null,null,null,null,null,null,null,"LE MESNIL-AU-GRAIN - 14412","MELICOURT - 27395","PRECEY - 50413","SAINTE-GAUBURGE-SAINTE-COLOMBE - 61389","LINTOT - 76388"]
[null,null,null,null,null,null,null,null,null,null,null,null,null,null,null,null,null,null,null,null,null,null,null,null,null,null,null,null,null,null,null,null,null,null,"LE MESNIL-AUZOUF - 14413","MENESQUEVILLE - 27396","PRECORBIN - 50414","SAINT-GEORGES-D'ANNEBECQ - 61390","LINTOT-LES-BOIS - 76389"]
[null,null,null,null,null,null,null,null,null,null,null,null,null,null,null,null,null,null,null,null,null,null,null,null,null,null,null,null,null,null,null,null,null,null,"LE MESNIL-BACLEY - 14414","MENILLES - 27397","PRETOT-SAINTE-SUZANNE - 50415","SAINT-GEORGES-DES-GROSEILLERS - 61391","LES LOGES - 76390"]
[null,null,null,null,null,null,null,null,null,null,null,null,null,null,null,null,null,null,null,null,null,null,null,null,null,null,null,null,null,null,null,null,null,null,"LE MESNIL-BENOIST - 14415","MENNEVAL - 27398","QUERQUEVILLE - 50416","SAINT-GERMAIN-D'AUNAY - 61392","LA LONDE - 76391"]
[null,null,null,null,null,null,null,null,null,null,null,null,null,null,null,null,null,null,null,null,null,null,null,null,null,null,null,null,null,null,null,null,null,null,"LE MESNIL-CAUSSOIS - 14416","MERCEY - 27399","QUETTEHOU - 50417","SAINT-GERMAIN-DE-CLAIREFEUILLE - 61393","LONDINIERES - 76392"]
[null,null,null,null,null,null,null,null,null,null,null,null,null,null,null,null,null,null,null,null,null,null,null,null,null,null,null,null,null,null,null,null,null,null,"MESNIL-CLINCHAMPS - 14417","MEREY - 27400","QUETTETOT - 50418","SAINT-GERMAIN-DE-LA-COUDRE - 61394","LONGMESNIL - 76393"]
[null,null,null,null,null,null,null,null,null,null,null,null,null,null,null,null,null,null,null,null,null,null,null,null,null,null,null,null,null,null,null,null,null,null,"LE MESNIL-DURAND - 14418","LE MESNIL-FUGUET - 27401","QUETTREVILLE-SUR-SIENNE - 50419","SAINT-GERMAIN-DES-GROIS - 61395","LONGROY - 76394"]
[null,null,null,null,null,null,null,null,null,null,null,null,null,null,null,null,null,null,null,null,null,null,null,null,null,null,null,null,null,null,null,null,null,null,"LE MESNIL-EUDES - 14419","LE MESNIL-HARDRAY - 27402","QUIBOU - 50420","SAINT-GERMAIN-DE-MARTIGNY - 61396","LONGUEIL - 76395"]
[null,null,null,null,null,null,null,null,null,null,null,null,null,null,null,null,null,null,null,null,null,null,null,null,null,null,null,null,null,null,null,null,null,null,"LE MESNIL-GERMAIN - 14420","LE MESNIL-JOURDAIN - 27403","QUINEVILLE - 50421","SAINT-GERMAIN-DU-CORBEIS - 61397","LONGUERUE - 76396"]
[null,null,null,null,null,null,null,null,null,null,null,null,null,null,null,null,null,null,null,null,null,null,null,null,null,null,null,null,null,null,null,null,null,null,"LE MESNIL-GUILLAUME - 14421","MESNIL-ROUSSET - 27404","RAIDS - 50422","SAINT-GERMAIN-LE-VIEUX - 61398","LONGUEVILLE-SUR-SCIE - 76397"]
[null,null,null,null,null,null,null,null,null,null,null,null,null,null,null,null,null,null,null,null,null,null,null,null,null,null,null,null,null,null,null,null,null,null,"LE MESNIL-MAUGER - 14422","MESNIL-SOUS-VIENNE - 27405","RAMPAN - 50423","SAINT-GERVAIS-DES-SABLONS - 61399","LOUVETOT - 76398"]
[null,null,null,null,null,null,null,null,null,null,null,null,null,null,null,null,null,null,null,null,null,null,null,null,null,null,null,null,null,null,null,null,null,null,"LE MESNIL-PATRY - 14423","MESNIL-SUR-L'ESTREE - 27406","RAUVILLE-LA-BIGOT - 50425","SAINT-GERVAIS-DU-PERRON - 61400","LUCY - 76399"]
[null,null,null,null,null,null,null,null,null,null,null,null,null,null,null,null,null,null,null,null,null,null,null,null,null,null,null,null,null,null,null,null,null,null,"LE MESNIL-ROBERT - 14424","MESNIL-VERCLIVES - 27407","RAUVILLE-LA-PLACE - 50426","SAINT-GILLES-DES-MARAIS - 61401","LUNERAY - 76400"]
[null,null,null,null,null,null,null,null,null,null,null,null,null,null,null,null,null,null,null,null,null,null,null,null,null,null,null,null,null,null,null,null,null,null,"LE MESNIL-SIMON - 14425","MEZIERES-EN-VEXIN - 27408","RAVENOVILLE - 50427","SAINT-HILAIRE-DE-BRIOUZE - 61402","LA MAILLERAYE-SUR-SEINE - 76401"]
[null,null,null,null,null,null,null,null,null,null,null,null,null,null,null,null,null,null,null,null,null,null,null,null,null,null,null,null,null,null,null,null,null,null,"LE MESNIL-SUR-BLANGY - 14426","MISEREY - 27410","REFFUVEILLE - 50428","SAINT-HILAIRE-LA-GERARD - 61403","MALAUNAY - 76402"]
[null,null,null,null,null,null,null,null,null,null,null,null,null,null,null,null,null,null,null,null,null,null,null,null,null,null,null,null,null,null,null,null,null,null,"LE MESNIL-VILLEMENT - 14427","MOISVILLE - 27411","REGNEVILLE-SUR-MER - 50429","SAINT-HILAIRE-LE-CHATEL - 61404","MALLEVILLE-LES-GRES - 76403"]
[null,null,null,null,null,null,null,null,null,null,null,null,null,null,null,null,null,null,null,null,null,null,null,null,null,null,null,null,null,null,null,null,null,null,"MEULLES - 14429","MONTAURE - 27412","REIGNEVILLE-BOCAGE - 50430","SAINT-HILAIRE-SUR-ERRE - 61405","MANEGLISE - 76404"]
[null,null,null,null,null,null,null,null,null,null,null,null,null,null,null,null,null,null,null,null,null,null,null,null,null,null,null,null,null,null,null,null,null,null,"MEUVAINES - 14430","MONTFORT-SUR-RISLE - 27413","REMILLY-SUR-LOZON - 50431","SAINT-HILAIRE-SUR-RISLE - 61406","MANEHOUVILLE - 76405"]
[null,null,null,null,null,null,null,null,null,null,null,null,null,null,null,null,null,null,null,null,null,null,null,null,null,null,null,null,null,null,null,null,null,null,"MEZIDON-CANON - 14431","MONTREUIL-L'ARGILLE - 27414","RETHOVILLE - 50432","SAINTE-HONORINE-LA-CHARDONNE - 61407","MANIQUERVILLE - 76406"]
[null,null,null,null,null,null,null,null,null,null,null,null,null,null,null,null,null,null,null,null,null,null,null,null,null,null,null,null,null,null,null,null,null,null,"MISSY - 14432","MORAINVILLE-JOUVEAUX - 27415","REVILLE - 50433","SAINTE-HONORINE-LA-GUILLAUME - 61408","MANNEVILLE-ES-PLAINS - 76407"]
[null,null,null,null,null,null,null,null,null,null,null,null,null,null,null,null,null,null,null,null,null,null,null,null,null,null,null,null,null,null,null,null,null,null,"MITTOIS - 14433","BUIS-SUR-DAMVILLE - 27416","LA ROCHELLE-NORMANDE - 50434","SAINT-JEAN-DE-LA-FORET - 61409","MANNEVILLE-LA-GOUPIL - 76408"]
[null,null,null,null,null,null,null,null,null,null,null,null,null,null,null,null,null,null,null,null,null,null,null,null,null,null,null,null,null,null,null,null,null,null,"LES MONCEAUX - 14435","MORGNY - 27417","ROCHEVILLE - 50435","SAINT-JEAN-DES-BOIS - 61410","MANNEVILLETTE - 76409"]
[null,null,null,null,null,null,null,null,null,null,null,null,null,null,null,null,null,null,null,null,null,null,null,null,null,null,null,null,null,null,null,null,null,null,"MONCEAUX-EN-BESSIN - 14436","MORSAN - 27418","ROMAGNY - 50436","SAINT-JOUIN-DE-BLAVOU - 61411","MAROMME - 76410"]
[null,null,null,null,null,null,null,null,null,null,null,null,null,null,null,null,null,null,null,null,null,null,null,null,null,null,null,null,null,null,null,null,null,null,"MONDEVILLE - 14437","MOUETTES - 27419","RONCEY - 50437","SAINT-JULIEN-SUR-SARTHE - 61412","MARQUES - 76411"]
[null,null,null,null,null,null,null,null,null,null,null,null,null,null,null,null,null,null,null,null,null,null,null,null,null,null,null,null,null,null,null,null,null,null,"MONDRAINVILLE - 14438","MOUFLAINES - 27420","LA RONDE-HAYE - 50438","SAINT-LAMBERT-SUR-DIVE - 61413","MARTAINVILLE-EPREVILLE - 76412"]
[null,null,null,null,null,null,null,null,null,null,null,null,null,null,null,null,null,null,null,null,null,null,null,null,null,null,null,null,null,null,null,null,null,null,"MONFREVILLE - 14439","MOUSSEAUX-NEUVILLE - 27421","ROUFFIGNY - 50440","SAINT-LANGIS-LES-MORTAGNE - 61414","MARTIGNY - 76413"]
[null,null,null,null,null,null,null,null,null,null,null,null,null,null,null,null,null,null,null,null,null,null,null,null,null,null,null,null,null,null,null,null,null,null,"MONTAMY - 14440","MUIDS - 27422","ROUXEVILLE - 50441","SAINT-LEGER-SUR-SARTHE - 61415","MARTIN-EGLISE - 76414"]
[null,null,null,null,null,null,null,null,null,null,null,null,null,null,null,null,null,null,null,null,null,null,null,null,null,null,null,null,null,null,null,null,null,null,"MONT-BERTRAND - 14441","MUZY - 27423","LE ROZEL - 50442","SAINT-LEONARD-DES-PARCS - 61416","MASSY - 76415"]
[null,null,null,null,null,null,null,null,null,null,null,null,null,null,null,null,null,null,null,null,null,null,null,null,null,null,null,null,null,null,null,null,null,null,"MONTCHAMP - 14442","NAGEL-SEEZ-MESNIL - 27424","SACEY - 50443","SAINT-LOYER-DES-CHAMPS - 61417","MATHONVILLE - 76416"]
[null,null,null,null,null,null,null,null,null,null,null,null,null,null,null,null,null,null,null,null,null,null,null,null,null,null,null,null,null,null,null,null,null,null,"MONTCHAUVET - 14443","NASSANDRES - 27425","SAINT-AMAND - 50444","SAINT-MARD-DE-RENO - 61418","MAUCOMBLE - 76417"]
[null,null,null,null,null,null,null,null,null,null,null,null,null,null,null,null,null,null,null,null,null,null,null,null,null,null,null,null,null,null,null,null,null,null,"MONTEILLE - 14444","NEAUFLES-SAINT-MARTIN - 27426","SAINT-ANDRE-DE-BOHON - 50445","SAINTE-MARGUERITE-DE-CARROUGES - 61419","MAULEVRIER-SAINTE-GERTRUDE - 76418"]
[null,null,null,null,null,null,null,null,null,null,null,null,null,null,null,null,null,null,null,null,null,null,null,null,null,null,null,null,null,null,null,null,null,null,"MONTFIQUET - 14445","NEAUFLES-AUVERGNY - 27427","SAINT-ANDRE-DE-L'EPINE - 50446","SAINTE-MARIE-LA-ROBERT - 61420","MAUNY - 76419"]
[null,null,null,null,null,null,null,null,null,null,null,null,null,null,null,null,null,null,null,null,null,null,null,null,null,null,null,null,null,null,null,null,null,null,"MONTIGNY - 14446","LE NEUBOURG - 27428","SAINT-AUBIN-DES-PREAUX - 50447","SAINT-MARS-D'EGRENNE - 61421","MAUQUENCHY - 76420"]
[null,null,null,null,null,null,null,null,null,null,null,null,null,null,null,null,null,null,null,null,null,null,null,null,null,null,null,null,null,null,null,null,null,null,"MONTREUIL-EN-AUGE - 14448","NEUILLY - 27429","SAINT-AUBIN-DE-TERREGATTE - 50448","LES ASPRES - 61422","MELAMARE - 76421"]
[null,null,null,null,null,null,null,null,null,null,null,null,null,null,null,null,null,null,null,null,null,null,null,null,null,null,null,null,null,null,null,null,null,null,"MONTS-EN-BESSIN - 14449","LA NEUVE-GRANGE - 27430","SAINT-AUBIN-DU-PERRON - 50449","SAINT-MARTIN-D'ECUBLEI - 61423","MELLEVILLE - 76422"]
[null,null,null,null,null,null,null,null,null,null,null,null,null,null,null,null,null,null,null,null,null,null,null,null,null,null,null,null,null,null,null,null,null,null,"MONTVIETTE - 14450","LA NEUVE-LYRE - 27431","SAINT-BARTHELEMY - 50450","SAINT-MARTIN-DES-LANDES - 61424","MENERVAL - 76423"]
[null,null,null,null,null,null,null,null,null,null,null,null,null,null,null,null,null,null,null,null,null,null,null,null,null,null,null,null,null,null,null,null,null,null,"MORTEAUX-COULIBOEUF - 14452","LA NEUVILLE-DU-BOSC - 27432","SAINT-BRICE - 50451","SAINT-MARTIN-DES-PEZERITS - 61425","MENONVAL - 76424"]
[null,null,null,null,null,null,null,null,null,null,null,null,null,null,null,null,null,null,null,null,null,null,null,null,null,null,null,null,null,null,null,null,null,null,"MOSLES - 14453","NEUVILLE-SUR-AUTHOU - 27433","SAINT-BRICE-DE-LANDELLES - 50452","SAINT-MARTIN-DU-VIEUX-BELLEME - 61426","MENTHEVILLE - 76425"]
[null,null,null,null,null,null,null,null,null,null,null,null,null,null,null,null,null,null,null,null,null,null,null,null,null,null,null,null,null,null,null,null,null,null,"MOUEN - 14454","NOARDS - 27434","SAINTE-CECILE - 50453","SAINT-MARTIN-L'AIGUILLON - 61427","MESANGUEVILLE - 76426"]
[null,null,null,null,null,null,null,null,null,null,null,null,null,null,null,null,null,null,null,null,null,null,null,null,null,null,null,null,null,null,null,null,null,null,"MOULINES - 14455","LA NOE-POULAIN - 27435","SAINT-CHRISTOPHE-DU-FOC - 50454","SAINT-MAURICE-DU-DESERT - 61428","MESNIERES-EN-BRAY - 76427"]
[null,null,null,null,null,null,null,null,null,null,null,null,null,null,null,null,null,null,null,null,null,null,null,null,null,null,null,null,null,null,null,null,null,null,"MOULT - 14456","NOGENT-LE-SEC - 27436","SAINT-CLAIR-SUR-L'ELLE - 50455","SAINT-MAURICE-LES-CHARENCEY - 61429","LE MESNIL-DURDENT - 76428"]
[null,null,null,null,null,null,null,null,null,null,null,null,null,null,null,null,null,null,null,null,null,null,null,null,null,null,null,null,null,null,null,null,null,null,"LES MOUTIERS-EN-AUGE - 14457","NOJEON-EN-VEXIN - 27437","SAINT-CLEMENT-RANCOUDRAY - 50456","SAINT-MAURICE-SUR-HUISNE - 61430","LE MESNIL-ESNARD - 76429"]
[null,null,null,null,null,null,null,null,null,null,null,null,null,null,null,null,null,null,null,null,null,null,null,null,null,null,null,null,null,null,null,null,null,null,"LES MOUTIERS-EN-CINGLAIS - 14458","NONANCOURT - 27438","SAINTE-COLOMBE - 50457","SAINT-MICHEL-DES-ANDAINES - 61431","MESNIL-FOLLEMPRISE - 76430"]
[null,null,null,null,null,null,null,null,null,null,null,null,null,null,null,null,null,null,null,null,null,null,null,null,null,null,null,null,null,null,null,null,null,null,"LES MOUTIERS-HUBERT - 14459","NORMANVILLE - 27439","SAINT-COME-DU-MONT - 50458","SAINT-MICHEL-TUBOEUF - 61432","LE MESNIL-LIEUBRAY - 76431"]
[null,null,null,null,null,null,null,null,null,null,null,null,null,null,null,null,null,null,null,null,null,null,null,null,null,null,null,null,null,null,null,null,null,null,"MOYAUX - 14460","NOTRE-DAME-DE-L'ISLE - 27440","SAINTE-CROIX-HAGUE - 50460","SAINT-NICOLAS-DES-BOIS - 61433","MESNIL-MAUGER - 76432"]
[null,null,null,null,null,null,null,null,null,null,null,null,null,null,null,null,null,null,null,null,null,null,null,null,null,null,null,null,null,null,null,null,null,null,"MUTRECY - 14461","NOTRE-DAME-D'EPINE - 27441","SAINT-CYR - 50461","SAINT-NICOLAS-DES-LAITIERS - 61434","MESNIL-PANNEVILLE - 76433"]
[null,null,null,null,null,null,null,null,null,null,null,null,null,null,null,null,null,null,null,null,null,null,null,null,null,null,null,null,null,null,null,null,null,null,"NEUILLY-LA-FORET - 14462","NOTRE-DAME-DU-HAMEL - 27442","SAINT-CYR-DU-BAILLEUL - 50462","SAINT-NICOLAS-DE-SOMMAIRE - 61435","MESNIL-RAOUL - 76434"]
[null,null,null,null,null,null,null,null,null,null,null,null,null,null,null,null,null,null,null,null,null,null,null,null,null,null,null,null,null,null,null,null,null,null,"NONANT - 14465","LE NOYER-EN-OUCHE - 27444","SAINT-DENIS-LE-GAST - 50463","SAINTE-OPPORTUNE - 61436","LE MESNIL-REAUME - 76435"]
[null,null,null,null,null,null,null,null,null,null,null,null,null,null,null,null,null,null,null,null,null,null,null,null,null,null,null,null,null,null,null,null,null,null,"NOROLLES - 14466","NOYERS - 27445","SAINT-DENIS-LE-VETU - 50464","SAINT-OUEN-DE-LA-COUR - 61437","LE MESNIL-SOUS-JUMIEGES - 76436"]
[null,null,null,null,null,null,null,null,null,null,null,null,null,null,null,null,null,null,null,null,null,null,null,null,null,null,null,null,null,null,null,null,null,null,"NORON-L'ABBAYE - 14467","ORMES - 27446","SAINT-EBREMOND-DE-BONFOSSE - 50465","SAINT-OUEN-DE-SECHEROUVRE - 61438","MEULERS - 76437"]
[null,null,null,null,null,null,null,null,null,null,null,null,null,null,null,null,null,null,null,null,null,null,null,null,null,null,null,null,null,null,null,null,null,null,"NORON-LA-POTERIE - 14468","ORVAUX - 27447","SAINT-FLOXEL - 50467","SAINT-OUEN-LE-BRISOULT - 61439","MILLEBOSC - 76438"]
[null,null,null,null,null,null,null,null,null,null,null,null,null,null,null,null,null,null,null,null,null,null,null,null,null,null,null,null,null,null,null,null,null,null,"NORREY-EN-AUGE - 14469","PACY-SUR-EURE - 27448","SAINT-FROMOND - 50468","SAINT-OUEN-SUR-ITON - 61440","MIRVILLE - 76439"]
[null,null,null,null,null,null,null,null,null,null,null,null,null,null,null,null,null,null,null,null,null,null,null,null,null,null,null,null,null,null,null,null,null,null,"NOTRE-DAME-DE-COURSON - 14471","PANILLEUSE - 27449","SAINTE-GENEVIEVE - 50469","SAINT-OUEN-SUR-MAIRE - 61441","MOLAGNIES - 76440"]
[null,null,null,null,null,null,null,null,null,null,null,null,null,null,null,null,null,null,null,null,null,null,null,null,null,null,null,null,null,null,null,null,null,null,"NOTRE-DAME-DE-LIVAYE - 14473","PARVILLE - 27451","SAINT-GEORGES-DE-BOHON - 50470","SAINT-PATRICE-DU-DESERT - 61442","MONCHAUX-SORENG - 76441"]
[null,null,null,null,null,null,null,null,null,null,null,null,null,null,null,null,null,null,null,null,null,null,null,null,null,null,null,null,null,null,null,null,null,null,"NOTRE-DAME-D'ESTREES - 14474","PERRIERS-LA-CAMPAGNE - 27452","SAINT-GEORGES-DE-LA-RIVIERE - 50471","SAINT-PAUL - 61443","MONCHY-SUR-EU - 76442"]
[null,null,null,null,null,null,null,null,null,null,null,null,null,null,null,null,null,null,null,null,null,null,null,null,null,null,null,null,null,null,null,null,null,null,"NOYERS-BOCAGE - 14475","PERRIERS-SUR-ANDELLE - 27453","SAINT-GEORGES-DE-LIVOYE - 50472","SAINT-PHILBERT-SUR-ORNE - 61444","MONT-CAUVAIRE - 76443"]
[null,null,null,null,null,null,null,null,null,null,null,null,null,null,null,null,null,null,null,null,null,null,null,null,null,null,null,null,null,null,null,null,null,null,"OLENDON - 14476","PERRUEL - 27454","SAINT-GEORGES-D'ELLE - 50473","SAINT-PIERRE-D'ENTREMONT - 61445","MONT-DE-L'IF - 76444"]
[null,null,null,null,null,null,null,null,null,null,null,null,null,null,null,null,null,null,null,null,null,null,null,null,null,null,null,null,null,null,null,null,null,null,"ONDEFONTAINE - 14477","PIENCOURT - 27455","SAINT-GEORGES-DE-ROUELLEY - 50474","SAINT-PIERRE-DES-LOGES - 61446","MONTEROLIER - 76445"]
[null,null,null,null,null,null,null,null,null,null,null,null,null,null,null,null,null,null,null,null,null,null,null,null,null,null,null,null,null,null,null,null,null,null,"ORBEC - 14478","PINTERVILLE - 27456","SAINT-GEORGES-MONTCOCQ - 50475","SAINT-PIERRE-DU-REGARD - 61447","MONTIGNY - 76446"]
[null,null,null,null,null,null,null,null,null,null,null,null,null,null,null,null,null,null,null,null,null,null,null,null,null,null,null,null,null,null,null,null,null,null,"OSMANVILLE - 14480","PISEUX - 27457","SAINT-GERMAIN-D'ELLE - 50476","SAINT-PIERRE-LA-BRUYERE - 61448","MONTIVILLIERS - 76447"]
[null,null,null,null,null,null,null,null,null,null,null,null,null,null,null,null,null,null,null,null,null,null,null,null,null,null,null,null,null,null,null,null,null,null,"LES OUBEAUX - 14481","PITRES - 27458","SAINT-GERMAIN-DES-VAUX - 50477","SAINT-PIERRE-LA-RIVIERE - 61449","MONTMAIN - 76448"]
[null,null,null,null,null,null,null,null,null,null,null,null,null,null,null,null,null,null,null,null,null,null,null,null,null,null,null,null,null,null,null,null,null,null,"OUEZY - 14482","LES PLACES - 27459","SAINT-GERMAIN-DE-TOURNEBUT - 50478","SAINT-QUENTIN-DE-BLAVOU - 61450","MONTREUIL-EN-CAUX - 76449"]
[null,null,null,null,null,null,null,null,null,null,null,null,null,null,null,null,null,null,null,null,null,null,null,null,null,null,null,null,null,null,null,null,null,null,"OUFFIERES - 14483","PLAINVILLE - 27460","SAINT-GERMAIN-DE-VARREVILLE - 50479","SAINT-QUENTIN-LES-CHARDONNETS - 61451","MONTROTY - 76450"]
[null,null,null,null,null,null,null,null,null,null,null,null,null,null,null,null,null,null,null,null,null,null,null,null,null,null,null,null,null,null,null,null,null,null,"OUILLY-DU-HOULEY - 14484","LE PLANQUAY - 27462","SAINT-GERMAIN-LE-GAILLARD - 50480","SAINT-ROCH-SUR-EGRENNE - 61452","MONT-SAINT-AIGNAN - 76451"]
[null,null,null,null,null,null,null,null,null,null,null,null,null,null,null,null,null,null,null,null,null,null,null,null,null,null,null,null,null,null,null,null,null,null,"OUILLY-LE-TESSON - 14486","PLASNES - 27463","SAINT-GERMAIN-SUR-AY - 50481","SAINT-SAUVEUR-DE-CARROUGES - 61453","MONTVILLE - 76452"]
[null,null,null,null,null,null,null,null,null,null,null,null,null,null,null,null,null,null,null,null,null,null,null,null,null,null,null,null,null,null,null,null,null,null,"OUILLY-LE-VICOMTE - 14487","LE PLESSIS-GROHAN - 27464","SAINT-GERMAIN-SUR-SEVES - 50482","SAINTE-SCOLASSE-SUR-SARTHE - 61454","MORGNY-LA-POMMERAYE - 76453"]
[null,null,null,null,null,null,null,null,null,null,null,null,null,null,null,null,null,null,null,null,null,null,null,null,null,null,null,null,null,null,null,null,null,null,"OUISTREHAM - 14488","LE PLESSIS-HEBERT - 27465","SAINT-GILLES - 50483","SAINT-SIMEON - 61455","MORTEMER - 76454"]
[null,null,null,null,null,null,null,null,null,null,null,null,null,null,null,null,null,null,null,null,null,null,null,null,null,null,null,null,null,null,null,null,null,null,"OUVILLE-LA-BIEN-TOURNEE - 14489","LE PLESSIS-SAINTE-OPPORTUNE - 27466","SAINT-HILAIRE-DU-HARCOUET - 50484","SAINT-SULPICE-SUR-RISLE - 61456","MORVILLE-SUR-ANDELLE - 76455"]
[null,null,null,null,null,null,null,null,null,null,null,null,null,null,null,null,null,null,null,null,null,null,null,null,null,null,null,null,null,null,null,null,null,null,"PARFOURU-SUR-ODON - 14491","PONT-AUDEMER - 27467","SAINT-HILAIRE-PETITVILLE - 50485","SAINT-SYMPHORIEN-DES-BRUYERES - 61457","MOTTEVILLE - 76456"]
[null,null,null,null,null,null,null,null,null,null,null,null,null,null,null,null,null,null,null,null,null,null,null,null,null,null,null,null,null,null,null,null,null,null,"PENNEDEPIE - 14492","PONT-AUTHOU - 27468","SAINT-JACQUES-DE-NEHOU - 50486","SAINT-VICTOR-DE-RENO - 61458","MOULINEAUX - 76457"]
[null,null,null,null,null,null,null,null,null,null,null,null,null,null,null,null,null,null,null,null,null,null,null,null,null,null,null,null,null,null,null,null,null,null,"PERCY-EN-AUGE - 14493","PONT-DE-L'ARCHE - 27469","SAINT-JAMES - 50487","SAIRES-LA-VERRERIE - 61459","MUCHEDENT - 76458"]
[null,null,null,null,null,null,null,null,null,null,null,null,null,null,null,null,null,null,null,null,null,null,null,null,null,null,null,null,null,null,null,null,null,null,"PERIERS-EN-AUGE - 14494","PONT-SAINT-PIERRE - 27470","SAINT-JEAN-DE-DAYE - 50488","LE SAP - 61460","NESLE-HODENG - 76459"]
[null,null,null,null,null,null,null,null,null,null,null,null,null,null,null,null,null,null,null,null,null,null,null,null,null,null,null,null,null,null,null,null,null,null,"PERIERS-SUR-LE-DAN - 14495","PORTE-JOIE - 27471","SAINT-JEAN-DE-LA-HAIZE - 50489","LE SAP-ANDRE - 61461","NESLE-NORMANDEUSE - 76460"]
[null,null,null,null,null,null,null,null,null,null,null,null,null,null,null,null,null,null,null,null,null,null,null,null,null,null,null,null,null,null,null,null,null,null,"PERIGNY - 14496","PORTES - 27472","SAINT-JEAN-DE-LA-RIVIERE - 50490","SARCEAUX - 61462","NEUFBOSC - 76461"]
[null,null,null,null,null,null,null,null,null,null,null,null,null,null,null,null,null,null,null,null,null,null,null,null,null,null,null,null,null,null,null,null,null,null,"PERRIERES - 14497","PORT-MORT - 27473","SAINT-JEAN-DE-SAVIGNY - 50491","LA SAUVAGERE - 61463","NEUFCHATEL-EN-BRAY - 76462"]
[null,null,null,null,null,null,null,null,null,null,null,null,null,null,null,null,null,null,null,null,null,null,null,null,null,null,null,null,null,null,null,null,null,null,"PERTHEVILLE-NERS - 14498","POSES - 27474","SAINT-JEAN-DES-BAISANTS - 50492","SEES - 61464","NEUF-MARCHE - 76463"]
[null,null,null,null,null,null,null,null,null,null,null,null,null,null,null,null,null,null,null,null,null,null,null,null,null,null,null,null,null,null,null,null,null,null,"PETIVILLE - 14499","LA POTERIE-MATHIEU - 27475","SAINT-JEAN-DES-CHAMPS - 50493","SEGRIE-FONTAINE - 61465","LA NEUVILLE-CHANT-D'OISEL - 76464"]
[null,null,null,null,null,null,null,null,null,null,null,null,null,null,null,null,null,null,null,null,null,null,null,null,null,null,null,null,null,null,null,null,null,null,"PIERREFITTE-EN-AUGE - 14500","LES PREAUX - 27476","SAINT-JEAN-DU-CORAIL - 50494","LA SELLE-LA-FORGE - 61466","NEUVILLE-FERRIERES - 76465"]
[null,null,null,null,null,null,null,null,null,null,null,null,null,null,null,null,null,null,null,null,null,null,null,null,null,null,null,null,null,null,null,null,null,null,"PIERREFITTE-EN-CINGLAIS - 14501","PRESSAGNY-L'ORGUEILLEUX - 27477","SAINT-JEAN-DU-CORAIL-DES-BOIS - 50495","SEMALLE - 61467","NEVILLE - 76467"]
[null,null,null,null,null,null,null,null,null,null,null,null,null,null,null,null,null,null,null,null,null,null,null,null,null,null,null,null,null,null,null,null,null,null,"PIERREPONT - 14502","PREY - 27478","SAINT-JEAN-LE-THOMAS - 50496","SENTILLY - 61468","NOINTOT - 76468"]
[null,null,null,null,null,null,null,null,null,null,null,null,null,null,null,null,null,null,null,null,null,null,null,null,null,null,null,null,null,null,null,null,null,null,"PIERRES - 14503","PUCHAY - 27480","SAINT-JORES - 50497","SEPT-FORGES - 61469","NOLLEVAL - 76469"]
[null,null,null,null,null,null,null,null,null,null,null,null,null,null,null,null,null,null,null,null,null,null,null,null,null,null,null,null,null,null,null,null,null,null,"LE PIN - 14504","PULLAY - 27481","SAINT-JOSEPH - 50498","SERANS - 61470","NORMANVILLE - 76470"]
[null,null,null,null,null,null,null,null,null,null,null,null,null,null,null,null,null,null,null,null,null,null,null,null,null,null,null,null,null,null,null,null,null,null,"PLACY - 14505","LA PYLE - 27482","SAINT-LAURENT-DE-CUVES - 50499","SERIGNY - 61471","NORVILLE - 76471"]
[null,null,null,null,null,null,null,null,null,null,null,null,null,null,null,null,null,null,null,null,null,null,null,null,null,null,null,null,null,null,null,null,null,null,"PLANQUERY - 14506","QUATREMARE - 27483","SAINT-LAURENT-DE-TERREGATTE - 50500","SEVIGNY - 61472","NOTRE-DAME-D'ALIERMONT - 76472"]
[null,null,null,null,null,null,null,null,null,null,null,null,null,null,null,null,null,null,null,null,null,null,null,null,null,null,null,null,null,null,null,null,null,null,"LE PLESSIS-GRIMOULT - 14508","QUESSIGNY - 27484","SAINT-LO - 50502","SEVRAI - 61473","NOTRE-DAME-DE-BLIQUETUIT - 76473"]
[null,null,null,null,null,null,null,null,null,null,null,null,null,null,null,null,null,null,null,null,null,null,null,null,null,null,null,null,null,null,null,null,null,null,"PLUMETOT - 14509","QUILLEBEUF-SUR-SEINE - 27485","SAINT-LO-D'OURVILLE - 50503","SILLY-EN-GOUFFERN - 61474","NOTRE-DAME-DE-BONDEVILLE - 76474"]
[null,null,null,null,null,null,null,null,null,null,null,null,null,null,null,null,null,null,null,null,null,null,null,null,null,null,null,null,null,null,null,null,null,null,"LA POMMERAYE - 14510","QUITTEBEUF - 27486","SAINT-LOUET-SUR-VIRE - 50504","SOLIGNY-LA-TRAPPE - 61475","FRANQUEVILLE-SAINT-PIERRE - 76475"]
[null,null,null,null,null,null,null,null,null,null,null,null,null,null,null,null,null,null,null,null,null,null,null,null,null,null,null,null,null,null,null,null,null,null,"PONT-BELLANGER - 14511","RADEPONT - 27487","SAINT-LOUP - 50505","SURE - 61476","NOTRE-DAME-DE-GRAVENCHON - 76476"]
[null,null,null,null,null,null,null,null,null,null,null,null,null,null,null,null,null,null,null,null,null,null,null,null,null,null,null,null,null,null,null,null,null,null,"PONTECOULANT - 14512","RENNEVILLE - 27488","SAINT-MALO-DE-LA-LANDE - 50506","SURVIE - 61477","NOTRE-DAME-DU-BEC - 76477"]
[null,null,null,null,null,null,null,null,null,null,null,null,null,null,null,null,null,null,null,null,null,null,null,null,null,null,null,null,null,null,null,null,null,null,"PONT-FARCY - 14513","REUILLY - 27489","SAINT-MARCOUF - 50507","TAILLEBOIS - 61478","NOTRE-DAME-DU-PARC - 76478"]
[null,null,null,null,null,null,null,null,null,null,null,null,null,null,null,null,null,null,null,null,null,null,null,null,null,null,null,null,null,null,null,null,null,null,"PONT-L'EVEQUE - 14514","RICHEVILLE - 27490","SAINTE-MARIE-DU-BOIS - 50508","TANQUES - 61479","NULLEMONT - 76479"]
[null,null,null,null,null,null,null,null,null,null,null,null,null,null,null,null,null,null,null,null,null,null,null,null,null,null,null,null,null,null,null,null,null,null,"PORT-EN-BESSIN-HUPPAIN - 14515","ROMAN - 27491","SAINTE-MARIE-DU-MONT - 50509","TANVILLE - 61480","OCQUEVILLE - 76480"]
[null,null,null,null,null,null,null,null,null,null,null,null,null,null,null,null,null,null,null,null,null,null,null,null,null,null,null,null,null,null,null,null,null,null,"POTIGNY - 14516","ROMILLY-LA-PUTHENAYE - 27492","SAINT-MARTIN-D'AUBIGNY - 50510","TELLIERES-LE-PLESSIS - 61481","OCTEVILLE-SUR-MER - 76481"]
[null,null,null,null,null,null,null,null,null,null,null,null,null,null,null,null,null,null,null,null,null,null,null,null,null,null,null,null,null,null,null,null,null,null,"POUSSY-LA-CAMPAGNE - 14517","ROMILLY-SUR-ANDELLE - 27493","SAINT-MARTIN-D'AUDOUVILLE - 50511","TESSE-FROULAY - 61482","OFFRANVILLE - 76482"]
[null,null,null,null,null,null,null,null,null,null,null,null,null,null,null,null,null,null,null,null,null,null,null,null,null,null,null,null,null,null,null,null,null,null,"PREAUX-SAINT-SEBASTIEN - 14518","LA ROQUETTE - 27495","SAINT-MARTIN-DE-BONFOSSE - 50512","BAGNOLES-DE-L'ORNE - 61483","OHERVILLE - 76483"]
[null,null,null,null,null,null,null,null,null,null,null,null,null,null,null,null,null,null,null,null,null,null,null,null,null,null,null,null,null,null,null,null,null,null,"PREAUX-BOCAGE - 14519","ROSAY-SUR-LIEURE - 27496","SAINT-MARTIN-DE-CENILLY - 50513","LE THEIL - 61484","OISSEL - 76484"]
[null,null,null,null,null,null,null,null,null,null,null,null,null,null,null,null,null,null,null,null,null,null,null,null,null,null,null,null,null,null,null,null,null,null,"LE PRE-D'AUGE - 14520","ROUGEMONTIERS - 27497","CHAULIEU - 50514","TICHEVILLE - 61485","OMONVILLE - 76485"]
[null,null,null,null,null,null,null,null,null,null,null,null,null,null,null,null,null,null,null,null,null,null,null,null,null,null,null,null,null,null,null,null,null,null,"PRESLES - 14521","ROUGE-PERRIERS - 27498","SAINT-MARTIN-DE-LANDELLES - 50515","TINCHEBRAY - 61486","ORIVAL - 76486"]
[null,null,null,null,null,null,null,null,null,null,null,null,null,null,null,null,null,null,null,null,null,null,null,null,null,null,null,null,null,null,null,null,null,null,"PRETREVILLE - 14522","LA ROUSSIERE - 27499","SAINT-MARTIN-DES-CHAMPS - 50516","TORCHAMP - 61487","OSMOY-SAINT-VALERY - 76487"]
[null,null,null,null,null,null,null,null,null,null,null,null,null,null,null,null,null,null,null,null,null,null,null,null,null,null,null,null,null,null,null,null,null,null,"PROUSSY - 14523","ROUTOT - 27500","SAINT-MARTIN-DE-VARREVILLE - 50517","TOUQUETTES - 61488","OUAINVILLE - 76488"]
[null,null,null,null,null,null,null,null,null,null,null,null,null,null,null,null,null,null,null,null,null,null,null,null,null,null,null,null,null,null,null,null,null,null,"PUTOT-EN-AUGE - 14524","ROUVRAY - 27501","SAINT-MARTIN-LE-BOUILLANT - 50518","LES TOURAILLES - 61489","OUDALLE - 76489"]
[null,null,null,null,null,null,null,null,null,null,null,null,null,null,null,null,null,null,null,null,null,null,null,null,null,null,null,null,null,null,null,null,null,null,"PUTOT-EN-BESSIN - 14525","RUGLES - 27502","SAINT-MARTIN-LE-GREARD - 50519","TOURNAI-SUR-DIVE - 61490","OURVILLE-EN-CAUX - 76490"]
[null,null,null,null,null,null,null,null,null,null,null,null,null,null,null,null,null,null,null,null,null,null,null,null,null,null,null,null,null,null,null,null,null,null,"BIEVILLE-QUETIEVILLE - 14527","LE SACQ - 27503","SAINT-MARTIN-LE-HEBERT - 50520","TOUROUVRE - 61491","OUVILLE-L'ABBAYE - 76491"]
[null,null,null,null,null,null,null,null,null,null,null,null,null,null,null,null,null,null,null,null,null,null,null,null,null,null,null,null,null,null,null,null,null,null,"QUETTEVILLE - 14528","SACQUENVILLE - 27504","SAINT-MAUR-DES-BOIS - 50521","TREMONT - 61492","OUVILLE-LA-RIVIERE - 76492"]
[null,null,null,null,null,null,null,null,null,null,null,null,null,null,null,null,null,null,null,null,null,null,null,null,null,null,null,null,null,null,null,null,null,null,"RANCHY - 14529","SAINT-AGNAN-DE-CERNIERES - 27505","SAINT-MAURICE-EN-COTENTIN - 50522","LA TRINITE-DES-LAITIERS - 61493","PALUEL - 76493"]
[null,null,null,null,null,null,null,null,null,null,null,null,null,null,null,null,null,null,null,null,null,null,null,null,null,null,null,null,null,null,null,null,null,null,"RANVILLE - 14530","SAINT-AMAND-DES-HAUTES-TERRES - 27506","SAINTE-MERE-EGLISE - 50523","TRUN - 61494","PARC-D'ANXTOT - 76494"]
[null,null,null,null,null,null,null,null,null,null,null,null,null,null,null,null,null,null,null,null,null,null,null,null,null,null,null,null,null,null,null,null,null,null,"RAPILLY - 14531","SAINT-ANDRE-DE-L'EURE - 27507","SAINT-MICHEL-DE-LA-PIERRE - 50524","UROU-ET-CRENNES - 61496","PAVILLY - 76495"]
[null,null,null,null,null,null,null,null,null,null,null,null,null,null,null,null,null,null,null,null,null,null,null,null,null,null,null,null,null,null,null,null,null,null,"LE RECULEY - 14532","SAINT-ANTONIN-DE-SOMMAIRE - 27508","SAINT-MICHEL-DE-MONTJOIE - 50525","VALFRAMBERT - 61497","PENLY - 76496"]
[null,null,null,null,null,null,null,null,null,null,null,null,null,null,null,null,null,null,null,null,null,null,null,null,null,null,null,null,null,null,null,null,null,null,"REPENTIGNY - 14533","SAINT-AQUILIN-DE-PACY - 27510","SAINT-NICOLAS-DE-PIERREPONT - 50528","VAUNOISE - 61498","PETIT-COURONNE - 76497"]
[null,null,null,null,null,null,null,null,null,null,null,null,null,null,null,null,null,null,null,null,null,null,null,null,null,null,null,null,null,null,null,null,null,null,"REUX - 14534","SAINT-AUBIN-D'ECROSVILLE - 27511","SAINT-NICOLAS-DES-BOIS - 50529","LES VENTES-DE-BOURSE - 61499","LE PETIT-QUEVILLY - 76498"]
[null,null,null,null,null,null,null,null,null,null,null,null,null,null,null,null,null,null,null,null,null,null,null,null,null,null,null,null,null,null,null,null,null,null,"REVIERS - 14535","SAINT-AUBIN-DE-SCELLON - 27512","SAINT-OVIN - 50531","LA VENTROUZE - 61500","PETIVILLE - 76499"]
[null,null,null,null,null,null,null,null,null,null,null,null,null,null,null,null,null,null,null,null,null,null,null,null,null,null,null,null,null,null,null,null,null,null,"LA RIVIERE-SAINT-SAUVEUR - 14536","SAINT-AUBIN-DES-HAYES - 27513","SAINT-PAIR-SUR-MER - 50532","VERRIERES - 61501","PIERRECOURT - 76500"]
[null,null,null,null,null,null,null,null,null,null,null,null,null,null,null,null,null,null,null,null,null,null,null,null,null,null,null,null,null,null,null,null,null,null,"ROCQUANCOURT - 14538","SAINT-AUBIN-DU-THENNEY - 27514","SAINT-PATRICE-DE-CLAIDS - 50533","VIDAI - 61502","PIERREFIQUES - 76501"]
[null,null,null,null,null,null,null,null,null,null,null,null,null,null,null,null,null,null,null,null,null,null,null,null,null,null,null,null,null,null,null,null,null,null,"LA ROCQUE - 14539","SAINT-AUBIN-LE-GUICHARD - 27515","SAINT-PELLERIN - 50534","VIEUX-PONT - 61503","PIERREVAL - 76502"]
[null,null,null,null,null,null,null,null,null,null,null,null,null,null,null,null,null,null,null,null,null,null,null,null,null,null,null,null,null,null,null,null,null,null,"ROCQUES - 14540","SAINT-AUBIN-LE-VERTUEUX - 27516","SAINTE-PIENCE - 50535","VILLEBADIN - 61504","PISSY-POVILLE - 76503"]
[null,null,null,null,null,null,null,null,null,null,null,null,null,null,null,null,null,null,null,null,null,null,null,null,null,null,null,null,null,null,null,null,null,null,"LA ROQUE-BAIGNARD - 14541","SAINT-AUBIN-SUR-GAILLON - 27517","SAINT-PIERRE-D'ARTHEGLISE - 50536","VILLEDIEU-LES-BAILLEUL - 61505","PLEINE-SEVE - 76504"]
[null,null,null,null,null,null,null,null,null,null,null,null,null,null,null,null,null,null,null,null,null,null,null,null,null,null,null,null,null,null,null,null,null,null,"ROSEL - 14542","SAINT-AUBIN-SUR-QUILLEBEUF - 27518","SAINT-PIERRE-DE-COUTANCES - 50537","VILLERS-EN-OUCHE - 61506","POMMEREUX - 76505"]
[null,null,null,null,null,null,null,null,null,null,null,null,null,null,null,null,null,null,null,null,null,null,null,null,null,null,null,null,null,null,null,null,null,null,"ROTS - 14543","SAINTE-BARBE-SUR-GAILLON - 27519","SAINT-PIERRE-DE-SEMILLY - 50538","VILLIERS-SOUS-MORTAGNE - 61507","POMMEREVAL - 76506"]
[null,null,null,null,null,null,null,null,null,null,null,null,null,null,null,null,null,null,null,null,null,null,null,null,null,null,null,null,null,null,null,null,null,null,"ROUCAMPS - 14544","SAINT-BENOIT-DES-OMBRES - 27520","SAINT-PIERRE-EGLISE - 50539","VIMOUTIERS - 61508","PONTS-ET-MARAIS - 76507"]
[null,null,null,null,null,null,null,null,null,null,null,null,null,null,null,null,null,null,null,null,null,null,null,null,null,null,null,null,null,null,null,null,null,null,"ROULLOURS - 14545","SAINT-CHRISTOPHE-SUR-AVRE - 27521","SAINT-PIERRE-LANGERS - 50540","VINGT-HANAPS - 61509","LA POTERIE-CAP-D'ANTIFER - 76508"]
[null,null,null,null,null,null,null,null,null,null,null,null,null,null,null,null,null,null,null,null,null,null,null,null,null,null,null,null,null,null,null,null,null,null,"ROUVRES - 14546","SAINT-CHRISTOPHE-SUR-CONDE - 27522","SAINT-PLANCHERS - 50541","VITRAI-SOUS-LAIGLE - 61510","PREAUX - 76509"]
[null,null,null,null,null,null,null,null,null,null,null,null,null,null,null,null,null,null,null,null,null,null,null,null,null,null,null,null,null,null,null,null,null,null,"RUBERCY - 14547","SAINT-CLAIR-D'ARCEY - 27523","SAINT-POIS - 50542","VRIGNY - 61511","PRETOT-VICQUEMARE - 76510"]
[null,null,null,null,null,null,null,null,null,null,null,null,null,null,null,null,null,null,null,null,null,null,null,null,null,null,null,null,null,null,null,null,null,null,"RUCQUEVILLE - 14548","SAINTE-COLOMBE-LA-COMMANDERIE - 27524","SAINT-QUENTIN-SUR-LE-HOMME - 50543","LES YVETEAUX - 61512","PREUSEVILLE - 76511"]
[null,null,null,null,null,null,null,null,null,null,null,null,null,null,null,null,null,null,null,null,null,null,null,null,null,null,null,null,null,null,null,null,null,null,"RULLY - 14549","SAINTE-COLOMBE-PRES-VERNON - 27525","SAINT-REMY-DES-LANDES - 50544","YVRANDES - 61513","PUISENVAL - 76512"]
[null,null,null,null,null,null,null,null,null,null,null,null,null,null,null,null,null,null,null,null,null,null,null,null,null,null,null,null,null,null,null,null,null,null,"RUMESNIL - 14550","SAINTE-CROIX-SUR-AIZIER - 27526","SAINT-ROMPHAIRE - 50545",null,"QUEVILLON - 76513"]
[null,null,null,null,null,null,null,null,null,null,null,null,null,null,null,null,null,null,null,null,null,null,null,null,null,null,null,null,null,null,null,null,null,null,"RUSSY - 14551","SAINT-CYR-DE-SALERNE - 27527","SAINT-SAMSON-DE-BONFOSSE - 50546",null,"QUEVREVILLE-LA-POTERIE - 76514"]
[null,null,null,null,null,null,null,null,null,null,null,null,null,null,null,null,null,null,null,null,null,null,null,null,null,null,null,null,null,null,null,null,null,null,"RYES - 14552","LE VAUDREUIL - 27528","SAINT-SAUVEUR-DE-PIERREPONT - 50548",null,"QUIBERVILLE - 76515"]
[null,null,null,null,null,null,null,null,null,null,null,null,null,null,null,null,null,null,null,null,null,null,null,null,null,null,null,null,null,null,null,null,null,null,"SAINT-AGNAN-LE-MALHERBE - 14553","SAINT-CYR-LA-CAMPAGNE - 27529","SAINT-SAUVEUR-LA-POMMERAYE - 50549",null,"QUIEVRECOURT - 76516"]
[null,null,null,null,null,null,null,null,null,null,null,null,null,null,null,null,null,null,null,null,null,null,null,null,null,null,null,null,null,null,null,null,null,null,"SAINT-AIGNAN-DE-CRAMESNIL - 14554","SAINT-DENIS-D'AUGERONS - 27530","SAINT-SAUVEUR-LENDELIN - 50550",null,"QUINCAMPOIX - 76517"]
[null,null,null,null,null,null,null,null,null,null,null,null,null,null,null,null,null,null,null,null,null,null,null,null,null,null,null,null,null,null,null,null,null,null,"SAINT-ANDRE-D'HEBERTOT - 14555","SAINT-DENIS-DES-MONTS - 27531","SAINT-SAUVEUR-LE-VICOMTE - 50551",null,"RAFFETOT - 76518"]
[null,null,null,null,null,null,null,null,null,null,null,null,null,null,null,null,null,null,null,null,null,null,null,null,null,null,null,null,null,null,null,null,null,null,"SAINT-ANDRE-SUR-ORNE - 14556","SAINT-DENIS-DU-BEHELAN - 27532","SAINT-SEBASTIEN-DE-RAIDS - 50552",null,"RAINFREVILLE - 76519"]
[null,null,null,null,null,null,null,null,null,null,null,null,null,null,null,null,null,null,null,null,null,null,null,null,null,null,null,null,null,null,null,null,null,null,"SAINT-ARNOULT - 14557","SAINT-DENIS-LE-FERMENT - 27533","SAINT-SENIER-DE-BEUVRON - 50553",null,"REALCAMP - 76520"]
[null,null,null,null,null,null,null,null,null,null,null,null,null,null,null,null,null,null,null,null,null,null,null,null,null,null,null,null,null,null,null,null,null,null,"SAINT-AUBIN-D'ARQUENAY - 14558","SAINT-DIDIER-DES-BOIS - 27534","SAINT-SENIER-SOUS-AVRANCHES - 50554",null,"REBETS - 76521"]
[null,null,null,null,null,null,null,null,null,null,null,null,null,null,null,null,null,null,null,null,null,null,null,null,null,null,null,null,null,null,null,null,null,null,"SAINT-AUBIN-DES-BOIS - 14559","SAINT-ELIER - 27535","SAINTE-SUZANNE-SUR-VIRE - 50556",null,"LA REMUEE - 76522"]
[null,null,null,null,null,null,null,null,null,null,null,null,null,null,null,null,null,null,null,null,null,null,null,null,null,null,null,null,null,null,null,null,null,null,"SAINT-AUBIN-SUR-MER - 14562","SAINT-ELOI-DE-FOURQUES - 27536","SAINT-SYMPHORIEN-DES-MONTS - 50557",null,"RETONVAL - 76523"]
[null,null,null,null,null,null,null,null,null,null,null,null,null,null,null,null,null,null,null,null,null,null,null,null,null,null,null,null,null,null,null,null,null,null,"SAINT-BENOIT-D'HEBERTOT - 14563","SAINT-ETIENNE-DU-VAUVRAY - 27537","SAINT-SYMPHORIEN-LE-VALOIS - 50558",null,"REUVILLE - 76524"]
[null,null,null,null,null,null,null,null,null,null,null,null,null,null,null,null,null,null,null,null,null,null,null,null,null,null,null,null,null,null,null,null,null,null,"SAINT-CHARLES-DE-PERCY - 14564","SAINT-ETIENNE-L'ALLIER - 27538","SAINT-VAAST-LA-HOUGUE - 50562",null,"RICARVILLE - 76525"]
[null,null,null,null,null,null,null,null,null,null,null,null,null,null,null,null,null,null,null,null,null,null,null,null,null,null,null,null,null,null,null,null,null,null,"SAINT-COME-DE-FRESNE - 14565","SAINT-ETIENNE-SOUS-BAILLEUL - 27539","SAINT-VIGOR-DES-MONTS - 50563",null,"RICARVILLE-DU-VAL - 76526"]
[null,null,null,null,null,null,null,null,null,null,null,null,null,null,null,null,null,null,null,null,null,null,null,null,null,null,null,null,null,null,null,null,null,null,"SAINT-CONTEST - 14566","SAINTE-GENEVIEVE-LES-GASNY - 27540","SAINTENY - 50564",null,"RICHEMONT - 76527"]
[null,null,null,null,null,null,null,null,null,null,null,null,null,null,null,null,null,null,null,null,null,null,null,null,null,null,null,null,null,null,null,null,null,null,"SAINTE-CROIX-GRAND-TONNE - 14568","SAINT-GEORGES-DU-MESNIL - 27541","SARTILLY - 50565",null,"RIEUX - 76528"]
[null,null,null,null,null,null,null,null,null,null,null,null,null,null,null,null,null,null,null,null,null,null,null,null,null,null,null,null,null,null,null,null,null,null,"SAINTE-CROIX-SUR-MER - 14569","SAINT-GEORGES-DU-VIEVRE - 27542","SAUSSEMESNIL - 50567",null,"RIVILLE - 76529"]
[null,null,null,null,null,null,null,null,null,null,null,null,null,null,null,null,null,null,null,null,null,null,null,null,null,null,null,null,null,null,null,null,null,null,"SAINT-CYR-DU-RONCERAY - 14570","SAINT-GEORGES-MOTEL - 27543","SAUSSEY - 50568",null,"ROBERTOT - 76530"]
[null,null,null,null,null,null,null,null,null,null,null,null,null,null,null,null,null,null,null,null,null,null,null,null,null,null,null,null,null,null,null,null,null,null,"SAINT-DENIS-DE-MAILLOC - 14571","SAINT-GERMAIN-DE-FRESNEY - 27544","SAVIGNY - 50569",null,"ROCQUEFORT - 76531"]
[null,null,null,null,null,null,null,null,null,null,null,null,null,null,null,null,null,null,null,null,null,null,null,null,null,null,null,null,null,null,null,null,null,null,"SAINT-DENIS-DE-MERE - 14572","SAINT-GERMAIN-DE-PASQUIER - 27545","SAVIGNY-LE-VIEUX - 50570",null,"ROCQUEMONT - 76532"]
[null,null,null,null,null,null,null,null,null,null,null,null,null,null,null,null,null,null,null,null,null,null,null,null,null,null,null,null,null,null,null,null,null,null,"SAINT-DENIS-MAISONCELLES - 14573","SAINT-GERMAIN-DES-ANGLES - 27546","SEBEVILLE - 50571",null,"ROGERVILLE - 76533"]
[null,null,null,null,null,null,null,null,null,null,null,null,null,null,null,null,null,null,null,null,null,null,null,null,null,null,null,null,null,null,null,null,null,null,"SAINT-DESIR - 14574","SAINT-GERMAIN-LA-CAMPAGNE - 27547","SENOVILLE - 50572",null,"ROLLEVILLE - 76534"]
[null,null,null,null,null,null,null,null,null,null,null,null,null,null,null,null,null,null,null,null,null,null,null,null,null,null,null,null,null,null,null,null,null,null,"SAINT-ETIENNE-LA-THILLAYE - 14575","SAINT-GERMAIN-SUR-AVRE - 27548","SERVIGNY - 50573",null,"RONCHEROLLES-EN-BRAY - 76535"]
[null,null,null,null,null,null,null,null,null,null,null,null,null,null,null,null,null,null,null,null,null,null,null,null,null,null,null,null,null,null,null,null,null,null,"SAINTE-FOY-DE-MONTGOMMERY - 14576","SAINT-GERMAIN-VILLAGE - 27549","SERVON - 50574",null,"RONCHEROLLES-SUR-LE-VIVIER - 76536"]
[null,null,null,null,null,null,null,null,null,null,null,null,null,null,null,null,null,null,null,null,null,null,null,null,null,null,null,null,null,null,null,null,null,null,"SAINT-GABRIEL-BRECY - 14577","SAINT-GREGOIRE-DU-VIEVRE - 27550","SIDEVILLE - 50575",null,"RONCHOIS - 76537"]
[null,null,null,null,null,null,null,null,null,null,null,null,null,null,null,null,null,null,null,null,null,null,null,null,null,null,null,null,null,null,null,null,null,null,"SAINT-GATIEN-DES-BOIS - 14578","SAINT-JEAN-DE-LA-LEQUERAYE - 27551","SIOUVILLE-HAGUE - 50576",null,"ROSAY - 76538"]
[null,null,null,null,null,null,null,null,null,null,null,null,null,null,null,null,null,null,null,null,null,null,null,null,null,null,null,null,null,null,null,null,null,null,"SAINT-GEORGES-D'AUNAY - 14579","SAINT-JEAN-DU-THENNEY - 27552","SORTOSVILLE-EN-BEAUMONT - 50577",null,"ROUEN - 76540"]
[null,null,null,null,null,null,null,null,null,null,null,null,null,null,null,null,null,null,null,null,null,null,null,null,null,null,null,null,null,null,null,null,null,null,"SAINT-GEORGES-EN-AUGE - 14580","SAINT-JULIEN-DE-LA-LIEGUE - 27553","SORTOSVILLE - 50578",null,"ROUMARE - 76541"]
[null,null,null,null,null,null,null,null,null,null,null,null,null,null,null,null,null,null,null,null,null,null,null,null,null,null,null,null,null,null,null,null,null,null,"SAINT-GERMAIN-D'ECTOT - 14581","SAINT-JUST - 27554","SOTTEVAST - 50579",null,"ROUTES - 76542"]
[null,null,null,null,null,null,null,null,null,null,null,null,null,null,null,null,null,null,null,null,null,null,null,null,null,null,null,null,null,null,null,null,null,null,"SAINT-GERMAIN-DE-LIVET - 14582","SAINT-LAURENT-DES-BOIS - 27555","SOTTEVILLE - 50580",null,"ROUVILLE - 76543"]
[null,null,null,null,null,null,null,null,null,null,null,null,null,null,null,null,null,null,null,null,null,null,null,null,null,null,null,null,null,null,null,null,null,null,"SAINT-GERMAIN-DE-MONTGOMMERY - 14583","SAINT-LAURENT-DU-TENCEMENT - 27556","SOULLES - 50581",null,"ROUVRAY-CATILLON - 76544"]
[null,null,null,null,null,null,null,null,null,null,null,null,null,null,null,null,null,null,null,null,null,null,null,null,null,null,null,null,null,null,null,null,null,null,"SAINT-GERMAIN-DE-TALLEVENDE-LA-LANDE-VAUMONT - 14584","SAINT-LEGER-DE-ROTES - 27557","SOURDEVAL - 50582",null,"ROUXMESNIL-BOUTEILLES - 76545"]
[null,null,null,null,null,null,null,null,null,null,null,null,null,null,null,null,null,null,null,null,null,null,null,null,null,null,null,null,null,null,null,null,null,null,"SAINT-GERMAIN-DU-CRIOULT - 14585","SAINT-LEGER-DU-GENNETEY - 27558","SOURDEVAL-LES-BOIS - 50583",null,"ROYVILLE - 76546"]
[null,null,null,null,null,null,null,null,null,null,null,null,null,null,null,null,null,null,null,null,null,null,null,null,null,null,null,null,null,null,null,null,null,null,"SAINT-GERMAIN-DU-PERT - 14586","SAINT-LUC - 27560","SUBLIGNY - 50584",null,"LA RUE-SAINT-PIERRE - 76547"]
[null,null,null,null,null,null,null,null,null,null,null,null,null,null,null,null,null,null,null,null,null,null,null,null,null,null,null,null,null,null,null,null,null,null,"SAINT-GERMAIN-LA-BLANCHE-HERBE - 14587","SAINT-MACLOU - 27561","SURTAINVILLE - 50585",null,"RY - 76548"]
[null,null,null,null,null,null,null,null,null,null,null,null,null,null,null,null,null,null,null,null,null,null,null,null,null,null,null,null,null,null,null,null,null,null,"SAINT-GERMAIN-LANGOT - 14588","SAINT-MARCEL - 27562","SURVILLE - 50586",null,"SAANE-SAINT-JUST - 76549"]
[null,null,null,null,null,null,null,null,null,null,null,null,null,null,null,null,null,null,null,null,null,null,null,null,null,null,null,null,null,null,null,null,null,null,"SAINT-GERMAIN-LE-VASSON - 14589","SAINT-MARDS-DE-BLACARVILLE - 27563","TAILLEPIED - 50587",null,"SAHURS - 76550"]
[null,null,null,null,null,null,null,null,null,null,null,null,null,null,null,null,null,null,null,null,null,null,null,null,null,null,null,null,null,null,null,null,null,null,"SAINTE-HONORINE-DE-DUCY - 14590","SAINT-MARDS-DE-FRESNE - 27564","TAMERVILLE - 50588",null,"SAINNEVILLE - 76551"]
[null,null,null,null,null,null,null,null,null,null,null,null,null,null,null,null,null,null,null,null,null,null,null,null,null,null,null,null,null,null,null,null,null,null,"SAINTE-HONORINE-DES-PERTES - 14591","SAINTE-MARGUERITE-DE-L'AUTEL - 27565","TANIS - 50589",null,"SAINTE-ADRESSE - 76552"]
[null,null,null,null,null,null,null,null,null,null,null,null,null,null,null,null,null,null,null,null,null,null,null,null,null,null,null,null,null,null,null,null,null,null,"SAINTE-HONORINE-DU-FAY - 14592","SAINTE-MARGUERITE-EN-OUCHE - 27566","LE TANU - 50590",null,"SAINTE-AGATHE-D'ALIERMONT - 76553"]
[null,null,null,null,null,null,null,null,null,null,null,null,null,null,null,null,null,null,null,null,null,null,null,null,null,null,null,null,null,null,null,null,null,null,"SAINT-HYMER - 14593","SAINTE-MARIE-DE-VATIMESNIL - 27567","LE TEILLEUL - 50591",null,"SAINT-AIGNAN-SUR-RY - 76554"]
[null,null,null,null,null,null,null,null,null,null,null,null,null,null,null,null,null,null,null,null,null,null,null,null,null,null,null,null,null,null,null,null,null,null,"SAINT-JEAN-DE-LIVET - 14595","SAINTE-MARTHE - 27568","TESSY-SUR-VIRE - 50592",null,"SAINT-ANDRE-SUR-CAILLY - 76555"]
[null,null,null,null,null,null,null,null,null,null,null,null,null,null,null,null,null,null,null,null,null,null,null,null,null,null,null,null,null,null,null,null,null,null,"SAINT-JEAN-DES-ESSARTIERS - 14596","SAINT-MARTIN-DU-TILLEUL - 27569","TEURTHEVILLE-BOCAGE - 50593",null,"SAINT-ANTOINE-LA-FORET - 76556"]
[null,null,null,null,null,null,null,null,null,null,null,null,null,null,null,null,null,null,null,null,null,null,null,null,null,null,null,null,null,null,null,null,null,null,"SAINT-JEAN-LE-BLANC - 14597","SAINT-MARTIN-LA-CAMPAGNE - 27570","TEURTHEVILLE-HAGUE - 50594",null,"SAINT-ARNOULT - 76557"]
[null,null,null,null,null,null,null,null,null,null,null,null,null,null,null,null,null,null,null,null,null,null,null,null,null,null,null,null,null,null,null,null,null,null,"SAINT-JOUIN - 14598","SAINT-MARTIN-SAINT-FIRMIN - 27571","LE THEIL - 50595",null,"SAINT-AUBIN-CELLOVILLE - 76558"]
[null,null,null,null,null,null,null,null,null,null,null,null,null,null,null,null,null,null,null,null,null,null,null,null,null,null,null,null,null,null,null,null,null,null,"SAINT-JULIEN-DE-MAILLOC - 14599","SAINT-MESLIN-DU-BOSC - 27572","THEVILLE - 50596",null,"SAINT-AUBIN-DE-CRETOT - 76559"]
[null,null,null,null,null,null,null,null,null,null,null,null,null,null,null,null,null,null,null,null,null,null,null,null,null,null,null,null,null,null,null,null,null,null,"SAINT-JULIEN-LE-FAUCON - 14600","SAINT-NICOLAS-D'ATTEZ - 27573","TIREPIED - 50597",null,"SAINT-AUBIN-EPINAY - 76560"]
[null,null,null,null,null,null,null,null,null,null,null,null,null,null,null,null,null,null,null,null,null,null,null,null,null,null,null,null,null,null,null,null,null,null,"SAINT-JULIEN-SUR-CALONNE - 14601","SAINT-NICOLAS-DU-BOSC - 27574","TOCQUEVILLE - 50598",null,"SAINT-AUBIN-LES-ELBEUF - 76561"]
[null,null,null,null,null,null,null,null,null,null,null,null,null,null,null,null,null,null,null,null,null,null,null,null,null,null,null,null,null,null,null,null,null,null,"SAINT-LAMBERT - 14602","SAINTE-OPPORTUNE-DU-BOSC - 27576","TOLLEVAST - 50599",null,"SAINT-AUBIN-LE-CAUF - 76562"]
[null,null,null,null,null,null,null,null,null,null,null,null,null,null,null,null,null,null,null,null,null,null,null,null,null,null,null,null,null,null,null,null,null,null,"SAINT-LAURENT-DE-CONDEL - 14603","SAINTE-OPPORTUNE-LA-MARE - 27577","TONNEVILLE - 50600",null,"SAINT-AUBIN-ROUTOT - 76563"]
[null,null,null,null,null,null,null,null,null,null,null,null,null,null,null,null,null,null,null,null,null,null,null,null,null,null,null,null,null,null,null,null,null,null,"SAINT-LAURENT-DU-MONT - 14604","SAINT-OUEN-D'ATTEZ - 27578","TORIGNI-SUR-VIRE - 50601",null,"SAINT-AUBIN-SUR-MER - 76564"]
[null,null,null,null,null,null,null,null,null,null,null,null,null,null,null,null,null,null,null,null,null,null,null,null,null,null,null,null,null,null,null,null,null,null,"SAINT-LAURENT-SUR-MER - 14605","SAINT-OUEN-DE-PONTCHEUIL - 27579","TOURLAVILLE - 50602",null,"SAINT-AUBIN-SUR-SCIE - 76565"]
[null,null,null,null,null,null,null,null,null,null,null,null,null,null,null,null,null,null,null,null,null,null,null,null,null,null,null,null,null,null,null,null,null,null,"SAINT-LEGER-DUBOSQ - 14606","SAINT-OUEN-DE-THOUBERVILLE - 27580","TOURVILLE-SUR-SIENNE - 50603",null,"SAINTE-AUSTREBERTHE - 76566"]
[null,null,null,null,null,null,null,null,null,null,null,null,null,null,null,null,null,null,null,null,null,null,null,null,null,null,null,null,null,null,null,null,null,null,"SAINT-LOUET-SUR-SEULLES - 14607","SAINT-OUEN-DES-CHAMPS - 27581","TREAUVILLE - 50604",null,"SAINTE-BEUVE-EN-RIVIERE - 76567"]
[null,null,null,null,null,null,null,null,null,null,null,null,null,null,null,null,null,null,null,null,null,null,null,null,null,null,null,null,null,null,null,null,null,null,"SAINT-LOUP-DE-FRIBOIS - 14608","SAINT-OUEN-DU-TILLEUL - 27582","TRELLY - 50605",null,"SAINT-CLAIR-SUR-LES-MONTS - 76568"]
[null,null,null,null,null,null,null,null,null,null,null,null,null,null,null,null,null,null,null,null,null,null,null,null,null,null,null,null,null,null,null,null,null,null,"SAINT-LOUP-HORS - 14609","SAINT-PAUL-DE-FOURQUES - 27584","TRIBEHOU - 50606",null,"SAINTE-COLOMBE - 76569"]
[null,null,null,null,null,null,null,null,null,null,null,null,null,null,null,null,null,null,null,null,null,null,null,null,null,null,null,null,null,null,null,null,null,null,"SAINT-MANVIEU-NORREY - 14610","SAINT-PHILBERT-SUR-BOISSEY - 27586","LA TRINITE - 50607",null,"SAINT-CRESPIN - 76570"]
[null,null,null,null,null,null,null,null,null,null,null,null,null,null,null,null,null,null,null,null,null,null,null,null,null,null,null,null,null,null,null,null,null,null,"SAINT-MANVIEU-BOCAGE - 14611","SAINT-PHILBERT-SUR-RISLE - 27587","TROISGOTS - 50608",null,"SAINTE-CROIX-SUR-BUCHY - 76571"]
[null,null,null,null,null,null,null,null,null,null,null,null,null,null,null,null,null,null,null,null,null,null,null,null,null,null,null,null,null,null,null,null,null,null,"SAINT-MARCOUF - 14613","SAINT-PIERRE-D'AUTILS - 27588","TURQUEVILLE - 50609",null,"SAINT-DENIS-D'ACLON - 76572"]
[null,null,null,null,null,null,null,null,null,null,null,null,null,null,null,null,null,null,null,null,null,null,null,null,null,null,null,null,null,null,null,null,null,null,"SAINTE-MARGUERITE-D'ELLE - 14614","SAINT-PIERRE-DE-BAILLEUL - 27589","URVILLE - 50610",null,"SAINT-DENIS-LE-THIBOULT - 76573"]
[null,null,null,null,null,null,null,null,null,null,null,null,null,null,null,null,null,null,null,null,null,null,null,null,null,null,null,null,null,null,null,null,null,null,"SAINTE-MARGUERITE-DES-LOGES - 14615","SAINT-PIERRE-DE-CERNIERES - 27590","URVILLE-NACQUEVILLE - 50611",null,"SAINT-DENIS-SUR-SCIE - 76574"]
[null,null,null,null,null,null,null,null,null,null,null,null,null,null,null,null,null,null,null,null,null,null,null,null,null,null,null,null,null,null,null,null,null,null,"SAINTE-MARGUERITE-DE-VIETTE - 14616","SAINT-PIERRE-DE-CORMEILLES - 27591","VAINS - 50612",null,"SAINT-ETIENNE-DU-ROUVRAY - 76575"]
[null,null,null,null,null,null,null,null,null,null,null,null,null,null,null,null,null,null,null,null,null,null,null,null,null,null,null,null,null,null,null,null,null,null,"SAINTE-MARIE-LAUMONT - 14618","SAINT-PIERRE-DE-SALERNE - 27592","VALCANVILLE - 50613",null,"SAINT-EUSTACHE-LA-FORET - 76576"]
[null,null,null,null,null,null,null,null,null,null,null,null,null,null,null,null,null,null,null,null,null,null,null,null,null,null,null,null,null,null,null,null,null,null,"SAINTE-MARIE-OUTRE-L'EAU - 14619","SAINT-PIERRE-DES-FLEURS - 27593","LE VALDECIE - 50614",null,"SAINTE-FOY - 76577"]
[null,null,null,null,null,null,null,null,null,null,null,null,null,null,null,null,null,null,null,null,null,null,null,null,null,null,null,null,null,null,null,null,null,null,"SAINT-MARTIN-AUX-CHARTRAINS - 14620","SAINT-PIERRE-DES-IFS - 27594","VALOGNES - 50615",null,"SAINTE-GENEVIEVE - 76578"]
[null,null,null,null,null,null,null,null,null,null,null,null,null,null,null,null,null,null,null,null,null,null,null,null,null,null,null,null,null,null,null,null,null,null,"SAINT-MARTIN-DE-BIENFAITE-LA-CRESSONNIERE - 14621","SAINT-PIERRE-DU-BOSGUERARD - 27595","LE VAL-SAINT-PERE - 50616",null,"SAINT-GEORGES-SUR-FONTAINE - 76580"]
[null,null,null,null,null,null,null,null,null,null,null,null,null,null,null,null,null,null,null,null,null,null,null,null,null,null,null,null,null,null,null,null,null,null,"SAINT-MARTIN-DE-BLAGNY - 14622","SAINT-PIERRE-DU-MESNIL - 27596","VARENGUEBEC - 50617",null,"SAINT-GERMAIN-DES-ESSOURTS - 76581"]
[null,null,null,null,null,null,null,null,null,null,null,null,null,null,null,null,null,null,null,null,null,null,null,null,null,null,null,null,null,null,null,null,null,null,"SAINT-MARTIN-DE-FONTENAY - 14623","SAINT-PIERRE-DU-VAL - 27597","VAROUVILLE - 50618",null,"SAINT-GERMAIN-D'ETABLES - 76582"]
[null,null,null,null,null,null,null,null,null,null,null,null,null,null,null,null,null,null,null,null,null,null,null,null,null,null,null,null,null,null,null,null,null,null,"SAINT-MARTIN-DE-LA-LIEUE - 14625","SAINT-PIERRE-DU-VAUVRAY - 27598","LE VAST - 50619",null,"SAINT-GERMAIN-SOUS-CAILLY - 76583"]
[null,null,null,null,null,null,null,null,null,null,null,null,null,null,null,null,null,null,null,null,null,null,null,null,null,null,null,null,null,null,null,null,null,null,"SAINT-MARTIN-DE-MAILLOC - 14626","SAINT-PIERRE-LA-GARENNE - 27599","VASTEVILLE - 50620",null,"SAINT-GERMAIN-SUR-EAULNE - 76584"]
[null,null,null,null,null,null,null,null,null,null,null,null,null,null,null,null,null,null,null,null,null,null,null,null,null,null,null,null,null,null,null,null,null,null,"SAINT-MARTIN-DE-MIEUX - 14627","SAINT-QUENTIN-DES-ISLES - 27600","VAUDREVILLE - 50621",null,"SAINT-GILLES-DE-CRETOT - 76585"]
[null,null,null,null,null,null,null,null,null,null,null,null,null,null,null,null,null,null,null,null,null,null,null,null,null,null,null,null,null,null,null,null,null,null,"SAINT-MARTIN-DE-SALLEN - 14628","SAINT-SAMSON-DE-LA-ROQUE - 27601","VAUDRIMESNIL - 50622",null,"SAINT-GILLES-DE-LA-NEUVILLE - 76586"]
[null,null,null,null,null,null,null,null,null,null,null,null,null,null,null,null,null,null,null,null,null,null,null,null,null,null,null,null,null,null,null,null,null,null,"SAINT-MARTIN-DES-BESACES - 14629","SAINT-SEBASTIEN-DE-MORSENT - 27602","VAUVILLE - 50623",null,"SAINTE-HELENE-BONDEVILLE - 76587"]
[null,null,null,null,null,null,null,null,null,null,null,null,null,null,null,null,null,null,null,null,null,null,null,null,null,null,null,null,null,null,null,null,null,null,"SAINT-MARTIN-DES-ENTREES - 14630","SAINT-SIMEON - 27603","LA VENDELEE - 50624",null,"SAINT-HELLIER - 76588"]
[null,null,null,null,null,null,null,null,null,null,null,null,null,null,null,null,null,null,null,null,null,null,null,null,null,null,null,null,null,null,null,null,null,null,"SAINT-MARTIN-DON - 14632","SAINT-SULPICE-DE-GRIMBOUVILLE - 27604","VENGEONS - 50625",null,"SAINT-HONORE - 76589"]
[null,null,null,null,null,null,null,null,null,null,null,null,null,null,null,null,null,null,null,null,null,null,null,null,null,null,null,null,null,null,null,null,null,null,"SAINT-MARTIN-DU-MESNIL-OURY - 14633","SAINT-SYLVESTRE-DE-CORMEILLES - 27605","VER - 50626",null,"SAINT-JACQUES-D'ALIERMONT - 76590"]
[null,null,null,null,null,null,null,null,null,null,null,null,null,null,null,null,null,null,null,null,null,null,null,null,null,null,null,null,null,null,null,null,null,null,"SAINT-MICHEL-DE-LIVET - 14634","SAINT-SYMPHORIEN - 27606","VERGONCEY - 50627",null,"SAINT-JACQUES-SUR-DARNETAL - 76591"]
[null,null,null,null,null,null,null,null,null,null,null,null,null,null,null,null,null,null,null,null,null,null,null,null,null,null,null,null,null,null,null,null,null,null,"SAINT-OMER - 14635","SAINT-THURIEN - 27607","VERNIX - 50628",null,"SAINT-JEAN-DE-FOLLEVILLE - 76592"]
[null,null,null,null,null,null,null,null,null,null,null,null,null,null,null,null,null,null,null,null,null,null,null,null,null,null,null,null,null,null,null,null,null,null,"SAINT-OUEN-DES-BESACES - 14636","SAINT-VICTOR-DE-CHRETIENVILLE - 27608","VESLY - 50629",null,"SAINT-JEAN-DE-LA-NEUVILLE - 76593"]
[null,null,null,null,null,null,null,null,null,null,null,null,null,null,null,null,null,null,null,null,null,null,null,null,null,null,null,null,null,null,null,null,null,null,"SAINT-OUEN-DU-MESNIL-OGER - 14637","SAINT-VICTOR-D'EPINE - 27609","VESSEY - 50630",null,"SAINT-JEAN-DU-CARDONNAY - 76594"]
[null,null,null,null,null,null,null,null,null,null,null,null,null,null,null,null,null,null,null,null,null,null,null,null,null,null,null,null,null,null,null,null,null,null,"SAINT-OUEN-LE-HOUX - 14638","SAINT-VICTOR-SUR-AVRE - 27610","LES VEYS - 50631",null,"SAINT-JOUIN-BRUNEVAL - 76595"]
[null,null,null,null,null,null,null,null,null,null,null,null,null,null,null,null,null,null,null,null,null,null,null,null,null,null,null,null,null,null,null,null,null,null,"SAINT-OUEN-LE-PIN - 14639","SAINT-VIGOR - 27611","LE VICEL - 50633",null,"SAINT-LAURENT-DE-BREVEDENT - 76596"]
[null,null,null,null,null,null,null,null,null,null,null,null,null,null,null,null,null,null,null,null,null,null,null,null,null,null,null,null,null,null,null,null,null,null,"SAINT-PAIR - 14640","SAINT-VINCENT-DES-BOIS - 27612","VIDECOSVILLE - 50634",null,"SAINT-LAURENT-EN-CAUX - 76597"]
[null,null,null,null,null,null,null,null,null,null,null,null,null,null,null,null,null,null,null,null,null,null,null,null,null,null,null,null,null,null,null,null,null,null,"SAINT-PAUL-DU-VERNAY - 14643","SAINT-VINCENT-DU-BOULAY - 27613","VIDOUVILLE - 50635",null,"SAINT-LEGER-AUX-BOIS - 76598"]
[null,null,null,null,null,null,null,null,null,null,null,null,null,null,null,null,null,null,null,null,null,null,null,null,null,null,null,null,null,null,null,null,null,null,"SAINT-PHILBERT-DES-CHAMPS - 14644","SANCOURT - 27614","VIERVILLE - 50636",null,"SAINT-LEGER-DU-BOURG-DENIS - 76599"]
[null,null,null,null,null,null,null,null,null,null,null,null,null,null,null,null,null,null,null,null,null,null,null,null,null,null,null,null,null,null,null,null,null,null,"SAINT-PIERRE-AZIF - 14645","SASSEY - 27615","VILLEBAUDON - 50637",null,"SAINT-LEONARD - 76600"]
[null,null,null,null,null,null,null,null,null,null,null,null,null,null,null,null,null,null,null,null,null,null,null,null,null,null,null,null,null,null,null,null,null,null,"SAINT-PIERRE-CANIVET - 14646","LA SAUSSAYE - 27616","VILLECHIEN - 50638",null,"SAINT-MACLOU-DE-FOLLEVILLE - 76602"]
[null,null,null,null,null,null,null,null,null,null,null,null,null,null,null,null,null,null,null,null,null,null,null,null,null,null,null,null,null,null,null,null,null,null,"SAINT-PIERRE-DE-MAILLOC - 14647","SAUSSAY-LA-CAMPAGNE - 27617","VILLEDIEU-LES-POELES - 50639",null,"SAINT-MACLOU-LA-BRIERE - 76603"]
[null,null,null,null,null,null,null,null,null,null,null,null,null,null,null,null,null,null,null,null,null,null,null,null,null,null,null,null,null,null,null,null,null,null,"SAINT-PIERRE-DES-IFS - 14648","SEBECOURT - 27618","VILLIERS-LE-PRE - 50640",null,"SAINT-MARDS - 76604"]
[null,null,null,null,null,null,null,null,null,null,null,null,null,null,null,null,null,null,null,null,null,null,null,null,null,null,null,null,null,null,null,null,null,null,"SAINT-PIERRE-DU-BU - 14649","SELLES - 27620","VILLIERS-FOSSARD - 50641",null,"SAINTE-MARGUERITE-SUR-MER - 76605"]
[null,null,null,null,null,null,null,null,null,null,null,null,null,null,null,null,null,null,null,null,null,null,null,null,null,null,null,null,null,null,null,null,null,null,"SAINT-PIERRE-DU-FRESNE - 14650","SEREZ - 27621","VINDEFONTAINE - 50642",null,"MORIENNE - 76606"]
[null,null,null,null,null,null,null,null,null,null,null,null,null,null,null,null,null,null,null,null,null,null,null,null,null,null,null,null,null,null,null,null,null,null,"SAINT-PIERRE-DU-JONQUET - 14651","SERQUIGNY - 27622","VIRANDEVILLE - 50643",null,"SAINTE-MARGUERITE-SUR-FAUVILLE - 76607"]
[null,null,null,null,null,null,null,null,null,null,null,null,null,null,null,null,null,null,null,null,null,null,null,null,null,null,null,null,null,null,null,null,null,null,"SAINT-PIERRE-DU-MONT - 14652","SURTAUVILLE - 27623","VIREY - 50644",null,"SAINTE-MARGUERITE-SUR-DUCLAIR - 76608"]
[null,null,null,null,null,null,null,null,null,null,null,null,null,null,null,null,null,null,null,null,null,null,null,null,null,null,null,null,null,null,null,null,null,null,"SAINT-PIERRE-LA-VIEILLE - 14653","SURVILLE - 27624","LE VRETOT - 50646",null,"SAINTE-MARIE-AU-BOSC - 76609"]
[null,null,null,null,null,null,null,null,null,null,null,null,null,null,null,null,null,null,null,null,null,null,null,null,null,null,null,null,null,null,null,null,null,null,"SAINT-PIERRE-SUR-DIVES - 14654","SUZAY - 27625","YQUELON - 50647",null,"SAINTE-MARIE-DES-CHAMPS - 76610"]
[null,null,null,null,null,null,null,null,null,null,null,null,null,null,null,null,null,null,null,null,null,null,null,null,null,null,null,null,null,null,null,null,null,null,"SAINT-PIERRE-TARENTAINE - 14655","THEILLEMENT - 27626","YVETOT-BOCAGE - 50648",null,"SAINT-MARTIN-AUX-ARBRES - 76611"]
[null,null,null,null,null,null,null,null,null,null,null,null,null,null,null,null,null,null,null,null,null,null,null,null,null,null,null,null,null,null,null,null,null,null,"SAINT-REMY - 14656","LE THEIL-NOLENT - 27627",null,null,"SAINT-MARTIN-AU-BOSC - 76612"]
[null,null,null,null,null,null,null,null,null,null,null,null,null,null,null,null,null,null,null,null,null,null,null,null,null,null,null,null,null,null,null,null,null,null,"SAINT-SAMSON - 14657","THEVRAY - 27628",null,null,"SAINT-MARTIN-AUX-BUNEAUX - 76613"]
[null,null,null,null,null,null,null,null,null,null,null,null,null,null,null,null,null,null,null,null,null,null,null,null,null,null,null,null,null,null,null,null,null,null,"SAINT-SEVER-CALVADOS - 14658","THIBERVILLE - 27629",null,null,"SAINT-MARTIN-DE-BOSCHERVILLE - 76614"]
[null,null,null,null,null,null,null,null,null,null,null,null,null,null,null,null,null,null,null,null,null,null,null,null,null,null,null,null,null,null,null,null,null,null,"SAINT-SYLVAIN - 14659","THIBOUVILLE - 27630",null,null,"SAINT-MARTIN-DU-BEC - 76615"]
[null,null,null,null,null,null,null,null,null,null,null,null,null,null,null,null,null,null,null,null,null,null,null,null,null,null,null,null,null,null,null,null,null,null,"SAINT-VAAST-EN-AUGE - 14660","THIERVILLE - 27631",null,null,"SAINT-MARTIN-DU-MANOIR - 76616"]
[null,null,null,null,null,null,null,null,null,null,null,null,null,null,null,null,null,null,null,null,null,null,null,null,null,null,null,null,null,null,null,null,null,null,"SAINT-VAAST-SUR-SEULLES - 14661","LE THIL - 27632",null,null,"SAINT-MARTIN-DU-VIVIER - 76617"]
[null,null,null,null,null,null,null,null,null,null,null,null,null,null,null,null,null,null,null,null,null,null,null,null,null,null,null,null,null,null,null,null,null,null,"SAINT-VIGOR-DES-MEZERETS - 14662","LES THILLIERS-EN-VEXIN - 27633",null,null,"SAINT-MARTIN-EN-CAMPAGNE - 76618"]
[null,null,null,null,null,null,null,null,null,null,null,null,null,null,null,null,null,null,null,null,null,null,null,null,null,null,null,null,null,null,null,null,null,null,"SAINT-VIGOR-LE-GRAND - 14663","THOMER-LA-SOGNE - 27634",null,null,"SAINT-MARTIN-LE-GAILLARD - 76619"]
[null,null,null,null,null,null,null,null,null,null,null,null,null,null,null,null,null,null,null,null,null,null,null,null,null,null,null,null,null,null,null,null,null,null,"SALLEN - 14664","LE THUIT - 27635",null,null,"SAINT-MARTIN-L'HORTIER - 76620"]
[null,null,null,null,null,null,null,null,null,null,null,null,null,null,null,null,null,null,null,null,null,null,null,null,null,null,null,null,null,null,null,null,null,null,"SALLENELLES - 14665","LE THUIT-ANGER - 27636",null,null,"SAINT-MARTIN-OSMONVILLE - 76621"]
[null,null,null,null,null,null,null,null,null,null,null,null,null,null,null,null,null,null,null,null,null,null,null,null,null,null,null,null,null,null,null,null,null,null,"SANNERVILLE - 14666","THUIT-HEBERT - 27637",null,null,"SAINT-MAURICE-D'ETELAN - 76622"]
[null,null,null,null,null,null,null,null,null,null,null,null,null,null,null,null,null,null,null,null,null,null,null,null,null,null,null,null,null,null,null,null,null,null,"SAON - 14667","LE THUIT-SIGNOL - 27638",null,null,"SAINT-MICHEL-D'HALESCOURT - 76623"]
[null,null,null,null,null,null,null,null,null,null,null,null,null,null,null,null,null,null,null,null,null,null,null,null,null,null,null,null,null,null,null,null,null,null,"SAONNET - 14668","LE THUIT-SIMER - 27639",null,null,"SAINT-NICOLAS-D'ALIERMONT - 76624"]
[null,null,null,null,null,null,null,null,null,null,null,null,null,null,null,null,null,null,null,null,null,null,null,null,null,null,null,null,null,null,null,null,null,null,"SASSY - 14669","TILLEUL-DAME-AGNES - 27640",null,null,"SAINT-NICOLAS-DE-BLIQUETUIT - 76625"]
[null,null,null,null,null,null,null,null,null,null,null,null,null,null,null,null,null,null,null,null,null,null,null,null,null,null,null,null,null,null,null,null,null,null,"SECQUEVILLE-EN-BESSIN - 14670","LE TILLEUL-LAMBERT - 27641",null,null,"SAINT-NICOLAS-DE-LA-HAIE - 76626"]
[null,null,null,null,null,null,null,null,null,null,null,null,null,null,null,null,null,null,null,null,null,null,null,null,null,null,null,null,null,null,null,null,null,null,"SEPT-FRERES - 14671","LE TILLEUL-OTHON - 27642",null,null,"SAINT-NICOLAS-DE-LA-TAILLE - 76627"]
[null,null,null,null,null,null,null,null,null,null,null,null,null,null,null,null,null,null,null,null,null,null,null,null,null,null,null,null,null,null,null,null,null,null,"SEPT-VENTS - 14672","TILLIERES-SUR-AVRE - 27643",null,null,"SAINT-OUEN-DU-BREUIL - 76628"]
[null,null,null,null,null,null,null,null,null,null,null,null,null,null,null,null,null,null,null,null,null,null,null,null,null,null,null,null,null,null,null,null,null,null,"SOIGNOLLES - 14674","TILLY - 27644",null,null,"SAINT-OUEN-LE-MAUGER - 76629"]
[null,null,null,null,null,null,null,null,null,null,null,null,null,null,null,null,null,null,null,null,null,null,null,null,null,null,null,null,null,null,null,null,null,null,"SOLIERS - 14675","TOCQUEVILLE - 27645",null,null,"SAINT-OUEN-SOUS-BAILLY - 76630"]
[null,null,null,null,null,null,null,null,null,null,null,null,null,null,null,null,null,null,null,null,null,null,null,null,null,null,null,null,null,null,null,null,null,null,"SOMMERVIEU - 14676","LE TORPT - 27646",null,null,"SAINT-PAER - 76631"]
[null,null,null,null,null,null,null,null,null,null,null,null,null,null,null,null,null,null,null,null,null,null,null,null,null,null,null,null,null,null,null,null,null,null,"SOULANGY - 14677","TOSNY - 27647",null,null,"SAINT-PIERRE-BENOUVILLE - 76632"]
[null,null,null,null,null,null,null,null,null,null,null,null,null,null,null,null,null,null,null,null,null,null,null,null,null,null,null,null,null,null,null,null,null,null,"SOUMONT-SAINT-QUENTIN - 14678","TOSTES - 27648",null,null,"SAINT-PIERRE-DE-MANNEVILLE - 76634"]
[null,null,null,null,null,null,null,null,null,null,null,null,null,null,null,null,null,null,null,null,null,null,null,null,null,null,null,null,null,null,null,null,null,null,"SUBLES - 14679","TOUFFREVILLE - 27649",null,null,"SAINT-PIERRE-DES-JONQUIERES - 76635"]
[null,null,null,null,null,null,null,null,null,null,null,null,null,null,null,null,null,null,null,null,null,null,null,null,null,null,null,null,null,null,null,null,null,null,"SULLY - 14680","TOURNEDOS-BOIS-HUBERT - 27650",null,null,"SAINT-PIERRE-DE-VARENGEVILLE - 76636"]
[null,null,null,null,null,null,null,null,null,null,null,null,null,null,null,null,null,null,null,null,null,null,null,null,null,null,null,null,null,null,null,null,null,null,"SURRAIN - 14681","TOURNEDOS-SUR-SEINE - 27651",null,null,"SAINT-PIERRE-EN-PORT - 76637"]
[null,null,null,null,null,null,null,null,null,null,null,null,null,null,null,null,null,null,null,null,null,null,null,null,null,null,null,null,null,null,null,null,null,null,"SURVILLE - 14682","TOURNEVILLE - 27652",null,null,"SAINT-PIERRE-EN-VAL - 76638"]
[null,null,null,null,null,null,null,null,null,null,null,null,null,null,null,null,null,null,null,null,null,null,null,null,null,null,null,null,null,null,null,null,null,null,"TESSEL - 14684","TOURNY - 27653",null,null,"SAINT-PIERRE-LAVIS - 76639"]
[null,null,null,null,null,null,null,null,null,null,null,null,null,null,null,null,null,null,null,null,null,null,null,null,null,null,null,null,null,null,null,null,null,null,"THAON - 14685","TOURVILLE-LA-CAMPAGNE - 27654",null,null,"SAINT-PIERRE-LES-ELBEUF - 76640"]
[null,null,null,null,null,null,null,null,null,null,null,null,null,null,null,null,null,null,null,null,null,null,null,null,null,null,null,null,null,null,null,null,null,null,"LE THEIL-BOCAGE - 14686","TOURVILLE-SUR-PONT-AUDEMER - 27655",null,null,"SAINT-PIERRE-LE-VIEUX - 76641"]
[null,null,null,null,null,null,null,null,null,null,null,null,null,null,null,null,null,null,null,null,null,null,null,null,null,null,null,null,null,null,null,null,null,null,"LE THEIL-EN-AUGE - 14687","TOUTAINVILLE - 27656",null,null,"SAINT-PIERRE-LE-VIGER - 76642"]
[null,null,null,null,null,null,null,null,null,null,null,null,null,null,null,null,null,null,null,null,null,null,null,null,null,null,null,null,null,null,null,null,null,null,"THIEVILLE - 14688","TOUVILLE - 27657",null,null,"SAINT-QUENTIN-AU-BOSC - 76643"]
[null,null,null,null,null,null,null,null,null,null,null,null,null,null,null,null,null,null,null,null,null,null,null,null,null,null,null,null,null,null,null,null,null,null,"THURY-HARCOURT - 14689","LE TREMBLAY-OMONVILLE - 27658",null,null,"SAINT-REMY-BOSCROCOURT - 76644"]
[null,null,null,null,null,null,null,null,null,null,null,null,null,null,null,null,null,null,null,null,null,null,null,null,null,null,null,null,null,null,null,null,null,null,"TIERCEVILLE - 14690","LA TRINITE - 27659",null,null,"SAINT-RIQUIER-EN-RIVIERE - 76645"]
[null,null,null,null,null,null,null,null,null,null,null,null,null,null,null,null,null,null,null,null,null,null,null,null,null,null,null,null,null,null,null,null,null,null,"TILLY-LA-CAMPAGNE - 14691","LA TRINITE-DE-REVILLE - 27660",null,null,"SAINT-RIQUIER-ES-PLAINS - 76646"]
[null,null,null,null,null,null,null,null,null,null,null,null,null,null,null,null,null,null,null,null,null,null,null,null,null,null,null,null,null,null,null,null,null,null,"TILLY-SUR-SEULLES - 14692","LA TRINITE-DE-THOUBERVILLE - 27661",null,null,"SAINT-ROMAIN-DE-COLBOSC - 76647"]
[null,null,null,null,null,null,null,null,null,null,null,null,null,null,null,null,null,null,null,null,null,null,null,null,null,null,null,null,null,null,null,null,null,null,"TORDOUET - 14693","TRIQUEVILLE - 27662",null,null,"SAINT-SAENS - 76648"]
[null,null,null,null,null,null,null,null,null,null,null,null,null,null,null,null,null,null,null,null,null,null,null,null,null,null,null,null,null,null,null,null,null,null,"LE TORQUESNE - 14694","LE TRONCQ - 27663",null,null,"SAINT-SAIRE - 76649"]
[null,null,null,null,null,null,null,null,null,null,null,null,null,null,null,null,null,null,null,null,null,null,null,null,null,null,null,null,null,null,null,null,null,null,"TORTEVAL-QUESNAY - 14695","LE TRONQUAY - 27664",null,null,"SAINT-SAUVEUR-D'EMALLEVILLE - 76650"]
[null,null,null,null,null,null,null,null,null,null,null,null,null,null,null,null,null,null,null,null,null,null,null,null,null,null,null,null,null,null,null,null,null,null,"TORTISAMBERT - 14696","TROUVILLE-LA-HAULE - 27665",null,null,"SAINT-SYLVAIN - 76651"]
[null,null,null,null,null,null,null,null,null,null,null,null,null,null,null,null,null,null,null,null,null,null,null,null,null,null,null,null,null,null,null,null,null,null,"L'OUDON - 14697","LA VACHERIE - 27666",null,null,"SAINT-VAAST-D'EQUIQUEVILLE - 76652"]
[null,null,null,null,null,null,null,null,null,null,null,null,null,null,null,null,null,null,null,null,null,null,null,null,null,null,null,null,null,null,null,null,null,null,"TOUFFREVILLE - 14698","VALAILLES - 27667",null,null,"SAINT-VAAST-DIEPPEDALLE - 76653"]
[null,null,null,null,null,null,null,null,null,null,null,null,null,null,null,null,null,null,null,null,null,null,null,null,null,null,null,null,null,null,null,null,null,null,"TOUQUES - 14699","LE VAL-DAVID - 27668",null,null,"SAINT-VAAST-DU-VAL - 76654"]
[null,null,null,null,null,null,null,null,null,null,null,null,null,null,null,null,null,null,null,null,null,null,null,null,null,null,null,null,null,null,null,null,null,null,"TOUR-EN-BESSIN - 14700","VALLETOT - 27669",null,null,"SAINT-VALERY-EN-CAUX - 76655"]
[null,null,null,null,null,null,null,null,null,null,null,null,null,null,null,null,null,null,null,null,null,null,null,null,null,null,null,null,null,null,null,null,null,null,"TOURGEVILLE - 14701","VANDRIMARE - 27670",null,null,"SAINT-VICTOR-L'ABBAYE - 76656"]
[null,null,null,null,null,null,null,null,null,null,null,null,null,null,null,null,null,null,null,null,null,null,null,null,null,null,null,null,null,null,null,null,null,null,"TOURNAY-SUR-ODON - 14702","VANNECROCQ - 27671",null,null,"SAINT-VIGOR-D'YMONVILLE - 76657"]
[null,null,null,null,null,null,null,null,null,null,null,null,null,null,null,null,null,null,null,null,null,null,null,null,null,null,null,null,null,null,null,null,null,null,"TOURNEBU - 14703","VASCOEUIL - 27672",null,null,"SAINT-VINCENT-CRAMESNIL - 76658"]
[null,null,null,null,null,null,null,null,null,null,null,null,null,null,null,null,null,null,null,null,null,null,null,null,null,null,null,null,null,null,null,null,null,null,"LE TOURNEUR - 14704","VATTEVILLE - 27673",null,null,"SAINT-WANDRILLE-RANCON - 76659"]
[null,null,null,null,null,null,null,null,null,null,null,null,null,null,null,null,null,null,null,null,null,null,null,null,null,null,null,null,null,null,null,null,null,null,"TOURNIERES - 14705","VAUX-SUR-EURE - 27674",null,null,"SANDOUVILLE - 76660"]
[null,null,null,null,null,null,null,null,null,null,null,null,null,null,null,null,null,null,null,null,null,null,null,null,null,null,null,null,null,null,null,null,null,null,"TOURVILLE-EN-AUGE - 14706","VENABLES - 27676",null,null,"SASSETOT-LE-MALGARDE - 76662"]
[null,null,null,null,null,null,null,null,null,null,null,null,null,null,null,null,null,null,null,null,null,null,null,null,null,null,null,null,null,null,null,null,null,null,"TOURVILLE-SUR-ODON - 14707","VENON - 27677",null,null,"SASSETOT-LE-MAUCONDUIT - 76663"]
[null,null,null,null,null,null,null,null,null,null,null,null,null,null,null,null,null,null,null,null,null,null,null,null,null,null,null,null,null,null,null,null,null,null,"TRACY-BOCAGE - 14708","LES VENTES - 27678",null,null,"SASSEVILLE - 76664"]
[null,null,null,null,null,null,null,null,null,null,null,null,null,null,null,null,null,null,null,null,null,null,null,null,null,null,null,null,null,null,null,null,null,null,"TRACY-SUR-MER - 14709","VERNEUIL-SUR-AVRE - 27679",null,null,"SAUCHAY - 76665"]
[null,null,null,null,null,null,null,null,null,null,null,null,null,null,null,null,null,null,null,null,null,null,null,null,null,null,null,null,null,null,null,null,null,null,"TREPREL - 14710","VERNEUSSES - 27680",null,null,"SAUMONT-LA-POTERIE - 76666"]
[null,null,null,null,null,null,null,null,null,null,null,null,null,null,null,null,null,null,null,null,null,null,null,null,null,null,null,null,null,null,null,null,null,null,"TREVIERES - 14711","VERNON - 27681",null,null,"SAUQUEVILLE - 76667"]
[null,null,null,null,null,null,null,null,null,null,null,null,null,null,null,null,null,null,null,null,null,null,null,null,null,null,null,null,null,null,null,null,null,null,"TROARN - 14712","VESLY - 27682",null,null,"SAUSSAY - 76668"]
[null,null,null,null,null,null,null,null,null,null,null,null,null,null,null,null,null,null,null,null,null,null,null,null,null,null,null,null,null,null,null,null,null,null,"TROIS-MONTS - 14713","VEZILLON - 27683",null,null,"SAUSSEUZEMARE-EN-CAUX - 76669"]
[null,null,null,null,null,null,null,null,null,null,null,null,null,null,null,null,null,null,null,null,null,null,null,null,null,null,null,null,null,null,null,null,null,null,"LE TRONQUAY - 14714","LE VIEIL-EVREUX - 27684",null,null,"SENNEVILLE-SUR-FECAMP - 76670"]
[null,null,null,null,null,null,null,null,null,null,null,null,null,null,null,null,null,null,null,null,null,null,null,null,null,null,null,null,null,null,null,null,null,null,"TROUVILLE-SUR-MER - 14715","LA VIEILLE-LYRE - 27685",null,null,"SEPT-MEULES - 76671"]
[null,null,null,null,null,null,null,null,null,null,null,null,null,null,null,null,null,null,null,null,null,null,null,null,null,null,null,null,null,null,null,null,null,null,"TRUNGY - 14716","VIEUX-PORT - 27686",null,null,"SERQUEUX - 76672"]
[null,null,null,null,null,null,null,null,null,null,null,null,null,null,null,null,null,null,null,null,null,null,null,null,null,null,null,null,null,null,null,null,null,null,"TRUTTEMER-LE-GRAND - 14717","VIEUX-VILLEZ - 27687",null,null,"SERVAVILLE-SALMONVILLE - 76673"]
[null,null,null,null,null,null,null,null,null,null,null,null,null,null,null,null,null,null,null,null,null,null,null,null,null,null,null,null,null,null,null,null,null,null,"TRUTTEMER-LE-PETIT - 14718","VILLALET - 27688",null,null,"SEVIS - 76674"]
[null,null,null,null,null,null,null,null,null,null,null,null,null,null,null,null,null,null,null,null,null,null,null,null,null,null,null,null,null,null,null,null,null,null,"URVILLE - 14719","VILLEGATS - 27689",null,null,"SIERVILLE - 76675"]
[null,null,null,null,null,null,null,null,null,null,null,null,null,null,null,null,null,null,null,null,null,null,null,null,null,null,null,null,null,null,null,null,null,null,"USSY - 14720","VILLERS-EN-VEXIN - 27690",null,null,"SIGY-EN-BRAY - 76676"]
[null,null,null,null,null,null,null,null,null,null,null,null,null,null,null,null,null,null,null,null,null,null,null,null,null,null,null,null,null,null,null,null,null,null,"VACOGNES-NEUILLY - 14721","VILLERS-SUR-LE-ROULE - 27691",null,null,"SMERMESNIL - 76677"]
[null,null,null,null,null,null,null,null,null,null,null,null,null,null,null,null,null,null,null,null,null,null,null,null,null,null,null,null,null,null,null,null,null,null,"LA VACQUERIE - 14722","VILLETTES - 27692",null,null,"SOMMERY - 76678"]
[null,null,null,null,null,null,null,null,null,null,null,null,null,null,null,null,null,null,null,null,null,null,null,null,null,null,null,null,null,null,null,null,null,null,"VALSEME - 14723","SYLVAINS-LES-MOULINS - 27693",null,null,"SOMMESNIL - 76679"]
[null,null,null,null,null,null,null,null,null,null,null,null,null,null,null,null,null,null,null,null,null,null,null,null,null,null,null,null,null,null,null,null,null,null,"VARAVILLE - 14724","VILLEZ-SOUS-BAILLEUL - 27694",null,null,"SORQUAINVILLE - 76680"]
[null,null,null,null,null,null,null,null,null,null,null,null,null,null,null,null,null,null,null,null,null,null,null,null,null,null,null,null,null,null,null,null,null,null,"VASSY - 14726","VILLEZ-SUR-LE-NEUBOURG - 27695",null,null,"SOTTEVILLE-LES-ROUEN - 76681"]
[null,null,null,null,null,null,null,null,null,null,null,null,null,null,null,null,null,null,null,null,null,null,null,null,null,null,null,null,null,null,null,null,null,null,"VAUBADON - 14727","VILLIERS-EN-DESOEUVRE - 27696",null,null,"SOTTEVILLE-SOUS-LE-VAL - 76682"]
[null,null,null,null,null,null,null,null,null,null,null,null,null,null,null,null,null,null,null,null,null,null,null,null,null,null,null,null,null,null,null,null,null,null,"VAUCELLES - 14728","VIRONVAY - 27697",null,null,"SOTTEVILLE-SUR-MER - 76683"]
[null,null,null,null,null,null,null,null,null,null,null,null,null,null,null,null,null,null,null,null,null,null,null,null,null,null,null,null,null,null,null,null,null,null,"VAUDELOGES - 14729","VITOT - 27698",null,null,"TANCARVILLE - 76684"]
[null,null,null,null,null,null,null,null,null,null,null,null,null,null,null,null,null,null,null,null,null,null,null,null,null,null,null,null,null,null,null,null,null,null,"VAUDRY - 14730","VOISCREVILLE - 27699",null,null,"THEROULDEVILLE - 76685"]
[null,null,null,null,null,null,null,null,null,null,null,null,null,null,null,null,null,null,null,null,null,null,null,null,null,null,null,null,null,null,null,null,null,null,"VAUVILLE - 14731","VRAIVILLE - 27700",null,null,"THEUVILLE-AUX-MAILLOTS - 76686"]
[null,null,null,null,null,null,null,null,null,null,null,null,null,null,null,null,null,null,null,null,null,null,null,null,null,null,null,null,null,null,null,null,null,null,"VAUX-SUR-AURE - 14732","VAL-DE-REUIL - 27701",null,null,"THIERGEVILLE - 76688"]
[null,null,null,null,null,null,null,null,null,null,null,null,null,null,null,null,null,null,null,null,null,null,null,null,null,null,null,null,null,null,null,null,null,null,"VAUX-SUR-SEULLES - 14733",null,null,null,"THIETREVILLE - 76689"]
[null,null,null,null,null,null,null,null,null,null,null,null,null,null,null,null,null,null,null,null,null,null,null,null,null,null,null,null,null,null,null,null,null,null,"VENDES - 14734",null,null,null,"THIL-MANNEVILLE - 76690"]
[null,null,null,null,null,null,null,null,null,null,null,null,null,null,null,null,null,null,null,null,null,null,null,null,null,null,null,null,null,null,null,null,null,null,"VENDEUVRE - 14735",null,null,null,"LE THIL-RIBERPRE - 76691"]
[null,null,null,null,null,null,null,null,null,null,null,null,null,null,null,null,null,null,null,null,null,null,null,null,null,null,null,null,null,null,null,null,null,null,"VERSAINVILLE - 14737",null,null,null,"THIOUVILLE - 76692"]
[null,null,null,null,null,null,null,null,null,null,null,null,null,null,null,null,null,null,null,null,null,null,null,null,null,null,null,null,null,null,null,null,null,null,"VERSON - 14738",null,null,null,"LE TILLEUL - 76693"]
[null,null,null,null,null,null,null,null,null,null,null,null,null,null,null,null,null,null,null,null,null,null,null,null,null,null,null,null,null,null,null,null,null,null,"VER-SUR-MER - 14739",null,null,null,"TOCQUEVILLE-EN-CAUX - 76694"]
[null,null,null,null,null,null,null,null,null,null,null,null,null,null,null,null,null,null,null,null,null,null,null,null,null,null,null,null,null,null,null,null,null,null,"LA VESPIERE - 14740",null,null,null,"TOCQUEVILLE-LES-MURS - 76695"]
[null,null,null,null,null,null,null,null,null,null,null,null,null,null,null,null,null,null,null,null,null,null,null,null,null,null,null,null,null,null,null,null,null,null,"LE VEY - 14741",null,null,null,"TOCQUEVILLE-SUR-EU - 76696"]
[null,null,null,null,null,null,null,null,null,null,null,null,null,null,null,null,null,null,null,null,null,null,null,null,null,null,null,null,null,null,null,null,null,null,"VICQUES - 14742",null,null,null,"TORCY-LE-GRAND - 76697"]
[null,null,null,null,null,null,null,null,null,null,null,null,null,null,null,null,null,null,null,null,null,null,null,null,null,null,null,null,null,null,null,null,null,null,"VICTOT-PONTFOL - 14743",null,null,null,"TORCY-LE-PETIT - 76698"]
[null,null,null,null,null,null,null,null,null,null,null,null,null,null,null,null,null,null,null,null,null,null,null,null,null,null,null,null,null,null,null,null,null,null,"VIENNE-EN-BESSIN - 14744",null,null,null,"LE TORP-MESNIL - 76699"]
[null,null,null,null,null,null,null,null,null,null,null,null,null,null,null,null,null,null,null,null,null,null,null,null,null,null,null,null,null,null,null,null,null,null,"VIERVILLE-SUR-MER - 14745",null,null,null,"TOTES - 76700"]
[null,null,null,null,null,null,null,null,null,null,null,null,null,null,null,null,null,null,null,null,null,null,null,null,null,null,null,null,null,null,null,null,null,null,"VIESSOIX - 14746",null,null,null,"TOUFFREVILLE-LA-CABLE - 76701"]
[null,null,null,null,null,null,null,null,null,null,null,null,null,null,null,null,null,null,null,null,null,null,null,null,null,null,null,null,null,null,null,null,null,null,"VIEUX - 14747",null,null,null,"TOUFFREVILLE-LA-CORBELINE - 76702"]
[null,null,null,null,null,null,null,null,null,null,null,null,null,null,null,null,null,null,null,null,null,null,null,null,null,null,null,null,null,null,null,null,null,null,"VIEUX-BOURG - 14748",null,null,null,"TOUFFREVILLE-SUR-EU - 76703"]
[null,null,null,null,null,null,null,null,null,null,null,null,null,null,null,null,null,null,null,null,null,null,null,null,null,null,null,null,null,null,null,null,null,null,"VIEUX-FUME - 14749",null,null,null,"TOURVILLE-LA-CHAPELLE - 76704"]
[null,null,null,null,null,null,null,null,null,null,null,null,null,null,null,null,null,null,null,null,null,null,null,null,null,null,null,null,null,null,null,null,null,null,"VIEUX-PONT-EN-AUGE - 14750",null,null,null,"TOURVILLE-LA-RIVIERE - 76705"]
[null,null,null,null,null,null,null,null,null,null,null,null,null,null,null,null,null,null,null,null,null,null,null,null,null,null,null,null,null,null,null,null,null,null,"VIGNATS - 14751",null,null,null,"TOURVILLE-LES-IFS - 76706"]
[null,null,null,null,null,null,null,null,null,null,null,null,null,null,null,null,null,null,null,null,null,null,null,null,null,null,null,null,null,null,null,null,null,null,"VILLERS-BOCAGE - 14752",null,null,null,"TOURVILLE-SUR-ARQUES - 76707"]
[null,null,null,null,null,null,null,null,null,null,null,null,null,null,null,null,null,null,null,null,null,null,null,null,null,null,null,null,null,null,null,null,null,null,"VILLERS-CANIVET - 14753",null,null,null,"TOUSSAINT - 76708"]
[null,null,null,null,null,null,null,null,null,null,null,null,null,null,null,null,null,null,null,null,null,null,null,null,null,null,null,null,null,null,null,null,null,null,"VILLERS-SUR-MER - 14754",null,null,null,"LE TRAIT - 76709"]
[null,null,null,null,null,null,null,null,null,null,null,null,null,null,null,null,null,null,null,null,null,null,null,null,null,null,null,null,null,null,null,null,null,null,"VILLERVILLE - 14755",null,null,null,"TREMAUVILLE - 76710"]
[null,null,null,null,null,null,null,null,null,null,null,null,null,null,null,null,null,null,null,null,null,null,null,null,null,null,null,null,null,null,null,null,null,null,"LA VILLETTE - 14756",null,null,null,"LE TREPORT - 76711"]
[null,null,null,null,null,null,null,null,null,null,null,null,null,null,null,null,null,null,null,null,null,null,null,null,null,null,null,null,null,null,null,null,null,null,"VILLIERS-LE-SEC - 14757",null,null,null,"LA TRINITE-DU-MONT - 76712"]
[null,null,null,null,null,null,null,null,null,null,null,null,null,null,null,null,null,null,null,null,null,null,null,null,null,null,null,null,null,null,null,null,null,null,"VILLONS-LES-BUISSONS - 14758",null,null,null,"TRIQUERVILLE - 76713"]
[null,null,null,null,null,null,null,null,null,null,null,null,null,null,null,null,null,null,null,null,null,null,null,null,null,null,null,null,null,null,null,null,null,null,"VILLY-LEZ-FALAISE - 14759",null,null,null,"LES TROIS-PIERRES - 76714"]
[null,null,null,null,null,null,null,null,null,null,null,null,null,null,null,null,null,null,null,null,null,null,null,null,null,null,null,null,null,null,null,null,null,null,"VILLY-BOCAGE - 14760",null,null,null,"TROUVILLE - 76715"]
[null,null,null,null,null,null,null,null,null,null,null,null,null,null,null,null,null,null,null,null,null,null,null,null,null,null,null,null,null,null,null,null,null,null,"VIMONT - 14761",null,null,null,"TURRETOT - 76716"]
[null,null,null,null,null,null,null,null,null,null,null,null,null,null,null,null,null,null,null,null,null,null,null,null,null,null,null,null,null,null,null,null,null,null,"VIRE - 14762",null,null,null,"VAL-DE-LA-HAYE - 76717"]
[null,null,null,null,null,null,null,null,null,null,null,null,null,null,null,null,null,null,null,null,null,null,null,null,null,null,null,null,null,null,null,null,null,null,"VOUILLY - 14763",null,null,null,"VALLIQUERVILLE - 76718"]
[null,null,null,null,null,null,null,null,null,null,null,null,null,null,null,null,null,null,null,null,null,null,null,null,null,null,null,null,null,null,null,null,null,null,"PONT-D'OUILLY - 14764",null,null,null,"VALMONT - 76719"]
[null,null,null,null,null,null,null,null,null,null,null,null,null,null,null,null,null,null,null,null,null,null,null,null,null,null,null,null,null,null,null,null,null,null,null,null,null,null,"VARENGEVILLE-SUR-MER - 76720"]
[null,null,null,null,null,null,null,null,null,null,null,null,null,null,null,null,null,null,null,null,null,null,null,null,null,null,null,null,null,null,null,null,null,null,null,null,null,null,"VARNEVILLE-BRETTEVILLE - 76721"]
[null,null,null,null,null,null,null,null,null,null,null,null,null,null,null,null,null,null,null,null,null,null,null,null,null,null,null,null,null,null,null,null,null,null,null,null,null,null,"VASSONVILLE - 76723"]
[null,null,null,null,null,null,null,null,null,null,null,null,null,null,null,null,null,null,null,null,null,null,null,null,null,null,null,null,null,null,null,null,null,null,null,null,null,null,"VATIERVILLE - 76724"]
[null,null,null,null,null,null,null,null,null,null,null,null,null,null,null,null,null,null,null,null,null,null,null,null,null,null,null,null,null,null,null,null,null,null,null,null,null,null,"VATTETOT-SOUS-BEAUMONT - 76725"]
[null,null,null,null,null,null,null,null,null,null,null,null,null,null,null,null,null,null,null,null,null,null,null,null,null,null,null,null,null,null,null,null,null,null,null,null,null,null,"VATTETOT-SUR-MER - 76726"]
[null,null,null,null,null,null,null,null,null,null,null,null,null,null,null,null,null,null,null,null,null,null,null,null,null,null,null,null,null,null,null,null,null,null,null,null,null,null,"VATTEVILLE-LA-RUE - 76727"]
[null,null,null,null,null,null,null,null,null,null,null,null,null,null,null,null,null,null,null,null,null,null,null,null,null,null,null,null,null,null,null,null,null,null,null,null,null,null,"LA VAUPALIERE - 76728"]
[null,null,null,null,null,null,null,null,null,null,null,null,null,null,null,null,null,null,null,null,null,null,null,null,null,null,null,null,null,null,null,null,null,null,null,null,null,null,"VEAUVILLE-LES-BAONS - 76729"]
[null,null,null,null,null,null,null,null,null,null,null,null,null,null,null,null,null,null,null,null,null,null,null,null,null,null,null,null,null,null,null,null,null,null,null,null,null,null,"VEAUVILLE-LES-QUELLES - 76730"]
[null,null,null,null,null,null,null,null,null,null,null,null,null,null,null,null,null,null,null,null,null,null,null,null,null,null,null,null,null,null,null,null,null,null,null,null,null,null,"VENESTANVILLE - 76731"]
[null,null,null,null,null,null,null,null,null,null,null,null,null,null,null,null,null,null,null,null,null,null,null,null,null,null,null,null,null,null,null,null,null,null,null,null,null,null,"BUTOT-VENESVILLE - 76732"]
[null,null,null,null,null,null,null,null,null,null,null,null,null,null,null,null,null,null,null,null,null,null,null,null,null,null,null,null,null,null,null,null,null,null,null,null,null,null,"VENTES-SAINT-REMY - 76733"]
[null,null,null,null,null,null,null,null,null,null,null,null,null,null,null,null,null,null,null,null,null,null,null,null,null,null,null,null,null,null,null,null,null,null,null,null,null,null,"VERGETOT - 76734"]
[null,null,null,null,null,null,null,null,null,null,null,null,null,null,null,null,null,null,null,null,null,null,null,null,null,null,null,null,null,null,null,null,null,null,null,null,null,null,"VEULES-LES-ROSES - 76735"]
[null,null,null,null,null,null,null,null,null,null,null,null,null,null,null,null,null,null,null,null,null,null,null,null,null,null,null,null,null,null,null,null,null,null,null,null,null,null,"VEULETTES-SUR-MER - 76736"]
[null,null,null,null,null,null,null,null,null,null,null,null,null,null,null,null,null,null,null,null,null,null,null,null,null,null,null,null,null,null,null,null,null,null,null,null,null,null,"VIBEUF - 76737"]
[null,null,null,null,null,null,null,null,null,null,null,null,null,null,null,null,null,null,null,null,null,null,null,null,null,null,null,null,null,null,null,null,null,null,null,null,null,null,"VIEUX-MANOIR - 76738"]
[null,null,null,null,null,null,null,null,null,null,null,null,null,null,null,null,null,null,null,null,null,null,null,null,null,null,null,null,null,null,null,null,null,null,null,null,null,null,"VIEUX-ROUEN-SUR-BRESLE - 76739"]
[null,null,null,null,null,null,null,null,null,null,null,null,null,null,null,null,null,null,null,null,null,null,null,null,null,null,null,null,null,null,null,null,null,null,null,null,null,null,"LA VIEUX-RUE - 76740"]
[null,null,null,null,null,null,null,null,null,null,null,null,null,null,null,null,null,null,null,null,null,null,null,null,null,null,null,null,null,null,null,null,null,null,null,null,null,null,"VILLAINVILLE - 76741"]
[null,null,null,null,null,null,null,null,null,null,null,null,null,null,null,null,null,null,null,null,null,null,null,null,null,null,null,null,null,null,null,null,null,null,null,null,null,null,"VILLEQUIER - 76742"]
[null,null,null,null,null,null,null,null,null,null,null,null,null,null,null,null,null,null,null,null,null,null,null,null,null,null,null,null,null,null,null,null,null,null,null,null,null,null,"VILLERS-ECALLES - 76743"]
[null,null,null,null,null,null,null,null,null,null,null,null,null,null,null,null,null,null,null,null,null,null,null,null,null,null,null,null,null,null,null,null,null,null,null,null,null,null,"VILLERS-SOUS-FOUCARMONT - 76744"]
[null,null,null,null,null,null,null,null,null,null,null,null,null,null,null,null,null,null,null,null,null,null,null,null,null,null,null,null,null,null,null,null,null,null,null,null,null,null,"VILLY-SUR-YERES - 76745"]
[null,null,null,null,null,null,null,null,null,null,null,null,null,null,null,null,null,null,null,null,null,null,null,null,null,null,null,null,null,null,null,null,null,null,null,null,null,null,"VINNEMERVILLE - 76746"]
[null,null,null,null,null,null,null,null,null,null,null,null,null,null,null,null,null,null,null,null,null,null,null,null,null,null,null,null,null,null,null,null,null,null,null,null,null,null,"VIRVILLE - 76747"]
[null,null,null,null,null,null,null,null,null,null,null,null,null,null,null,null,null,null,null,null,null,null,null,null,null,null,null,null,null,null,null,null,null,null,null,null,null,null,"VITTEFLEUR - 76748"]
[null,null,null,null,null,null,null,null,null,null,null,null,null,null,null,null,null,null,null,null,null,null,null,null,null,null,null,null,null,null,null,null,null,null,null,null,null,null,"WANCHY-CAPVAL - 76749"]
[null,null,null,null,null,null,null,null,null,null,null,null,null,null,null,null,null,null,null,null,null,null,null,null,null,null,null,null,null,null,null,null,null,null,null,null,null,null,"YAINVILLE - 76750"]
[null,null,null,null,null,null,null,null,null,null,null,null,null,null,null,null,null,null,null,null,null,null,null,null,null,null,null,null,null,null,null,null,null,null,null,null,null,null,"YEBLERON - 76751"]
[null,null,null,null,null,null,null,null,null,null,null,null,null,null,null,null,null,null,null,null,null,null,null,null,null,null,null,null,null,null,null,null,null,null,null,null,null,null,"YERVILLE - 76752"]
[null,null,null,null,null,null,null,null,null,null,null,null,null,null,null,null,null,null,null,null,null,null,null,null,null,null,null,null,null,null,null,null,null,null,null,null,null,null,"YMARE - 76753"]
[null,null,null,null,null,null,null,null,null,null,null,null,null,null,null,null,null,null,null,null,null,null,null,null,null,null,null,null,null,null,null,null,null,null,null,null,null,null,"YPORT - 76754"]
[null,null,null,null,null,null,null,null,null,null,null,null,null,null,null,null,null,null,null,null,null,null,null,null,null,null,null,null,null,null,null,null,null,null,null,null,null,null,"YPREVILLE-BIVILLE - 76755"]
[null,null,null,null,null,null,null,null,null,null,null,null,null,null,null,null,null,null,null,null,null,null,null,null,null,null,null,null,null,null,null,null,null,null,null,null,null,null,"YQUEBEUF - 76756"]
[null,null,null,null,null,null,null,null,null,null,null,null,null,null,null,null,null,null,null,null,null,null,null,null,null,null,null,null,null,null,null,null,null,null,null,null,null,null,"YVECRIQUE - 76757"]
[null,null,null,null,null,null,null,null,null,null,null,null,null,null,null,null,null,null,null,null,null,null,null,null,null,null,null,null,null,null,null,null,null,null,null,null,null,null,"YVETOT - 76758"]
[null,null,null,null,null,null,null,null,null,null,null,null,null,null,null,null,null,null,null,null,null,null,null,null,null,null,null,null,null,null,null,null,null,null,null,null,null,null,"YVILLE-SUR-SEINE - 76759"]

{"sheet":"MODE EMPLOI","index":1,"n_rows":43,"n_cols":6,"rows_kept":43,"cut":false,"hidden":false,"merged":[[1,1,2,19],[17,2,18,19],[25,5,29,19],[35,2,36,19]]}
[]
[null,"Comment remplir cette fiche ?\nNe sont concernés par cette fiche que les papillons de jour adultes !"]
[]
[]
[null,"1 / Remplir le cadre en-tête (1 seule fois en début d'année)"]
[]
[null,null,null," -/ Obligatoire : numéro d'observateur (le même que celui des oiseaux), année, commune,"]
[]
[null,null,null," -/ votre nom (DURAND Jean-Michel), l'adresse de votre jardin,"]
[]
[null,null,null," -/ description de votre jardin : s'il est en refuge ou pas, en campagne ou en ville."]
[]
[null,null,"Une fois ce cadre rempli, les flèches rouge et bleue vous permettent d'afficher ou de cacher ce cadre en-tête."]
[]
[]
[null,"2/ Cadre protocole : rappel de la méthodologie"]
[]
[null,null," -/ Relevé quantitatif : Noter par quinzaine le nombre maximum d'adultes d'une espèce que vous avez vu \n     en même temps dans votre jardin,"]
[]
[]
[null,null," -/ En cas d'observation de chenilles ou de chrysalides : utiliser les fiches ponctuelles ou Faune-Normandie,"]
[]
[null,null," -/ En cas d'observation d'espèces de papillons nocturnes (même en journée), utiliser les fiches Faune-Normandie."]
[]
[]
[null,null,null,null,null,"Attention : une quinzaine non suivie (\"Non\" inscrit sous la date de la quinzaine) signifie que vous n'avez pas recherché les papillons dans votre jardin durant les 15 jours (vacances…).\nSi vous n'avez pas vu de papillons, souvent le cas en décembre ou en janvier, laissez \"Oui\" en haut de la colonne, même si aucune case n'est cochée."]
[]
[]
[]
[]
[]
[null,"3 / Remplir vos observations"]
[]
[null,null,"Il ne vous reste plus qu'à remplir vos observations durant toute l'année, avec des nombres, et non des X."]
[]
[null,null,"La fréquence d'observation de vos papillons se calcule toute seule en fonction du nombre de quinzaines suivies, elle n'est donc valable qu'en fin d'année."]
[]
[]
[null,null,"Sous le tableau, se crée un graphique qui vous montre le nombre d'espèces et d'individus vus par quinzaine."]
[]
[]
[null,"4 / A la fin de l'année ou durant le mois de janvier suivant, envoyez-nous cette fiche à l'adresse suivante : "]
[null,null,null,"fichesentomo-lponormandie@orange.fr"]